Workbook

Sheet Main
B10: 2021-09-01
B12: Sheet No. | C12: Template Name | D12: Summary
B13: 1 | C13: Future Intra | D13: For Intraday trading in F&O segment
B14: 2 | C14: Cash Intra | D14: For Intraday trading in cash market segment
B15: 3 | C15: Mid-cap Intra | D15: For Intraday trading in Mid-cap stocks
B16: 4 | C16: Bulk Deals | D16: Reveals Bulk Deals carried on NSE & BSE
B17: 5 | C17: Call Tracker
K27: `

Sheet Future Intra
M5: Back to Main Page
A6: FOR INTRA DAY TRADING | L6: =Main!B10 -> 2021-09-01
A9: Sr.no | B9: Sector | C9: Scrip | D9: Expiry Date | E9: CLOSE RATE | F9: Pivot Point | G9: Supports | J9: Resistances
E10: Point | F10: Point | G10: S1 | H10: S2 | I10: S3 | J10: R1 | K10: R2 | L10: R3 | M10: HIGH | N10: LOW | O10: OI | P10: % Change in OI
A11: 1 | B11: Index | C11: BANKNIFTY | D11: 2021-09-30 | E11: 36513.50 | F11: 36508.45 | G11: 36326.90 | H11: 36140.30 | I11: 35958.75 | J11: 36695.05 | K11: 36876.60 | L11: 37063.20 | M11: 36690 | N11: 36321.85 | O11: 1891750 | P11: 4.84%
A12: 2 | B12: Index | C12: NIFTY | D12: 2021-09-30 | E12: 17122.25 | F12: 17052.72 | G12: 16961.53 | H12: 16800.82 | I12: 16709.63 | J12: 17213.43 | K12: 17304.62 | L12: 17465.33 | M12: 17143.9 | N12: 16892 | O12: 15363400 | P12: 3.99%
A13: 3 | B13: Index | C13: FINNIFTY | D13: 2021-09-30 | E13: 18077.95 | F13: 18004.98 | G13: 17909.97 | H13: 17741.98 | I13: 17646.97 | J13: 18172.97 | K13: 18267.98 | L13: 18435.97 | M13: 18100 | N13: 17837 | O13: 4040 | P13: 5.21%
A14: 4 | B14: Chemical | C14: AARTIIND | D14: 2021-09-30 | E14: 935.60 | F14: 935.97 | G14: 928.73 | H14: 921.87 | I14: 914.63 | J14: 942.83 | K14: 950.07 | L14: 956.93 | M14: 943.2 | N14: 929.1 | O14: 2533000 | P14: 3.51%
A15: 5 | B15: Textile | C15: ABFRL | D15: 2021-09-30 | E15: 208.75 | F15: 209.25 | G15: 207.10 | H15: 205.45 | I15: 203.30 | J15: 210.90 | K15: 213.05 | L15: 214.70 | M15: 211.4 | N15: 207.6 | O15: 8808800 | P15: -0.88%
A16: 6 | B16: Cement | C16: ACC | D16: 2021-09-30 | E16: 2414.15 | F16: 2401.62 | G16: 2383.53 | H16: 2352.92 | I16: 2334.83 | J16: 2432.23 | K16: 2450.32 | L16: 2480.93 | M16: 2419.7 | N16: 2371 | O16: 2688000 | P16: -1.81%
A17: 7 | B17: Others | C17: ADANIENT | D17: 2021-09-30 | E17: 1589.45 | F17: 1569.72 | G17: 1538.43 | H17: 1487.42 | I17: 1456.13 | J17: 1620.73 | K17: 1652.02 | L17: 1703.03 | M17: 1601 | N17: 1518.7 | O17: 15565000 | P17: -1.94%
A18: 8 | B18: Others | C18: ADANIPORTS | D18: 2021-09-30 | E18: 751.30 | F18: 746.47 | G18: 735.33 | H18: 719.37 | I18: 708.23 | J18: 762.43 | K18: 773.57 | L18: 789.53 | M18: 757.6 | N18: 730.5 | O18: 88272500 | P18: 2.29%
A19: 9 | B19: Pharma | C19: ALKEM | D19: 2021-09-30 | E19: 3892.85 | F19: 3896.63 | G19: 3872.27 | H19: 3851.68 | I19: 3827.32 | J19: 3917.22 | K19: 3941.58 | L19: 3962.17 | M19: 3921 | N19: 3876.05 | O19: 359800 | P19: -0.61%
A20: 10 | B20: Automobile | C20: AMARAJABAT | D20: 2021-09-30 | E20: 699.35 | F20: 698.67 | G20: 694.38 | H20: 689.42 | I20: 685.13 | J20: 703.63 | K20: 707.92 | L20: 712.88 | M20: 702.95 | N20: 693.7 | O20: 7690000 | P20: -4.80%
A21: 11 | B21: Cement | C21: AMBUJACEM | D21: 2021-09-30 | E21: 422.60 | F21: 420.12 | G21: 416.38 | H21: 410.17 | I21: 406.43 | J21: 426.33 | K21: 430.07 | L21: 436.28 | M21: 423.85 | N21: 413.9 | O21: 15030000 | P21: -3.93%
A22: 12 | B22: Pharma | C22: APLLTD | D22: 2021-09-30 | E22: 752.10 | F22: 753.00 | G22: 747.00 | H22: 741.90 | I22: 735.90 | J22: 758.10 | K22: 764.10 | L22: 769.20 | M22: 759 | N22: 747.9 | O22: 1752850 | P22: -1.85%
A23: 13 | B23: Others | C23: APOLLOHOSP | D23: 2021-09-30 | E23: 4973.25 | F23: 4939.48 | G23: 4823.02 | H23: 4672.78 | I23: 4556.32 | J23: 5089.72 | K23: 5206.18 | L23: 5356.42 | M23: 5055.95 | N23: 4789.25 | O23: 2195500 | P23: -0.97%
A24: 14 | B24: Automobile | C24: APOLLOTYRE | D24: 2021-09-30 | E24: 213.35 | F24: 213.62 | G24: 211.23 | H24: 209.12 | I24: 206.73 | J24: 215.73 | K24: 218.12 | L24: 220.23 | M24: 216 | N24: 211.5 | O24: 12910000 | P24: -4.81%
A25: 15 | B25: Automobile | C25: ASHOKLEY | D25: 2021-09-30 | E25: 122.95 | F25: 122.08 | G25: 120.87 | H25: 118.78 | I25: 117.57 | J25: 124.17 | K25: 125.38 | L25: 127.47 | M25: 123.3 | N25: 120 | O25: 37534500 | P25: 3.44%
A26: 16 | B26: Others | C26: ASIANPAINT | D26: 2021-09-30 | E26: 3204.20 | F26: 3175.08 | G26: 3138.12 | H26: 3072.03 | I26: 3035.07 | J26: 3241.17 | K26: 3278.13 | L26: 3344.22 | M26: 3212.05 | N26: 3109 | O26: 5194500 | P26: 3.94%
A27: 17 | B27: FMCG | C27: ASTRAL | D27: 2021-09-30 | E27: 2045.20 | F27: 2039.40 | G27: 2025.80 | H27: 2006.40 | I27: 1992.80 | J27: 2058.80 | K27: 2072.40 | L27: 2091.80 | M27: 2053 | N27: 2020 | O27: 397650 | P27: -2.63%
A28: 18 | B28: Banking | C28: AUBANK | D28: 2021-09-30 | E28: 1134.20 | F28: 1166.18 | G28: 1022.72 | H28: 911.23 | I28: 767.77 | J28: 1277.67 | K28: 1421.13 | L28: 1532.62 | M28: 1309.65 | N28: 1054.7 | O28: 4530000 | P28: 77.86%
A29: 19 | B29: Pharma | C29: AUROPHARMA | D29: 2021-09-30 | E29: 728.15 | F29: 724.08 | G29: 718.57 | H29: 708.98 | I29: 703.47 | J29: 733.67 | K29: 739.18 | L29: 748.77 | M29: 729.6 | N29: 714.5 | O29: 16556800 | P29: -2.66%
A30: 20 | B30: Banking | C30: AXISBANK | D30: 2021-09-30 | E30: 787.40 | F30: 786.07 | G30: 781.38 | H30: 775.37 | I30: 770.68 | J30: 792.08 | K30: 796.77 | L30: 802.78 | M30: 790.75 | N30: 780.05 | O30: 29174400 | P30: 6.06%
A31: 21 | B31: Automobile | C31: BAJAJ-AUTO | D31: 2021-09-30 | E31: 3742.15 | F31: 3737.93 | G31: 3721.07 | H31: 3699.98 | I31: 3683.12 | J31: 3759.02 | K31: 3775.88 | L31: 3796.97 | M31: 3754.8 | N31: 3716.85 | O31: 2350250 | P31: 6.12%
A32: 22 | B32: Finance | C32: BAJAJFINSV | D32: 2021-09-30 | E32: 17145.90 | F32: 16935.98 | G32: 16671.97 | H32: 16198.03 | I32: 15934.02 | J32: 17409.92 | K32: 17673.93 | L32: 18147.87 | M32: 17200 | N32: 16462.05 | O32: 783150 | P32: 1.83%
A33: 23 | B33: Finance | C33: BAJFINANCE | D33: 2021-09-30 | E33: 7527.25 | F33: 7423.75 | G33: 7253.55 | H33: 6979.85 | I33: 6809.65 | J33: 7697.45 | K33: 7867.65 | L33: 8141.35 | M33: 7593.95 | N33: 7150.05 | O33: 4292125 | P33: 3.82%
A34: 24 | B34: Automobile | C34: BALKRISIND | D34: 2021-09-30 | E34: 2297.15 | F34: 2287.45 | G34: 2269.90 | H34: 2242.65 | I34: 2225.10 | J34: 2314.70 | K34: 2332.25 | L34: 2359.50 | M34: 2305 | N34: 2260.2 | O34: 1404800 | P34: 3.11%
A35: 25 | B35: Banking | C35: BANDHANBNK | D35: 2021-09-30 | E35: 285.10 | F35: 286.02 | G35: 282.53 | H35: 279.97 | I35: 276.48 | J35: 288.58 | K35: 292.07 | L35: 294.63 | M35: 289.5 | N35: 283.45 | O35: 29133000 | P35: -4.74%
A36: 26 | B36: Banking | C36: BANKBARODA | D36: 2021-09-30 | E36: 77.55 | F36: 77.53 | G36: 76.32 | H36: 75.08 | I36: 73.87 | J36: 78.77 | K36: 79.98 | L36: 81.22 | M36: 78.75 | N36: 76.3 | O36: 162782100 | P36: 0.09%
A37: 27 | B37: FMCG | C37: BATAINDIA | D37: 2021-09-30 | E37: 1778.20 | F37: 1769.78 | G37: 1749.77 | H37: 1721.33 | I37: 1701.32 | J37: 1798.22 | K37: 1818.23 | L37: 1846.67 | M37: 1789.8 | N37: 1741.35 | O37: 1780350 | P37: -2.09%
A38: 28 | B38: Capital_Goods | C38: BEL | D38: 2021-09-30 | E38: 186.50 | F38: 185.68 | G38: 184.17 | H38: 181.83 | I38: 180.32 | J38: 188.02 | K38: 189.53 | L38: 191.87 | M38: 187.2 | N38: 183.35 | O38: 24137600 | P38: 3.33%
A39: 29 | B39: FMCG | C39: BERGEPAINT | D39: 2021-09-30 | E39: 821.35 | F39: 817.95 | G39: 812.45 | H39: 803.55 | I39: 798.05 | J39: 826.85 | K39: 832.35 | L39: 841.25 | M39: 823.45 | N39: 809.05 | O39: 4625500 | P39: -0.10%
A40: 30 | B40: Automobile | C40: BHARATFORG | D40: 2021-09-30 | E40: 767.40 | F40: 761.30 | G40: 753.10 | H40: 738.80 | I40: 730.60 | J40: 775.60 | K40: 783.80 | L40: 798.10 | M40: 769.5 | N40: 747 | O40: 8581500 | P40: -5.27%
A41: 31 | B41: Telecom | C41: BHARTIARTL | D41: 2021-09-30 | E41: 664.05 | F41: 652.73 | G41: 636.92 | H41: 609.78 | I41: 593.97 | J41: 679.87 | K41: 695.68 | L41: 722.82 | M41: 668.55 | N41: 625.6 | O41: 83772558 | P41: -7.24%
A42: 32 | B42: Capital_Goods | C42: BHEL | D42: 2021-09-30 | E42: 52.75 | F42: 53.05 | G42: 51.85 | H42: 50.95 | I42: 49.75 | J42: 53.95 | K42: 55.15 | L42: 56.05 | M42: 54.25 | N42: 52.15 | O42: 115804500 | P42: 0.56%
A43: 33 | B43: Pharma | C43: BIOCON | D43: 2021-09-30 | E43: 359.15 | F43: 357.32 | G43: 354.23 | H43: 349.32 | I43: 346.23 | J43: 362.23 | K43: 365.32 | L43: 370.23 | M43: 360.4 | N43: 352.4 | O43: 16978600 | P43: -0.19%
A44: 34 | B44: Automobile | C44: BOSCHLTD | D44: 2021-09-30 | E44: 13911.90 | F44: 13897.58 | G44: 13835.42 | H44: 13758.93 | I44: 13696.77 | J44: 13974.07 | K44: 14036.23 | L44: 14112.72 | M44: 13959.75 | N44: 13821.1 | O44: 160700 | P44: -1.74%
A45: 35 | B45: Oil_Gas | C45: BPCL | D45: 2021-09-30 | E45: 472.80 | F45: 473.18 | G45: 468.62 | H45: 464.43 | I45: 459.87 | J45: 477.37 | K45: 481.93 | L45: 486.12 | M45: 477.75 | N45: 469 | O45: 40577400 | P45: -0.64%
A46: 36 | B46: FMCG | C46: BRITANNIA | D46: 2021-09-30 | E46: 3985.05 | F46: 3989.03 | G46: 3953.12 | H46: 3921.18 | I46: 3885.27 | J46: 4020.97 | K46: 4056.88 | L46: 4088.82 | M46: 4024.95 | N46: 3957.1 | O46: 1303800 | P46: -2.93%
A47: 37 | B47: Pharma | C47: CADILAHC | D47: 2021-09-30 | E47: 554.30 | F47: 554.57 | G47: 550.18 | H47: 546.07 | I47: 541.68 | J47: 558.68 | K47: 563.07 | L47: 567.18 | M47: 558.95 | N47: 550.45 | O47: 19144400 | P47: -1.65%
A48: 38 | B48: Banking | C48: CANBK | D48: 2021-09-30 | E48: 159.60 | F48: 159.05 | G48: 154.90 | H48: 150.20 | I48: 146.05 | J48: 163.75 | K48: 167.90 | L48: 172.60 | M48: 163.2 | N48: 154.35 | O48: 77506200 | P48: 16.31%
A49: 39 | B49: Finance | C49: CANFINHOME | D49: 2021-09-30 | E49: 573.25 | F49: 579.72 | G49: 556.53 | H49: 539.82 | I49: 516.63 | J49: 596.43 | K49: 619.62 | L49: 636.33 | M49: 602.9 | N49: 563 | O49: 1022775 | P49: 111.49%
A50: 40 | B50: Pharma | C50: CHOLAFIN | D50: 2021-09-30 | E50: 554.40 | F50: 552.18 | G50: 546.37 | H50: 538.33 | I50: 532.52 | J50: 560.22 | K50: 566.03 | L50: 574.07 | M50: 558 | N50: 544.15 | O50: 10158750 | P50: 0.93%
A51: 41 | B51: Others | C51: CIPLA | D51: 2021-09-30 | E51: 948.15 | F51: 943.55 | G51: 937.25 | H51: 926.35 | I51: 920.05 | J51: 954.45 | K51: 960.75 | L51: 971.65 | M51: 949.85 | N51: 932.65 | O51: 11729250 | P51: -1.86%
A52: 42 | B52: Technology | C52: COALINDIA | D52: 2021-09-30 | E52: 142.90 | F52: 142.15 | G52: 141.10 | H52: 139.30 | I52: 138.25 | J52: 143.95 | K52: 145.00 | L52: 146.80 | M52: 143.2 | N52: 140.35 | O52: 52378200 | P52: -3.28%
A53: 43 | B53: FMCG | C53: COFORGE | D53: 2021-09-30 | E53: 5227.40 | F53: 5246.68 | G53: 5133.37 | H53: 5039.33 | I53: 4926.02 | J53: 5340.72 | K53: 5454.03 | L53: 5548.07 | M53: 5360 | N53: 5152.65 | O53: 729200 | P53: 1.17%
A54: 44 | B54: Others | C54: COLPAL | D54: 2021-09-30 | E54: 1695.65 | F54: 1699.05 | G54: 1679.15 | H54: 1662.65 | I54: 1642.75 | J54: 1715.55 | K54: 1735.45 | L54: 1751.95 | M54: 1718.95 | N54: 1682.55 | O54: 2500050 | P54: -1.54%
A55: 45 | B55: Others | C55: CONCOR | D55: 2021-09-30 | E55: 678.80 | F55: 681.33 | G55: 669.67 | H55: 660.53 | I55: 648.87 | J55: 690.47 | K55: 702.13 | L55: 711.27 | M55: 693 | N55: 672.2 | O55: 6991299 | P55: -1.39%
A56: 46 | B56: Banking | C56: COROMANDEL | D56: 2021-09-30 | E56: 793.20 | F56: 791.85 | G56: 783.00 | H56: 772.80 | I56: 763.95 | J56: 802.05 | K56: 810.90 | L56: 821.10 | M56: 800.7 | N56: 781.65 | O56: 1533125 | P56: -2.58%
A57: 47 | B57: Capital_Goods | C57: CUB | D57: 2021-09-30 | E57: 151.85 | F57: 152.03 | G57: 150.07 | H57: 148.28 | I57: 146.32 | J57: 153.82 | K57: 155.78 | L57: 157.57 | M57: 154 | N57: 150.25 | O57: 7157900 | P57: 0.09%
A58: 48 | B58: FMCG | C58: CUMMINSIND | D58: 2021-09-30 | E58: 1001.70 | F58: 1002.85 | G58: 994.85 | H58: 988.00 | I58: 980.00 | J58: 1009.70 | K58: 1017.70 | L58: 1024.55 | M58: 1010.85 | N58: 996 | O58: 2506200 | P58: -1.21%
A59: 49 | B59: Chemical | C59: DABUR | D59: 2021-09-30 | E59: 621.90 | F59: 619.15 | G59: 614.80 | H59: 607.70 | I59: 603.35 | J59: 626.25 | K59: 630.60 | L59: 637.70 | M59: 623.5 | N59: 612.05 | O59: 11412500 | P59: 4.30%
A60: 50 | B60: Pharma | C60: DEEPAKNTR | D60: 2021-09-30 | E60: 2285.75 | F60: 2285.93 | G60: 2255.87 | H60: 2225.98 | I60: 2195.92 | J60: 2315.82 | K60: 2345.88 | L60: 2375.77 | M60: 2316 | N60: 2256.05 | O60: 2866500 | P60: -5.99%
A61: 51 | B61: Realty | C61: DIVISLAB | D61: 2021-09-30 | E61: 5183.05 | F61: 5176.03 | G61: 5129.07 | H61: 5075.08 | I61: 5028.12 | J61: 5230.02 | K61: 5276.98 | L61: 5330.97 | M61: 5223 | N61: 5122.05 | O61: 2143000 | P61: 4.00%
A62: 52 | B62: Pharma | C62: DIXON | D62: 2021-09-30 | E62: 4174.20 | F62: 4178.22 | G62: 4114.48 | H62: 4054.77 | I62: 3991.03 | J62: 4237.93 | K62: 4301.67 | L62: 4361.38 | M62: 4241.95 | N62: 4118.5 | O62: 183750 | P62: 10.69%
A63: 53 | B63: Automobile | C63: DLF | D63: 2021-09-30 | E63: 321.05 | F63: 321.20 | G63: 318.00 | H63: 314.95 | I63: 311.75 | J63: 324.25 | K63: 327.45 | L63: 330.50 | M63: 324.4 | N63: 318.15 | O63: 44107800 | P63: -0.82%
A64: 54 | B64: Automobile | C64: DRREDDY | D64: 2021-09-30 | E64: 4708.65 | F64: 4699.00 | G64: 4671.00 | H64: 4633.35 | I64: 4605.35 | J64: 4736.65 | K64: 4764.65 | L64: 4802.30 | M64: 4727 | N64: 4661.35 | O64: 3302625 | P64: 0.91%
A65: 55 | B65: Automobile | C65: EICHERMOT | D65: 2021-09-30 | E65: 2668.00 | F65: 2630.52 | G65: 2573.83 | H65: 2479.67 | I65: 2422.98 | J65: 2724.68 | K65: 2781.37 | L65: 2875.53 | M65: 2687.2 | N65: 2536.35 | O65: 3968300 | P65: -3.33%
A66: 56 | B66: Banking | C66: ESCORTS | D66: 2021-09-30 | E66: 1350.55 | F66: 1358.83 | G66: 1337.67 | H66: 1324.78 | I66: 1303.62 | J66: 1371.72 | K66: 1392.88 | L66: 1405.77 | M66: 1380 | N66: 1345.95 | O66: 6204550 | P66: 4.55%
A67: 57 | B67: Oil_Gas | C67: EXIDEIND | D67: 2021-09-30 | E67: 161.90 | F67: 162.00 | G67: 160.50 | H67: 159.10 | I67: 157.60 | J67: 163.40 | K67: 164.90 | L67: 166.30 | M67: 163.5 | N67: 160.6 | O67: 26618400 | P67: 3.85%
A68: 58 | B68: Pharma | C68: FEDERALBNK | D68: 2021-09-30 | E68: 81.45 | F68: 81.10 | G68: 80.45 | H68: 79.45 | I68: 78.80 | J68: 82.10 | K68: 82.75 | L68: 83.75 | M68: 81.75 | N68: 80.1 | O68: 82720000 | P68: -2.16%
A69: 59 | B69: Infrastructure | C69: GAIL | D69: 2021-09-30 | E69: 146.65 | F69: 146.13 | G69: 144.87 | H69: 143.08 | I69: 141.82 | J69: 147.92 | K69: 149.18 | L69: 150.97 | M69: 147.4 | N69: 144.35 | O69: 35587400 | P69: 2.57%
A70: 60 | B70: FMCG | C70: GLENMARK | D70: 2021-09-30 | E70: 528.20 | F70: 526.78 | G70: 522.82 | H70: 517.43 | I70: 513.47 | J70: 532.17 | K70: 536.13 | L70: 541.52 | M70: 530.75 | N70: 521.4 | O70: 7943050 | P70: -2.70%
A71: 61 | B71: Realty | C71: GMRINFRA | D71: 2021-09-30 | E71: 29.20 | F71: 29.27 | G71: 28.93 | H71: 28.67 | I71: 28.33 | J71: 29.53 | K71: 29.87 | L71: 30.13 | M71: 29.6 | N71: 29 | O71: 98527500 | P71: -1.40%
A72: 62 | B72: Pharma | C72: GODREJCP | D72: 2021-09-30 | E72: 1102.40 | F72: 1081.97 | G72: 1059.28 | H72: 1016.17 | I72: 993.48 | J72: 1125.08 | K72: 1147.77 | L72: 1190.88 | M72: 1104.65 | N72: 1038.85 | O72: 5640000 | P72: 2.40%
A73: 63 | B73: Cement | C73: GODREJPROP | D73: 2021-09-30 | E73: 1489.40 | F73: 1485.70 | G73: 1455.70 | H73: 1422.00 | I73: 1392.00 | J73: 1519.40 | K73: 1549.40 | L73: 1583.10 | M73: 1515.7 | N73: 1452 | O73: 2016950 | P73: 4.30%
A74: 64 | B74: Oil_Gas | C74: GRANULES | D74: 2021-09-30 | E74: 331.60 | F74: 332.02 | G74: 329.18 | H74: 326.77 | I74: 323.93 | J74: 334.43 | K74: 337.27 | L74: 339.68 | M74: 334.85 | N74: 329.6 | O74: 11674600 | P74: 0.11%
A75: 65 | B75: Capital_Goods | C75: GRASIM | D75: 2021-09-30 | E75: 1502.25 | F75: 1493.08 | G75: 1481.17 | H75: 1460.08 | I75: 1448.17 | J75: 1514.17 | K75: 1526.08 | L75: 1547.17 | M75: 1505 | N75: 1472 | O75: 10212500 | P75: -0.62%
A76: 66 | B76: Technology | C76: GUJGASLTD | D76: 2021-09-30 | E76: 722.95 | F76: 722.05 | G76: 710.10 | H76: 697.25 | I76: 685.30 | J76: 734.90 | K76: 746.85 | L76: 759.70 | M76: 734 | N76: 709.2 | O76: 1971250 | P76: -0.38%
A77: 67 | B77: Finance | C77: HAL | D77: 2021-09-30 | E77: 1380.05 | F77: 1391.30 | G77: 1359.75 | H77: 1339.45 | I77: 1307.90 | J77: 1411.60 | K77: 1443.15 | L77: 1463.45 | M77: 1422.85 | N77: 1371 | O77: 937175 | P77: 13.78%
A78: 68 | B78: Finance | C78: HAVELLS | D78: 2021-09-30 | E78: 1268.45 | F78: 1271.57 | G78: 1255.13 | H78: 1241.82 | I78: 1225.38 | J78: 1284.88 | K78: 1301.32 | L78: 1314.63 | M78: 1288 | N78: 1258.25 | O78: 4438000 | P78: 14.69%
A79: 69 | B79: Banking | C79: HCLTECH | D79: 2021-09-30 | E79: 1183.30 | F79: 1180.40 | G79: 1166.00 | H79: 1148.70 | I79: 1134.30 | J79: 1197.70 | K79: 1212.10 | L79: 1229.40 | M79: 1194.8 | N79: 1163.1 | O79: 17306800 | P79: 6.74%
A80: 70 | B80: Finance | C80: HDFC | D80: 2021-09-30 | E80: 2801.90 | F80: 2787.57 | G80: 2760.48 | H80: 2719.07 | I80: 2691.98 | J80: 2828.98 | K80: 2856.07 | L80: 2897.48 | M80: 2814.65 | N80: 2746.15 | O80: 13255200 | P80: 3.02%
A81: 71 | B81: Automobile | C81: HDFCAMC | D81: 2021-09-30 | E81: 3077.60 | F81: 3074.72 | G81: 3058.88 | H81: 3040.17 | I81: 3024.33 | J81: 3093.43 | K81: 3109.27 | L81: 3127.98 | M81: 3090.55 | N81: 3056 | O81: 1059600 | P81: 1.30%
A82: 72 | B82: Metals | C82: HDFCBANK | D82: 2021-09-30 | E82: 1582.55 | F82: 1577.78 | G82: 1570.67 | H82: 1558.78 | I82: 1551.67 | J82: 1589.67 | K82: 1596.78 | L82: 1608.67 | M82: 1584.9 | N82: 1565.9 | O82: 22190300 | P82: 1.62%
A83: 73 | B83: Oil_Gas | C83: HDFCLIFE | D83: 2021-09-30 | E83: 718.25 | F83: 714.43 | G83: 709.32 | H83: 700.38 | I83: 695.27 | J83: 723.37 | K83: 728.48 | L83: 737.42 | M83: 719.55 | N83: 705.5 | O83: 20684400 | P83: -1.28%
A84: 74 | B84: FMCG | C84: HEROMOTOCO | D84: 2021-09-30 | E84: 2743.60 | F84: 2731.57 | G84: 2716.33 | H84: 2689.07 | I84: 2673.83 | J84: 2758.83 | K84: 2774.07 | L84: 2801.33 | M84: 2746.8 | N84: 2704.3 | O84: 4877100 | P84: -2.70%
A85: 75 | B85: Finance | C85: HINDALCO | D85: 2021-09-30 | E85: 468.80 | F85: 461.80 | G85: 452.55 | H85: 436.30 | I85: 427.05 | J85: 478.05 | K85: 487.30 | L85: 503.55 | M85: 471.05 | N85: 445.55 | O85: 38012000 | P85: 4.75%
A86: 76 | B86: Banking | C86: HINDPETRO | D86: 2021-09-30 | E86: 267.55 | F86: 264.95 | G86: 260.90 | H86: 254.25 | I86: 250.20 | J86: 271.60 | K86: 275.65 | L86: 282.30 | M86: 269 | N86: 258.3 | O86: 22650300 | P86: 6.93%
A87: 77 | B87: Finance | C87: HINDUNILVR | D87: 2021-09-30 | E87: 2726.90 | F87: 2714.48 | G87: 2691.17 | H87: 2655.43 | I87: 2632.12 | J87: 2750.22 | K87: 2773.53 | L87: 2809.27 | M87: 2737.8 | N87: 2678.75 | O87: 7627800 | P87: 4.39%
A88: 78 | B88: Finance | C88: IBULHSGFIN | D88: 2021-09-30 | E88: 224.45 | F88: 225.25 | G88: 220.70 | H88: 216.95 | I88: 212.40 | J88: 229.00 | K88: 233.55 | L88: 237.30 | M88: 229.8 | N88: 221.5 | O88: 36437400 | P88: 1.50%
A89: 79 | B89: Telecom | C89: ICICIBANK | D89: 2021-09-30 | E89: 719.70 | F89: 717.15 | G89: 712.85 | H89: 706.00 | I89: 701.70 | J89: 724.00 | K89: 728.30 | L89: 735.15 | M89: 721.45 | N89: 710.3 | O89: 91345375 | P89: 3.30%
A90: 80 | B90: Banking | C90: ICICIGI | D90: 2021-09-30 | E90: 1596.75 | F90: 1591.27 | G90: 1579.53 | H90: 1562.32 | I90: 1550.58 | J90: 1608.48 | K90: 1620.22 | L90: 1637.43 | M90: 1603 | N90: 1574.05 | O90: 1959675 | P90: 3.11%
A91: 81 | B91: Oil_Gas | C91: ICICIPRULI | D91: 2021-09-30 | E91: 661.05 | F91: 659.90 | G91: 651.40 | H91: 641.75 | I91: 633.25 | J91: 669.55 | K91: 678.05 | L91: 687.70 | M91: 668.4 | N91: 650.25 | O91: 6246000 | P91: 2.46%
A92: 82 | B92: Infrastructure | C92: IDEA | D92: 2021-09-30 | E92: 6.20 | F92: 6.17 | G92: 5.88 | H92: 5.57 | I92: 5.28 | J92: 6.48 | K92: 6.77 | L92: 7.08 | M92: 6.45 | N92: 5.85 | O92: 404810000 | P92: 11.55%
A93: 83 | B93: Others | C93: IDFCFIRSTB | D93: 2021-09-30 | E93: 43.00 | F93: 43.15 | G93: 42.45 | H93: 41.90 | I93: 41.20 | J93: 43.70 | K93: 44.40 | L93: 44.95 | M93: 43.85 | N93: 42.6 | O93: 181687500 | P93: -1.85%
A94: 84 | B94: Banking | C94: IEX | D94: 2021-09-30 | E94: 506.25 | F94: 505.55 | G94: 488.70 | H94: 471.15 | I94: 454.30 | J94: 523.10 | K94: 539.95 | L94: 557.50 | M94: 522.4 | N94: 488 | O94: 3263750 | P94: 15.33%
A95: 85 | B95: Telecom | C95: IGL | D95: 2021-09-30 | E95: 543.80 | F95: 540.92 | G95: 532.83 | H95: 521.87 | I95: 513.78 | J95: 551.88 | K95: 559.97 | L95: 570.93 | M95: 549 | N95: 529.95 | O95: 8823375 | P95: -0.90%
A96: 86 | B96: Technology | C96: INDHOTEL | D96: 2021-09-30 | E96: 140.85 | F96: 141.15 | G96: 139.80 | H96: 138.75 | I96: 137.40 | J96: 142.20 | K96: 143.55 | L96: 144.60 | M96: 142.5 | N96: 140.1 | O96: 7367100 | P96: -1.05%
A97: 87 | B97: Oil_Gas | C97: INDIAMART | D97: 2021-09-30 | E97: 7872.10 | F97: 7896.05 | G97: 7757.25 | H97: 7642.40 | I97: 7503.60 | J97: 8010.90 | K97: 8149.70 | L97: 8264.55 | M97: 8034.85 | N97: 7781.2 | O97: 101475 | P97: 20.37%
A98: 88 | B98: Others | C98: INDIGO | D98: 2021-09-30 | E98: 1912.40 | F98: 1883.70 | G98: 1838.85 | H98: 1765.30 | I98: 1720.45 | J98: 1957.25 | K98: 2002.10 | L98: 2075.65 | M98: 1928.55 | N98: 1810.15 | O98: 2651500 | P98: 4.04%
A99: 89 | B99: FMCG | C99: INDUSINDBK | D99: 2021-09-30 | E99: 995.20 | F99: 999.52 | G99: 986.03 | H99: 976.87 | I99: 963.38 | J99: 1008.68 | K99: 1022.17 | L99: 1031.33 | M99: 1013 | N99: 990.35 | O99: 13014000 | P99: 2.58%
A100: 90 | B100: Metals | C100: INDUSTOWER | D100: 2021-09-30 | E100: 216.00 | F100: 216.37 | G100: 214.03 | H100: 212.07 | I100: 209.73 | J100: 218.33 | K100: 220.67 | L100: 222.63 | M100: 218.7 | N100: 214.4 | O100: 13154400 | P100: 4.49%
A101: 91 | B101: Metals | C101: INFY | D101: 2021-09-30 | E101: 1710.40 | F101: 1706.55 | G101: 1696.75 | H101: 1683.10 | I101: 1673.30 | J101: 1720.20 | K101: 1730.00 | L101: 1743.65 | M101: 1716.35 | N101: 1692.9 | O101: 29872200 | P101: 2.63%
A102: 92 | B102: Others | C102: IOC | D102: 2021-09-30 | E102: 111.05 | F102: 110.05 | G102: 108.75 | H102: 106.45 | I102: 105.15 | J102: 112.35 | K102: 113.65 | L102: 115.95 | M102: 111.35 | N102: 107.75 | O102: 54717000 | P102: -0.60%
A103: 93 | B103: Banking | C103: IPCALAB | D103: 2021-09-30 | E103: 2587.70 | F103: 2569.23 | G103: 2463.47 | H103: 2339.23 | I103: 2233.47 | J103: 2693.47 | K103: 2799.23 | L103: 2923.47 | M103: 2675 | N103: 2445 | O103: 121050 | P103: 149.07%
A104: 94 | B104: Finance | C104: IRCTC | D104: 2021-09-30 | E104: 2754.55 | F104: 2743.78 | G104: 2717.57 | H104: 2680.58 | I104: 2654.37 | J104: 2780.77 | K104: 2806.98 | L104: 2843.97 | M104: 2770 | N104: 2706.8 | O104: 1741675 | P104: 0.36%
A105: 95 | B105: Others | C105: ITC | D105: 2021-09-30 | E105: 211.65 | F105: 210.40 | G105: 208.90 | H105: 206.15 | I105: 204.65 | J105: 213.15 | K105: 214.65 | L105: 217.40 | M105: 211.9 | N105: 207.65 | O105: 166960000 | P105: -3.07%
A106: 96 | B106: Finance | C106: JINDALSTEL | D106: 2021-09-30 | E106: 378.35 | F106: 380.02 | G106: 375.33 | H106: 372.32 | I106: 367.63 | J106: 383.03 | K106: 387.72 | L106: 390.73 | M106: 384.7 | N106: 377 | O106: 36892500 | P106: 2.38%
A107: 97 | B107: Capital_Goods | C107: JSWSTEEL | D107: 2021-09-30 | E107: 689.05 | F107: 688.45 | G107: 682.25 | H107: 675.45 | I107: 669.25 | J107: 695.25 | K107: 701.45 | L107: 708.25 | M107: 694.65 | N107: 681.65 | O107: 47181150 | P107: 1.27%
A108: 98 | B108: Technology | C108: JUBLFOOD | D108: 2021-09-30 | E108: 3997.85 | F108: 3966.83 | G108: 3918.67 | H108: 3839.48 | I108: 3791.32 | J108: 4046.02 | K108: 4094.18 | L108: 4173.37 | M108: 4015 | N108: 3887.65 | O108: 1604500 | P108: -0.90%
A109: 99 | B109: Technology | C109: KOTAKBANK | D109: 2021-09-30 | E109: 1758.85 | F109: 1756.73 | G109: 1746.47 | H109: 1734.08 | I109: 1723.82 | J109: 1769.12 | K109: 1779.38 | L109: 1791.77 | M109: 1767 | N109: 1744.35 | O109: 16097200 | P109: -0.74%
A110: 100 | B110: Pharma | C110: L&TFH | D110: 2021-09-30 | E110: 83.30 | F110: 83.57 | G110: 82.13 | H110: 80.97 | I110: 79.53 | J110: 84.73 | K110: 86.17 | L110: 87.33 | M110: 85 | N110: 82.4 | O110: 56560312 | P110: 1.05%
A111: 101 | B111: Automobile | C111: LALPATHLAB | D111: 2021-09-30 | E111: 4046.60 | F111: 4018.47 | G111: 3949.38 | H111: 3852.17 | I111: 3783.08 | J111: 4115.68 | K111: 4184.77 | L111: 4281.98 | M111: 4087.55 | N111: 3921.25 | O111: 352500 | P111: -3.36%
A112: 102 | B112: Finance | C112: LICHSGFIN | D112: 2021-09-30 | E112: 394.50 | F112: 394.03 | G112: 388.12 | H112: 381.73 | I112: 375.82 | J112: 400.42 | K112: 406.33 | L112: 412.72 | M112: 399.95 | N112: 387.65 | O112: 22208000 | P112: -5.24%
A113: 103 | B113: Finance | C113: LT | D113: 2021-09-30 | E113: 1674.20 | F113: 1663.48 | G113: 1649.27 | H113: 1624.33 | I113: 1610.12 | J113: 1688.42 | K113: 1702.63 | L113: 1727.57 | M113: 1677.7 | N113: 1638.55 | O113: 13905225 | P113: 3.21%
A114: 104 | B114: FMCG | C114: LTI | D114: 2021-09-30 | E114: 5334.25 | F114: 5332.53 | G114: 5267.42 | H114: 5200.58 | I114: 5135.47 | J114: 5399.37 | K114: 5464.48 | L114: 5531.32 | M114: 5397.65 | N114: 5265.7 | O114: 728400 | P114: 0.37%
A115: 105 | B115: Automobile | C115: LTTS | D115: 2021-09-30 | E115: 3935.05 | F115: 3983.87 | G115: 3867.73 | H115: 3800.42 | I115: 3684.28 | J115: 4051.18 | K115: 4167.32 | L115: 4234.63 | M115: 4100 | N115: 3916.55 | O115: 546200 | P115: 2.71%
A116: 106 | B116: FMCG | C116: LUPIN | D116: 2021-09-30 | E116: 958.50 | F116: 956.03 | G116: 951.17 | H116: 943.83 | I116: 938.97 | J116: 963.37 | K116: 968.23 | L116: 975.57 | M116: 960.9 | N116: 948.7 | O116: 10546800 | P116: 0.30%
A117: 107 | B117: Pharma | C117: M&M | D117: 2021-09-30 | E117: 794.75 | F117: 791.63 | G117: 786.77 | H117: 778.78 | I117: 773.92 | J117: 799.62 | K117: 804.48 | L117: 812.47 | M117: 796.5 | N117: 783.65 | O117: 11719400 | P117: 1.71%
A118: 108 | B118: Finance | C118: M&MFIN | D118: 2021-09-30 | E118: 160.20 | F118: 160.05 | G118: 158.60 | H118: 157.00 | I118: 155.55 | J118: 161.65 | K118: 163.10 | L118: 164.70 | M118: 161.5 | N118: 158.45 | O118: 29092000 | P118: -4.32%
A119: 109 | B119: Oil_Gas | C119: MANAPPURAM | D119: 2021-09-30 | E119: 161.00 | F119: 161.23 | G119: 159.52 | H119: 158.03 | I119: 156.32 | J119: 162.72 | K119: 164.43 | L119: 165.92 | M119: 162.95 | N119: 159.75 | O119: 25890000 | P119: 4.96%
A120: 110 | B120: Technology | C120: MARICO | D120: 2021-09-30 | E120: 544.75 | F120: 539.50 | G120: 532.25 | H120: 519.75 | I120: 512.50 | J120: 552.00 | K120: 559.25 | L120: 571.75 | M120: 546.75 | N120: 527 | O120: 10046000 | P120: -4.45%
A121: 111 | B121: Automobile | C121: MARUTI | D121: 2021-09-30 | E121: 6849.25 | F121: 6833.93 | G121: 6785.32 | H121: 6721.38 | I121: 6672.77 | J121: 6897.87 | K121: 6946.48 | L121: 7010.42 | M121: 6882.55 | N121: 6770 | O121: 3351300 | P121: -3.70%
A122: 112 | B122: Technology | C122: MCDOWELL-N | D122: 2021-09-30 | E122: 715.95 | F122: 717.30 | G122: 707.10 | H122: 698.25 | I122: 688.05 | J122: 726.15 | K122: 736.35 | L122: 745.20 | M122: 727.5 | N122: 708.45 | O122: 14221250 | P122: -1.43%
A123: 113 | B123: Automobile | C123: MCX | D123: 2021-09-30 | E123: 1521.50 | F123: 1527.52 | G123: 1497.03 | H123: 1472.57 | I123: 1442.08 | J123: 1551.98 | K123: 1582.47 | L123: 1606.93 | M123: 1558 | N123: 1503.05 | O123: 820050 | P123: 11.52%
A124: 114 | B124: Finance | C124: METROPOLIS | D124: 2021-09-30 | E124: 2834.50 | F124: 2822.53 | G124: 2794.07 | H124: 2753.63 | I124: 2725.17 | J124: 2862.97 | K124: 2891.43 | L124: 2931.87 | M124: 2851 | N124: 2782.1 | O124: 322600 | P124: 10.71%
A125: 115 | B125: Others | C125: MFSL | D125: 2021-09-30 | E125: 1089.20 | F125: 1080.27 | G125: 1069.03 | H125: 1048.87 | I125: 1037.63 | J125: 1100.43 | K125: 1111.67 | L125: 1131.83 | M125: 1091.5 | N125: 1060.1 | O125: 2850900 | P125: -4.47%
A126: 116 | B126: Metals | C126: MGL | D126: 2021-09-30 | E126: 1134.00 | F126: 1134.37 | G126: 1125.43 | H126: 1116.87 | I126: 1107.93 | J126: 1142.93 | K126: 1151.87 | L126: 1160.43 | M126: 1143.3 | N126: 1125.8 | O126: 1765800 | P126: 0.68%
A127: 117 | B127: Others | C127: MINDTREE | D127: 2021-09-30 | E127: 3640.10 | F127: 3638.72 | G127: 3595.53 | H127: 3550.97 | I127: 3507.78 | J127: 3683.28 | K127: 3726.47 | L127: 3771.03 | M127: 3681.9 | N127: 3594.15 | O127: 2040800 | P127: 3.03%
A128: 118 | B128: Chemical | C128: MOTHERSUMI | D128: 2021-09-30 | E128: 217.20 | F128: 216.58 | G128: 214.57 | H128: 211.93 | I128: 209.92 | J128: 219.22 | K128: 221.23 | L128: 223.87 | M128: 218.6 | N128: 213.95 | O128: 31927000 | P128: 2.70%
A129: 119 | B129: FMCG | C129: MPHASIS | D129: 2021-09-30 | E129: 2857.60 | F129: 2850.35 | G129: 2821.10 | H129: 2784.60 | I129: 2755.35 | J129: 2886.85 | K129: 2916.10 | L129: 2952.60 | M129: 2879.6 | N129: 2813.85 | O129: 1315925 | P129: 17.23%
A130: 120 | B130: Metals | C130: MRF | D130: 2021-09-30 | E130: 79783.60 | F130: 79325.13 | G130: 78770.27 | H130: 77756.93 | I130: 77202.07 | J130: 80338.47 | K130: 80893.33 | L130: 81906.67 | M130: 79880 | N130: 78311.8 | O130: 41690 | P130: -4.05%
A131: 121 | B131: Power | C131: MUTHOOTFIN | D131: 2021-09-30 | E131: 1519.50 | F131: 1513.27 | G131: 1501.68 | H131: 1483.87 | I131: 1472.28 | J131: 1531.08 | K131: 1542.67 | L131: 1560.48 | M131: 1524.85 | N131: 1495.45 | O131: 2903250 | P131: -0.59%
A132: 122 | B132: Oil_Gas | C132: NAM-INDIA | D132: 2021-09-30 | E132: 425.10 | F132: 424.27 | G132: 419.68 | H132: 414.27 | I132: 409.68 | J132: 429.68 | K132: 434.27 | L132: 439.68 | M132: 428.85 | N132: 418.85 | O132: 3940800 | P132: -1.99%
A133: 123 | B133: Textile | C133: NATIONALUM | D133: 2021-09-30 | E133: 90.05 | F133: 88.92 | G133: 87.53 | H133: 85.02 | I133: 83.63 | J133: 91.43 | K133: 92.82 | L133: 95.33 | M133: 90.3 | N133: 86.4 | O133: 90984000 | P133: 2.35%
A134: 124 | B134: Pharma | C134: NAUKRI | D134: 2021-09-30 | E134: 6188.20 | F134: 6136.93 | G134: 6057.47 | H134: 5926.73 | I134: 5847.27 | J134: 6267.67 | K134: 6347.13 | L134: 6477.87 | M134: 6216.4 | N134: 6006.2 | O134: 1076125 | P134: 4.52%
A135: 125 | B135: Oil_Gas | C135: NAVINFLUOR | D135: 2021-09-30 | E135: 4042.90 | F135: 4018.42 | G135: 3942.83 | H135: 3842.77 | I135: 3767.18 | J135: 4118.48 | K135: 4194.07 | L135: 4294.13 | M135: 4094 | N135: 3918.35 | O135: 432225 | P135: 3.17%
A136: 126 | B136: Finance | C136: NESTLEIND | D136: 2021-09-30 | E136: 19543.75 | F136: 19623.65 | G136: 19352.10 | H136: 19160.45 | I136: 18888.90 | J136: 19815.30 | K136: 20086.85 | L136: 20278.50 | M136: 19895.2 | N136: 19432 | O136: 419800 | P136: 4.96%
A137: 127 | B137: Pharma | C137: NMDC | D137: 2021-09-30 | E137: 154.70 | F137: 155.23 | G137: 153.07 | H137: 151.43 | I137: 149.27 | J137: 156.87 | K137: 159.03 | L137: 160.67 | M137: 157.4 | N137: 153.6 | O137: 83917500 | P137: 5.09%
A138: 128 | B138: FMCG | C138: NTPC | D138: 2021-09-30 | E138: 113.20 | F138: 112.98 | G138: 112.32 | H138: 111.43 | I138: 110.77 | J138: 113.87 | K138: 114.53 | L138: 115.42 | M138: 113.65 | N138: 112.1 | O138: 63965400 | P138: 4.26%
A139: 129 | B139: Chemical | C139: OFSS | D139: 2021-09-30 | E139: 4710.60 | F139: 4707.50 | G139: 4633.10 | H139: 4555.60 | I139: 4481.20 | J139: 4785.00 | K139: 4859.40 | L139: 4936.90 | M139: 4781.9 | N139: 4630 | O139: 149000 | P139: 14.84%
A140: 130 | B140: Banking | C140: ONGC | D140: 2021-09-30 | E140: 119.20 | F140: 118.87 | G140: 118.08 | H140: 116.97 | I140: 116.18 | J140: 119.98 | K140: 120.77 | L140: 121.88 | M140: 119.65 | N140: 117.75 | O140: 52129000 | P140: 5.39%
A141: 131 | B141: Power | C141: PAGEIND | D141: 2021-09-30 | E141: 31543.10 | F141: 31490.40 | G141: 31250.80 | H141: 30958.50 | I141: 30718.90 | J141: 31782.70 | K141: 32022.30 | L141: 32314.60 | M141: 31730 | N141: 31198.1 | O141: 84930 | P141: 1.47%
A142: 132 | B142: Media | C142: PEL | D142: 2021-09-30 | E142: 2615.00 | F142: 2611.23 | G142: 2569.77 | H142: 2524.53 | I142: 2483.07 | J142: 2656.47 | K142: 2697.93 | L142: 2743.17 | M142: 2652.7 | N142: 2566 | O142: 2949100 | P142: 0.40%
A143: 133 | B143: Cement | C143: PETRONET | D143: 2021-09-30 | E143: 228.40 | F143: 228.87 | G143: 227.23 | H143: 226.07 | I143: 224.43 | J143: 230.03 | K143: 231.67 | L143: 232.83 | M143: 230.5 | N143: 227.7 | O143: 21342000 | P143: 3.03%
A144: 134 | B144: Banking | C144: PFC | D144: 2021-09-30 | E144: 129.35 | F144: 129.02 | G144: 127.98 | H144: 126.62 | I144: 125.58 | J144: 130.38 | K144: 131.42 | L144: 132.78 | M144: 130.05 | N144: 127.65 | O144: 27435000 | P144: -0.58%
A145: 135 | B145: Power | C145: PFIZER | D145: 2021-09-30 | E145: 5747.70 | F145: 5752.37 | G145: 5714.73 | H145: 5681.77 | I145: 5644.13 | J145: 5785.33 | K145: 5822.97 | L145: 5855.93 | M145: 5790 | N145: 5719.4 | O145: 226000 | P145: 1.01%
A146: 136 | B146: Oil_Gas | C146: PIDILITIND | D146: 2021-09-30 | E146: 2286.95 | F146: 2280.30 | G146: 2266.65 | H146: 2246.35 | I146: 2232.70 | J146: 2300.60 | K146: 2314.25 | L146: 2334.55 | M146: 2293.95 | N146: 2260 | O146: 2707000 | P146: 2.25%
A147: 137 | B147: Metals | C147: PIIND | D147: 2021-09-30 | E147: 3403.05 | F147: 3370.02 | G147: 3309.08 | H147: 3215.12 | I147: 3154.18 | J147: 3463.98 | K147: 3524.92 | L147: 3618.88 | M147: 3430.95 | N147: 3276.05 | O147: 1014000 | P147: 4.46%
A148: 138 | B148: Finance | C148: PNB | D148: 2021-09-30 | E148: 36.80 | F148: 36.90 | G148: 36.35 | H148: 35.90 | I148: 35.35 | J148: 37.35 | K148: 37.90 | L148: 38.35 | M148: 37.45 | N148: 36.45 | O148: 291296000 | P148: 1.32%
A149: 139 | B149: Banking | C149: POLYCAB | D149: 2021-09-30 | E149: 2077.45 | F149: 2084.52 | G149: 2035.03 | H149: 1992.62 | I149: 1943.13 | J149: 2126.93 | K149: 2176.42 | L149: 2218.83 | M149: 2134 | N149: 2042.1 | O149: 437700 | P149: 11.12%
A150: 140 | B150: Cement | C150: POWERGRID | D150: 2021-09-30 | E150: 173.05 | F150: 173.32 | G150: 172.28 | H150: 171.52 | I150: 170.48 | J150: 174.08 | K150: 175.12 | L150: 175.88 | M150: 174.35 | N150: 172.55 | O150: 28019582 | P150: 8.35%
A151: 141 | B151: Capital_Goods | C151: PVR | D151: 2021-09-30 | E151: 1333.30 | F151: 1337.08 | G151: 1317.17 | H151: 1301.03 | I151: 1281.12 | J151: 1353.22 | K151: 1373.13 | L151: 1389.27 | M151: 1357 | N151: 1320.95 | O151: 1773299 | P151: 5.93%
A152: 142 | B152: Textile | C152: RAMCOCEM | D152: 2021-09-30 | E152: 1011.40 | F152: 1006.12 | G152: 996.83 | H152: 982.27 | I152: 972.98 | J152: 1020.68 | K152: 1029.97 | L152: 1044.53 | M152: 1015.4 | N152: 991.55 | O152: 1836850 | P152: 2.03%
A153: 143 | B153: Finance | C153: RBLBANK | D153: 2021-09-30 | E153: 165.90 | F153: 167.03 | G153: 163.42 | H153: 160.93 | I153: 157.32 | J153: 169.52 | K153: 173.13 | L153: 175.62 | M153: 170.65 | N153: 164.55 | O153: 34918900 | P153: 1.59%
A154: 144 | B154: Pharma | C154: RECLTD | D154: 2021-09-30 | E154: 150.35 | F154: 149.73 | G154: 148.67 | H154: 146.98 | I154: 145.92 | J154: 151.42 | K154: 152.48 | L154: 154.17 | M154: 150.8 | N154: 148.05 | O154: 21084000 | P154: 2.03%
A155: 145 | B155: Pharma | C155: RELIANCE | D155: 2021-09-30 | E155: 2265.95 | F155: 2267.55 | G155: 2248.85 | H155: 2231.75 | I155: 2213.05 | J155: 2284.65 | K155: 2303.35 | L155: 2320.45 | M155: 2286.25 | N155: 2250.45 | O155: 32827000 | P155: 1.16%
A156: 146 | B156: Media | C156: SAIL | D156: 2021-09-30 | E156: 120.20 | F156: 120.17 | G156: 118.73 | H156: 117.27 | I156: 115.83 | J156: 121.63 | K156: 123.07 | L156: 124.53 | M156: 121.6 | N156: 118.7 | O156: 157225000 | P156: 2.72%
A157: 147 | B157: Chemical | C157: SBILIFE | D157: 2021-09-30 | E157: 1192.95 | F157: 1187.40 | G157: 1179.80 | H157: 1166.65 | I157: 1159.05 | J157: 1200.55 | K157: 1208.15 | L157: 1221.30 | M157: 1195 | N157: 1174.25 | O157: 6325500 | P157: 3.08%
A158: 148 | B158: FMCG | C158: SBIN | D158: 2021-09-30 | E158: 426.35 | F158: 424.35 | G158: 421.50 | H158: 416.65 | I158: 413.80 | J158: 429.20 | K158: 432.05 | L158: 436.90 | M158: 427.2 | N158: 419.5 | O158: 88144500 | P158: -1.08%
A159: 149 | B159: Automobile | C159: SHREECEM | D159: 2021-09-30 | E159: 28290.10 | F159: 27980.42 | G159: 27510.83 | H159: 26731.57 | I159: 26261.98 | J159: 28759.68 | K159: 29229.27 | L159: 30008.53 | M159: 28450 | N159: 27201.15 | O159: 197625 | P159: -4.84%
A160: 150 | B160: Power | C160: SIEMENS | D160: 2021-09-30 | E160: 2278.80 | F160: 2279.77 | G160: 2261.53 | H160: 2244.27 | I160: 2226.03 | J160: 2297.03 | K160: 2315.27 | L160: 2332.53 | M160: 2298 | N160: 2262.5 | O160: 1851025 | P160: 0.52%
A161: 151 | B161: Metals | C161: SRF | D161: 2021-09-30 | E161: 10156.75 | F161: 10093.72 | G161: 9852.43 | H161: 9548.12 | I161: 9306.83 | J161: 10398.03 | K161: 10639.32 | L161: 10943.63 | M161: 10335 | N161: 9789.4 | O161: 595000 | P161: 4.36%
A162: 152 | B162: Technology | C162: SRTRANSFIN | D162: 2021-09-30 | E162: 1353.10 | F162: 1344.97 | G162: 1331.23 | H162: 1309.37 | I162: 1295.63 | J162: 1366.83 | K162: 1380.57 | L162: 1402.43 | M162: 1358.7 | N162: 1323.1 | O162: 4736000 | P162: -3.37%
A163: 153 | B163: Technology | C163: STAR | D163: 2021-09-30 | E163: 615.95 | F163: 616.72 | G163: 609.23 | H163: 602.52 | I163: 595.03 | J163: 623.43 | K163: 630.92 | L163: 637.63 | M163: 624.2 | N163: 610 | O163: 2049975 | P163: -2.88%
A164: 154 | B164: FMCG | C164: SUNPHARMA | D164: 2021-09-30 | E164: 794.75 | F164: 794.23 | G164: 785.92 | H164: 777.08 | I164: 768.77 | J164: 803.07 | K164: 811.38 | L164: 820.22 | M164: 802.55 | N164: 785.4 | O164: 36519000 | P164: 2.74%
A165: 155 | B165: Pharma | C165: SUNTV | D165: 2021-09-30 | E165: 483.85 | F165: 484.65 | G165: 479.35 | H165: 474.85 | I165: 469.55 | J165: 489.15 | K165: 494.45 | L165: 498.95 | M165: 489.95 | N165: 480.15 | O165: 13291500 | P165: -0.78%
A166: 156 | B166: Power | C166: SYNGENE | D166: 2021-09-30 | E166: 644.95 | F166: 645.88 | G166: 629.37 | H166: 613.78 | I166: 597.27 | J166: 661.47 | K166: 677.98 | L166: 693.57 | M166: 662.4 | N166: 630.3 | O166: 694450 | P166: 109.49%
A167: 157 | B167: Others | C167: TATACHEM | D167: 2021-09-30 | E167: 847.95 | F167: 849.72 | G167: 836.03 | H167: 824.12 | I167: 810.43 | J167: 861.63 | K167: 875.32 | L167: 887.23 | M167: 863.4 | N167: 837.8 | O167: 11121000 | P167: 1.84%
A168: 158 | B168: Automobile | C168: TATACONSUM | D168: 2021-09-30 | E168: 865.70 | F168: 863.77 | G168: 859.53 | H168: 853.37 | I168: 849.13 | J168: 869.93 | K168: 874.17 | L168: 880.33 | M168: 868 | N168: 857.6 | O168: 7862400 | P168: -0.38%
A169: 159 | B169: FMCG | C169: TATAMOTORS | D169: 2021-09-30 | E169: 288.50 | F169: 289.47 | G169: 285.73 | H169: 282.97 | I169: 279.23 | J169: 292.23 | K169: 295.97 | L169: 298.73 | M169: 293.2 | N169: 286.7 | O169: 110819400 | P169: 7.77%
A170: 160 | B170: Cement | C170: TATAPOWER | D170: 2021-09-30 | E170: 129.60 | F170: 129.90 | G170: 128.30 | H170: 127.00 | I170: 125.40 | J170: 131.20 | K170: 132.80 | L170: 134.10 | M170: 131.5 | N170: 128.6 | O170: 123855750 | P170: 1.45%
A171: 161 | B171: Chemical | C171: TATASTEEL | D171: 2021-09-30 | E171: 1450.75 | F171: 1448.98 | G171: 1436.87 | H171: 1422.98 | I171: 1410.87 | J171: 1462.87 | K171: 1474.98 | L171: 1488.87 | M171: 1461.1 | N171: 1435.1 | O171: 41217350 | P171: 1.54%
A172: 162 | B172: Metals | C172: TCS | D172: 2021-09-30 | E172: 3789.55 | F172: 3768.52 | G172: 3731.03 | H172: 3672.52 | I172: 3635.03 | J172: 3827.03 | K172: 3864.52 | L172: 3923.03 | M172: 3806 | N172: 3710 | O172: 10399500 | P172: 5.06%
A173: 163 | B173: Capital_Goods | C173: TECHM | D173: 2021-09-30 | E173: 1450.35 | F173: 1439.25 | G173: 1424.25 | H173: 1398.15 | I173: 1383.15 | J173: 1465.35 | K173: 1480.35 | L173: 1506.45 | M173: 1454.25 | N173: 1413.15 | O173: 9830400 | P173: 4.13%
A174: 164 | B174: Technology | C174: TITAN | D174: 2021-09-30 | E174: 1923.45 | F174: 1910.12 | G174: 1893.28 | H174: 1863.12 | I174: 1846.28 | J174: 1940.28 | K174: 1957.12 | L174: 1987.28 | M174: 1926.95 | N174: 1879.95 | O174: 5131875 | P174: 4.94%
A175: 165 | B175: Media | C175: TORNTPHARM | D175: 2021-09-30 | E175: 3115.55 | F175: 3121.37 | G175: 3076.73 | H175: 3037.92 | I175: 2993.28 | J175: 3160.18 | K175: 3204.82 | L175: 3243.63 | M175: 3166 | N175: 3082.55 | O175: 804750 | P175: 0.75%
A176: 166 | B176: Finance | C176: TORNTPOWER | D176: 2021-09-30 | E176: 483.75 | F176: 487.00 | G176: 477.50 | H176: 471.25 | I176: 461.75 | J176: 493.25 | K176: 502.75 | L176: 509.00 | M176: 496.5 | N176: 480.75 | O176: 3625500 | P176: -0.02422285022
A177: 167 | B177: Others | C177: TRENT | D177: 2021-09-30 | E177: 1009.55 | F177: 1001.37 | G177: 986.23 | H177: 962.92 | I177: 947.78 | J177: 1024.68 | K177: 1039.82 | L177: 1063.13 | M177: 1016.5 | N177: 978.05 | O177: 1382575 | P177: -0.009865005192
A178: 168 | B178: Others | C178: TVSMOTOR | D178: 2021-09-30 | E178: 525.45 | F178: 526.55 | G178: 517.10 | H178: 508.75 | I178: 499.30 | J178: 534.90 | K178: 544.35 | L178: 552.70 | M178: 536 | N178: 518.2 | O178: 6298600 | P178: 0.06233766234
A179: 169 | B179: Others | C179: UBL | D179: 2021-09-30 | E179: 1478.05 | F179: 1480.68 | G179: 1467.37 | H179: 1456.68 | I179: 1443.37 | J179: 1491.37 | K179: 1504.68 | L179: 1515.37 | M179: 1494 | N179: 1470 | O179: 1371300 | P179: -0.01804511278
A180: 170 | B180: Others | C180: ULTRACEMCO | D180: 2021-09-30 | E180: 7842.05 | F180: 7795.32 | G180: 7722.78 | H180: 7603.52 | I180: 7530.98 | J180: 7914.58 | K180: 7987.12 | L180: 8106.38 | M180: 7867.85 | N180: 7676.05 | O180: 1760900 | P180: -0.0005108411852
A181: 171 | B181: Pharma | C181: UPL | D181: 2021-09-30 | E181: 742.35 | F181: 742.53 | G181: 736.47 | H181: 730.58 | I181: 724.52 | J181: 748.42 | K181: 754.48 | L181: 760.37 | M181: 748.6 | N181: 736.65 | O181: 23004800 | P181: -0.02737166099
A182: 172 | B182: Others | C182: VEDL | D182: 2021-09-30 | E182: 302.55 | F182: 300.80 | G182: 296.05 | H182: 289.55 | I182: 284.80 | J182: 307.30 | K182: 312.05 | L182: 318.55 | M182: 305.55 | N182: 294.3 | O182: 135842000 | P182: 0.0328572102
A183: 173 | B183: Technology | C183: VOLTAS | D183: 2021-09-30 | E183: 999.05 | F183: 997.18 | G183: 991.37 | H183: 983.68 | I183: 977.87 | J183: 1004.87 | K183: 1010.68 | L183: 1018.37 | M183: 1003 | N183: 989.5 | O183: 3167500 | P183: -0.01308615049
A184: 174 | B184: Others | C184: WIPRO | D184: 2021-09-30 | E184: 641.05 | F184: 638.10 | G184: 632.30 | H184: 623.55 | I184: 617.75 | J184: 646.85 | K184: 652.65 | L184: 661.40 | M184: 643.9 | N184: 629.35 | O184: 27110400 | P184: -0.01808066759
A185: 175 | B185: Pharma | C185: ZEEL | D185: 2021-09-30 | E185: 169.80 | F185: 170.18 | G185: 168.27 | H185: 166.73 | I185: 164.82 | J185: 171.72 | K185: 173.63 | L185: 175.17 | M185: 172.1 | N185: 168.65 | O185: 70845000 | P185: 0.00280266678
A203: Pivot Point: This is trigger point for intra day buy/sell based on the price range of the previous day
A204: As per the tool,the trader should take BUY position just above Pivot and keep the stop loss of pivot point and the first target would be Resistance 1(R1)
A205: If R1 is crossed then R2 becomes the next target with stop loss of at R1
A206: Similarly if price goes below pivot point then the trader should sell and keep a stop loss of pivot point and the first target would be S1
A207: If S1 is crossed then S2 becomes the next target with stop loss of at S1
A209: Disclaimer:
A210: This document has been prepared by the Retail Research Desk of Asit C Mehta
A211: Investment Intermediates Ltd. and is meant for use of the recipient only
A212: and is not for circulation. This document is not to be reported or
A213: copied or made available to others. It should not be considered to be
A214: taken as an offer to sell or a solicitation to buy any security. The
A215: information contained herein is from sources believed reliable. We do
A216: not represent that it is accurate or complete and it should not be
A217: relied upon as such. We may from time to time have positions in and buy
A218: and sell securities referred to herein

Sheet Cash Intra
M5: Back to Main Page
A6: FOR INTRA DAY TRADING | K6: =Main!B10 -> 2021-09-01
A8: Sr.no | C8: CLOSE RATE | D8: Pivot Point | E8: Supports | H8: Resistances
E9: S1 | F9: S2 | G9: S3 | H9: R1 | I9: R2 | J9: R3 | K9: HIGH | L9: LOW | M9: Total Trade Quanity in Lakhs
A10: 1 | B10: Nifty 50 | C10: 17132.2 | D10: 17067.18 | E10: 16980.87 | F10: 16829.53 | G10: 16743.22 | H10: 17218.52 | I10: 17304.83 | J10: 17456.17 | K10: 17153.5 | L10: 16915.85
A11: 2 | B11: Nifty Bank | C11: 36424.6 | D11: 36397.87 | E11: 36242.93 | F11: 36061.27 | G11: 35906.33 | H11: 36579.53 | I11: 36734.47 | J11: 36916.13 | K11: 36552.8 | L11: 36216.2
A12: 3 | B12: Nifty CPSE | C12: 2041.25 | D12: 2036.47 | E12: 2028.88 | F12: 2016.52 | G12: 2008.93 | H12: 2048.83 | I12: 2056.42 | J12: 2068.78 | K12: 2044.05 | L12: 2024.1
A13: 4 | B13: Nifty Infra | C13: 4709.85 | D13: 4686.25 | E13: 4657.55 | F13: 4605.25 | G13: 4576.55 | H13: 4738.55 | I13: 4767.25 | J13: 4819.55 | K13: 4714.95 | L13: 4633.95
A14: 5 | B14: Nifty IT | C14: 34570.2 | D14: 34431.48 | E14: 34182.32 | F14: 33794.43 | G14: 33545.27 | H14: 34819.37 | I14: 35068.53 | J14: 35456.42 | K14: 34680.65 | L14: 34043.6
A15: 6 | B15: Nifty PSE | C15: 3646.4 | D15: 3636.55 | E15: 3621.95 | F15: 3597.50 | G15: 3582.90 | H15: 3661.00 | I15: 3675.60 | J15: 3700.05 | K15: 3651.15 | L15: 3612.1
A16: 7 | B16: Nifty Midcap 50 | C16: 7502.95 | D16: 7493.83 | E16: 7445.22 | F16: 7387.48 | G16: 7338.87 | H16: 7551.57 | I16: 7600.18 | J16: 7657.92 | K16: 7542.45 | L16: 7436.1
A17: 8 | B17: ACC | C17: 2413.2 | D17: 2399.47 | E17: 2379.23 | F17: 2345.27 | G17: 2325.03 | H17: 2433.43 | I17: 2453.67 | J17: 2487.63 | K17: 2419.7 | L17: 2365.5 | M17: 5.80467
A18: 9 | B18: AUBANK | C18: 1130.75 | D18: 1163.03 | E18: 1018.87 | F18: 906.98 | G18: 762.82 | H18: 1274.92 | I18: 1419.08 | J18: 1530.97 | K18: 1307.2 | L18: 1051.15 | M18: 130.40293
A19: 10 | B19: AARTIIND | C19: 938.1 | D19: 936.97 | E19: 930.13 | F19: 922.17 | G19: 915.33 | H19: 944.93 | I19: 951.77 | J19: 959.73 | K19: 943.8 | L19: 929 | M19: 5.24749
A20: 11 | B20: ABBOTINDIA | C20: 19272.1 | D20: 19247.23 | E20: 19096.47 | F20: 18920.83 | G20: 18770.07 | H20: 19422.87 | I20: 19573.63 | J20: 19749.27 | K20: 19398 | L20: 19071.6 | M20: 0.07133
A21: 12 | B21: ADANIENT | C21: 1587.6 | D21: 1565.75 | E21: 1534.65 | F21: 1481.70 | G21: 1450.60 | H21: 1618.70 | I21: 1649.80 | J21: 1702.75 | K21: 1596.85 | L21: 1512.8 | M21: 72.34384
A22: 13 | B22: ADANIGREEN | C22: 1068.35 | D22: 1069.45 | E22: 1038.90 | F22: 1009.45 | G22: 978.90 | H22: 1098.90 | I22: 1129.45 | J22: 1158.90 | K22: 1100 | L22: 1040 | M22: 27.37522
A23: 14 | B23: ADANIPORTS | C23: 748.3 | D23: 743.47 | E23: 732.93 | F23: 717.57 | G23: 707.03 | H23: 758.83 | I23: 769.37 | J23: 784.73 | K23: 754 | L23: 728.1 | M23: 154.19587
A24: 15 | B24: ATGL | C24: 1452.5 | D24: 1419.35 | E24: 1386.15 | F24: 1319.80 | G24: 1286.60 | H24: 1485.70 | I24: 1518.90 | J24: 1585.25 | K24: 1452.55 | L24: 1353 | M24: 11.60761
A25: 16 | B25: ADANITRANS | C25: 1580.6 | D25: 1560.50 | E25: 1540.40 | F25: 1500.20 | G25: 1480.10 | H25: 1600.70 | I25: 1620.80 | J25: 1661.00 | K25: 1580.6 | L25: 1520.3 | M25: 5.45234
A26: 17 | B26: ABCAPITAL | C26: 107.85 | D26: 108.35 | E26: 106.70 | F26: 105.55 | G26: 103.90 | H26: 109.50 | I26: 111.15 | J26: 112.30 | K26: 110 | L26: 107.2 | M26: 16.55331
A27: 18 | B27: ABFRL | C27: 208.1 | D27: 208.77 | E27: 206.73 | F27: 205.37 | G27: 203.33 | H27: 210.13 | I27: 212.17 | J27: 213.53 | K27: 210.8 | L27: 207.4 | M27: 14.72771
A28: 19 | B28: AJANTPHARM | C28: 2227.8 | D28: 2233.15 | E28: 2211.85 | F28: 2195.90 | G28: 2174.60 | H28: 2249.10 | I28: 2270.40 | J28: 2286.35 | K28: 2254.45 | L28: 2217.2 | M28: 1.06173
A29: 20 | B29: APLLTD | C29: 751.35 | D29: 750.93 | E29: 747.07 | F29: 742.78 | G29: 738.92 | H29: 755.22 | I29: 759.08 | J29: 763.37 | K29: 754.8 | L29: 746.65 | M29: 1.68262
A30: 21 | B30: ALKEM | C30: 3878.6 | D30: 3891.20 | E30: 3857.40 | F30: 3836.20 | G30: 3802.40 | H30: 3912.40 | I30: 3946.20 | J30: 3967.40 | K30: 3925 | L30: 3870 | M30: 0.90295
A31: 22 | B31: AMARAJABAT | C31: 699.25 | D31: 698.15 | E31: 694.30 | F31: 689.35 | G31: 685.50 | H31: 703.10 | I31: 706.95 | J31: 711.90 | K31: 702 | L31: 693.2 | M31: 11.22577
A32: 23 | B32: AMBUJACEM | C32: 421.05 | D32: 418.98 | E32: 415.52 | F32: 409.98 | G32: 406.52 | H32: 424.52 | I32: 427.98 | J32: 433.52 | K32: 422.45 | L32: 413.45 | M32: 63.42929
A33: 24 | B33: APOLLOHOSP | C33: 4969.55 | D33: 4927.22 | E33: 4808.43 | F33: 4647.32 | G33: 4528.53 | H33: 5088.33 | I33: 5207.12 | J33: 5368.23 | K33: 5046 | L33: 4766.1 | M33: 28.83159
A34: 25 | B34: APOLLOTYRE | C34: 212.95 | D34: 213.40 | E34: 210.85 | F34: 208.75 | G34: 206.20 | H34: 215.50 | I34: 218.05 | J34: 220.15 | K34: 215.95 | L34: 211.3 | M34: 32.04602
A35: 26 | B35: ASHOKLEY | C35: 122.75 | D35: 121.85 | E35: 120.55 | F35: 118.35 | G35: 117.05 | H35: 124.05 | I35: 125.35 | J35: 127.55 | K35: 123.15 | L35: 119.65 | M35: 200.46747
A36: 27 | B36: ASIANPAINT | C36: 3201.35 | D36: 3171.47 | E36: 3132.93 | F36: 3064.52 | G36: 3025.98 | H36: 3239.88 | I36: 3278.42 | J36: 3346.83 | K36: 3210 | L36: 3103.05 | M36: 22.8329
A37: 28 | B37: AUROPHARMA | C37: 727.3 | D37: 723.17 | E37: 717.33 | F37: 707.37 | G37: 701.53 | H37: 733.13 | I37: 738.97 | J37: 748.93 | K37: 729 | L37: 713.2 | M37: 38.77654
A38: 29 | B38: DMART | C38: 3954.8 | D38: 3935.23 | E38: 3890.72 | F38: 3826.63 | G38: 3782.12 | H38: 3999.32 | I38: 4043.83 | J38: 4107.92 | K38: 3979.75 | L38: 3871.15 | M38: 3.78858
A39: 30 | B39: AXISBANK | C39: 786.5 | D39: 784.63 | E39: 780.27 | F39: 774.03 | G39: 769.67 | H39: 790.87 | I39: 795.23 | J39: 801.47 | K39: 789 | L39: 778.4 | M39: 121.1487
A40: 31 | B40: BAJAJ-AUTO | C40: 3727.85 | D40: 3724.15 | E40: 3709.30 | F40: 3690.75 | G40: 3675.90 | H40: 3742.70 | I40: 3757.55 | J40: 3776.10 | K40: 3739 | L40: 3705.6 | M40: 6.93952
A41: 32 | B41: BAJFINANCE | C41: 7524.5 | D41: 7417.77 | E41: 7236.73 | F41: 6948.97 | G41: 6767.93 | H41: 7705.53 | I41: 7886.57 | J41: 8174.33 | K41: 7598.8 | L41: 7130 | M41: 29.46438
A42: 33 | B42: BAJAJFINSV | C42: 17148.75 | D42: 16925.67 | E42: 16651.33 | F42: 16153.92 | G42: 15879.58 | H42: 17423.08 | I42: 17697.42 | J42: 18194.83 | K42: 17200 | L42: 16428.25 | M42: 6.52127
A43: 34 | B43: BAJAJHLDNG | C43: 4356.75 | D43: 4323.45 | E43: 4249.90 | F43: 4143.05 | G43: 4069.50 | H43: 4430.30 | I43: 4503.85 | J43: 4610.70 | K43: 4397 | L43: 4216.6 | M43: 0.4745
A44: 35 | B44: BALKRISIND | C44: 2294.9 | D44: 2283.28 | E44: 2262.62 | F44: 2230.33 | G44: 2209.67 | H44: 2315.57 | I44: 2336.23 | J44: 2368.52 | K44: 2303.95 | L44: 2251 | M44: 4.79245
A45: 36 | B45: BANDHANBNK | C45: 285 | D45: 285.82 | E45: 282.63 | F45: 280.27 | G45: 277.08 | H45: 288.18 | I45: 291.37 | J45: 293.73 | K45: 289 | L45: 283.45 | M45: 67.56768
A46: 37 | B46: BANKBARODA | C46: 77.35 | D46: 77.27 | E46: 76.08 | F46: 74.82 | G46: 73.63 | H46: 78.53 | I46: 79.72 | J46: 80.98 | K46: 78.45 | L46: 76 | M46: 265.01208
A47: 38 | B47: BANKINDIA | C47: 66.35 | D47: 66.93 | E47: 65.42 | F47: 64.48 | G47: 62.97 | H47: 67.87 | I47: 69.38 | J47: 70.32 | K47: 68.45 | L47: 66 | M47: 37.40761
A48: 39 | B48: BATAINDIA | C48: 1771.8 | D48: 1716.30 | E48: 1647.60 | F48: 1523.40 | G48: 1454.70 | H48: 1840.50 | I48: 1909.20 | J48: 2033.40 | K48: 1785 | L48: 1592.1 | M48: 6.38971
A49: 40 | B49: BERGEPAINT | C49: 820.8 | D49: 817.30 | E49: 811.40 | F49: 802.00 | G49: 796.10 | H49: 826.70 | I49: 832.60 | J49: 842.00 | K49: 823.2 | L49: 807.9 | M49: 12.19916
A50: 41 | B50: BEL | C50: 186.65 | D50: 185.90 | E50: 184.40 | F50: 182.15 | G50: 180.65 | H50: 188.15 | I50: 189.65 | J50: 191.90 | K50: 187.4 | L50: 183.65 | M50: 72.01234
A51: 42 | B51: BHARATFORG | C51: 767.2 | D51: 760.88 | E51: 752.37 | F51: 737.53 | G51: 729.02 | H51: 775.72 | I51: 784.23 | J51: 799.07 | K51: 769.4 | L51: 746.05 | M51: 34.04792
A52: 43 | B52: BHEL | C52: 52.55 | D52: 52.97 | E52: 51.73 | F52: 50.92 | G52: 49.68 | H52: 53.78 | I52: 55.02 | J52: 55.83 | K52: 54.2 | L52: 52.15 | M52: 302.51959
A53: 44 | B53: BPCL | C53: 471.65 | D53: 471.95 | E53: 468.05 | F53: 464.45 | G53: 460.55 | H53: 475.55 | I53: 479.45 | J53: 483.05 | K53: 475.85 | L53: 468.35 | M53: 90.01236
A54: 45 | B54: BHARTIARTL | C54: 664.05 | D54: 652.38 | E54: 636.67 | F54: 609.28 | G54: 593.57 | H54: 679.77 | I54: 695.48 | J54: 722.87 | K54: 668.1 | L54: 625 | M54: 596.6182
A55: 46 | B55: BIOCON | C55: 358.85 | D55: 356.98 | E55: 353.87 | F55: 348.88 | G55: 345.77 | H55: 361.97 | I55: 365.08 | J55: 370.07 | K55: 360.1 | L55: 352 | M55: 21.0552
A56: 47 | B56: BBTC | C56: 1189.3 | D56: 1204.57 | E56: 1167.13 | F56: 1144.97 | G56: 1107.53 | H56: 1226.73 | I56: 1264.17 | J56: 1286.33 | K56: 1242 | L56: 1182.4 | M56: 2.59919
A57: 48 | B57: BOSCHLTD | C57: 13859.2 | D57: 13865.68 | E57: 13808.42 | F57: 13757.63 | G57: 13700.37 | H57: 13916.47 | I57: 13973.73 | J57: 14024.52 | K57: 13922.95 | L57: 13814.9 | M57: 0.21977
A58: 49 | B58: BRITANNIA | C58: 3997.5 | D58: 3994.93 | E58: 3962.57 | F58: 3927.63 | G58: 3895.27 | H58: 4029.87 | I58: 4062.23 | J58: 4097.17 | K58: 4027.3 | L58: 3960 | M58: 6.88613
A59: 50 | B59: CESC | C59: 803.85 | D59: 800.57 | E59: 788.38 | F59: 772.92 | G59: 760.73 | H59: 816.03 | I59: 828.22 | J59: 843.68 | K59: 812.75 | L59: 785.1 | M59: 10.07718
A60: 51 | B60: CADILAHC | C60: 554.15 | D60: 553.83 | E60: 549.82 | F60: 545.48 | G60: 541.47 | H60: 558.17 | I60: 562.18 | J60: 566.52 | K60: 557.85 | L60: 549.5 | M60: 20.15528
A61: 52 | B61: CANBK | C61: 159.1 | D61: 158.43 | E61: 154.37 | F61: 149.63 | G61: 145.57 | H61: 163.17 | I61: 167.23 | J61: 171.97 | K61: 162.5 | L61: 153.7 | M61: 326.68471
A62: 53 | B62: CASTROLIND | C62: 134 | D62: 133.95 | E62: 133.10 | F62: 132.20 | G62: 131.35 | H62: 134.85 | I62: 135.70 | J62: 136.60 | K62: 134.8 | L62: 133.05 | M62: 4.47418
A63: 54 | B63: CHOLAFIN | C63: 554.05 | D63: 549.83 | E63: 542.22 | F63: 530.38 | G63: 522.77 | H63: 561.67 | I63: 569.28 | J63: 581.12 | K63: 557.45 | L63: 538 | M63: 52.52586
A64: 55 | B64: CIPLA | C64: 947.8 | D64: 942.60 | E64: 935.50 | F64: 923.20 | G64: 916.10 | H64: 954.90 | I64: 962.00 | J64: 974.30 | K64: 949.7 | L64: 930.3 | M64: 24.63088
A65: 56 | B65: CUB | C65: 151.75 | D65: 151.72 | E65: 149.88 | F65: 148.02 | G65: 146.18 | H65: 153.58 | I65: 155.42 | J65: 157.28 | K65: 153.55 | L65: 149.85 | M65: 18.32677
A66: 57 | B66: COALINDIA | C66: 145.85 | D66: 145.08 | E66: 144.02 | F66: 142.18 | G66: 141.12 | H66: 146.92 | I66: 147.98 | J66: 149.82 | K66: 146.15 | L66: 143.25 | M66: 143.01855
A67: 58 | B67: COFORGE | C67: 5208.75 | D67: 5222.28 | E67: 5107.97 | F67: 5007.18 | G67: 4892.87 | H67: 5323.07 | I67: 5437.38 | J67: 5538.17 | K67: 5336.6 | L67: 5121.5 | M67: 6.50782
A68: 59 | B68: COLPAL | C68: 1693.3 | D68: 1694.45 | E68: 1678.85 | F68: 1664.40 | G68: 1648.80 | H68: 1708.90 | I68: 1724.50 | J68: 1738.95 | K68: 1710.05 | L68: 1680 | M68: 15.86467
A69: 60 | B69: CONCOR | C69: 679.55 | D69: 682.22 | E69: 670.43 | F69: 661.32 | G69: 649.53 | H69: 691.33 | I69: 703.12 | J69: 712.23 | K69: 694 | L69: 673.1 | M69: 22.01566
A70: 61 | B70: COROMANDEL | C70: 792.9 | D70: 789.65 | E70: 782.35 | F70: 771.80 | G70: 764.50 | H70: 800.20 | I70: 807.50 | J70: 818.05 | K70: 796.95 | L70: 779.1 | M70: 6.31601
A71: 62 | B71: CROMPTON | C71: 473.45 | D71: 473.70 | E71: 469.80 | F71: 466.15 | G71: 462.25 | H71: 477.35 | I71: 481.25 | J71: 484.90 | K71: 477.6 | L71: 470.05 | M71: 5.87128
A72: 63 | B72: CUMMINSIND | C72: 999.15 | D72: 1000.72 | E72: 992.93 | F72: 986.72 | G72: 978.93 | H72: 1006.93 | I72: 1014.72 | J72: 1020.93 | K72: 1008.5 | L72: 994.5 | M72: 4.13161
A73: 64 | B73: DLF | C73: 320.55 | D73: 320.68 | E73: 317.47 | F73: 314.38 | G73: 311.17 | H73: 323.77 | I73: 326.98 | J73: 330.07 | K73: 323.9 | L73: 317.6 | M73: 97.26975
A74: 65 | B74: DABUR | C74: 621.5 | D74: 618.45 | E74: 613.05 | F74: 604.60 | G74: 599.20 | H74: 626.90 | I74: 632.30 | J74: 640.75 | K74: 623.85 | L74: 610 | M74: 30.26655
A75: 66 | B75: DALBHARAT | C75: 2199.8 | D75: 2188.68 | E75: 2162.97 | F75: 2126.13 | G75: 2100.42 | H75: 2225.52 | I75: 2251.23 | J75: 2288.07 | K75: 2214.4 | L75: 2151.85 | M75: 2.44376
A76: 67 | B76: DEEPAKNTR | C76: 2283.6 | D76: 2282.32 | E76: 2252.38 | F76: 2221.17 | G76: 2191.23 | H76: 2313.53 | I76: 2343.47 | J76: 2374.68 | K76: 2312.25 | L76: 2251.1 | M76: 17.21286
A77: 68 | B77: DHANI | C77: 199.4 | D77: 198.68 | E77: 192.42 | F77: 185.43 | G77: 179.17 | H77: 205.67 | I77: 211.93 | J77: 218.92 | K77: 204.95 | L77: 191.7 | M77: 9.96707
A78: 69 | B78: DIVISLAB | C78: 5173.6 | D78: 5167.55 | E78: 5116.10 | F78: 5058.60 | G78: 5007.15 | H78: 5225.05 | I78: 5276.50 | J78: 5334.00 | K78: 5219 | L78: 5110.05 | M78: 8.96587
A79: 70 | B79: DIXON | C79: 4160.4 | D79: 4162.78 | E79: 4102.67 | F79: 4044.93 | G79: 3984.82 | H79: 4220.52 | I79: 4280.63 | J79: 4338.37 | K79: 4222.9 | L79: 4105.05 | M79: 2.41465
A80: 71 | B80: LALPATHLAB | C80: 4051.55 | D80: 4022.55 | E80: 3962.10 | F80: 3872.65 | G80: 3812.20 | H80: 4112.00 | I80: 4172.45 | J80: 4261.90 | K80: 4083 | L80: 3933.1 | M80: 3.35279
A81: 72 | B81: DRREDDY | C81: 4704.05 | D81: 4692.10 | E81: 4662.45 | F81: 4620.85 | G81: 4591.20 | H81: 4733.70 | I81: 4763.35 | J81: 4804.95 | K81: 4721.75 | L81: 4650.5 | M81: 6.45527
A82: 73 | B82: EICHERMOT | C82: 2679.25 | D82: 2640.72 | E82: 2583.53 | F82: 2487.82 | G82: 2430.63 | H82: 2736.43 | I82: 2793.62 | J82: 2889.33 | K82: 2697.9 | L82: 2545 | M82: 23.81821
A83: 74 | B83: EMAMILTD | C83: 597.2 | D83: 600.23 | E83: 589.47 | F83: 581.73 | G83: 570.97 | H83: 607.97 | I83: 618.73 | J83: 626.47 | K83: 611 | L83: 592.5 | M83: 7.63439
A84: 75 | B84: ENDURANCE | C84: 1662.85 | D84: 1671.62 | E84: 1640.28 | F84: 1617.72 | G84: 1586.38 | H84: 1694.18 | I84: 1725.52 | J84: 1748.08 | K84: 1702.95 | L84: 1649.05 | M84: 0.53829
A85: 76 | B85: ESCORTS | C85: 1346.35 | D85: 1354.60 | E85: 1332.75 | F85: 1319.15 | G85: 1297.30 | H85: 1368.20 | I85: 1390.05 | J85: 1403.65 | K85: 1376.45 | L85: 1341 | M85: 8.27925
A86: 77 | B86: EXIDEIND | C86: 161.15 | D86: 161.53 | E86: 159.67 | F86: 158.18 | G86: 156.32 | H86: 163.02 | I86: 164.88 | J86: 166.37 | K86: 163.4 | L86: 160.05 | M86: 52.77497
A87: 78 | B87: FEDERALBNK | C87: 81.25 | D87: 81.03 | E87: 80.32 | F87: 79.38 | G87: 78.67 | H87: 81.97 | I87: 82.68 | J87: 83.62 | K87: 81.75 | L87: 80.1 | M87: 133.56776
A88: 79 | B88: FORTIS | C88: 290.5 | D88: 290.93 | E88: 285.12 | F88: 279.73 | G88: 273.92 | H88: 296.32 | I88: 302.13 | J88: 307.52 | K88: 296.75 | L88: 285.55 | M88: 57.12361
A89: 80 | B89: GAIL | C89: 146.15 | D89: 145.87 | E89: 144.08 | F89: 142.02 | G89: 140.23 | H89: 147.93 | I89: 149.72 | J89: 151.78 | K89: 147.65 | L89: 143.8 | M89: 140.09836
A90: 81 | B90: GMRINFRA | C90: 29.05 | D90: 29.17 | E90: 28.78 | F90: 28.52 | G90: 28.13 | H90: 29.43 | I90: 29.82 | J90: 30.08 | K90: 29.55 | L90: 28.9 | M90: 49.17548
A91: 82 | B91: GLAND | C91: 3893.9 | D91: 3907.97 | E91: 3865.93 | F91: 3837.97 | G91: 3795.93 | H91: 3935.93 | I91: 3977.97 | J91: 4005.93 | K91: 3950 | L91: 3880 | M91: 0.886
A92: 83 | B92: GLENMARK | C92: 530.3 | D92: 528.78 | E92: 524.77 | F92: 519.23 | G92: 515.22 | H92: 534.32 | I92: 538.33 | J92: 543.87 | K92: 532.8 | L92: 523.25 | M92: 17.21956
A93: 84 | B93: GODREJAGRO | C93: 632 | D93: 635.43 | E93: 626.57 | F93: 621.13 | G93: 612.27 | H93: 640.87 | I93: 649.73 | J93: 655.17 | K93: 644.3 | L93: 630 | M93: 1.15172
A94: 85 | B94: GODREJCP | C94: 1099.3 | D94: 1089.50 | E94: 1079.00 | F94: 1058.70 | G94: 1048.20 | H94: 1109.80 | I94: 1120.30 | J94: 1140.60 | K94: 1100 | L94: 1069.2 | M94: 19.93712
A95: 86 | B95: GODREJIND | C95: 558.8 | D95: 561.27 | E95: 553.53 | F95: 548.27 | G95: 540.53 | H95: 566.53 | I95: 574.27 | J95: 579.53 | K95: 569 | L95: 556 | M95: 3.52459
A96: 87 | B96: GODREJPROP | C96: 1489 | D96: 1486.75 | E96: 1458.00 | F96: 1427.00 | G96: 1398.25 | H96: 1517.75 | I96: 1546.50 | J96: 1577.50 | K96: 1515.5 | L96: 1455.75 | M96: 5.54834
A97: 88 | B97: GRASIM | C97: 1500.4 | D97: 1490.82 | E97: 1477.23 | F97: 1454.07 | G97: 1440.48 | H97: 1513.98 | I97: 1527.57 | J97: 1550.73 | K97: 1504.4 | L97: 1467.65 | M97: 16.56264
A98: 89 | B98: GUJGASLTD | C98: 722.8 | D98: 721.92 | E98: 710.08 | F98: 697.37 | G98: 685.53 | H98: 734.63 | I98: 746.47 | J98: 759.18 | K98: 733.75 | L98: 709.2 | M98: 17.27498
A99: 90 | B99: GSPL | C99: 350.65 | D99: 350.08 | E99: 344.17 | F99: 337.68 | G99: 331.77 | H99: 356.57 | I99: 362.48 | J99: 368.97 | K99: 356 | L99: 343.6 | M99: 6.64818
A100: 91 | B100: HCLTECH | C100: 1182.3 | D100: 1179.25 | E100: 1165.10 | F100: 1147.90 | G100: 1133.75 | H100: 1196.45 | I100: 1210.60 | J100: 1227.80 | K100: 1193.4 | L100: 1162.05 | M100: 71.99002
A101: 92 | B101: HDFCAMC | C101: 3074.3 | D101: 3067.10 | E101: 3050.20 | F101: 3026.10 | G101: 3009.20 | H101: 3091.20 | I101: 3108.10 | J101: 3132.20 | K101: 3084 | L101: 3043 | M101: 3.98418
A102: 93 | B102: HDFCBANK | C102: 1581.4 | D102: 1575.65 | E102: 1567.95 | F102: 1554.50 | G102: 1546.80 | H102: 1589.10 | I102: 1596.80 | J102: 1610.25 | K102: 1583.35 | L102: 1562.2 | M102: 60.31288
A103: 94 | B103: HDFCLIFE | C103: 717.75 | D103: 713.62 | E103: 708.23 | F103: 698.72 | G103: 693.33 | H103: 723.13 | I103: 728.52 | J103: 738.03 | K103: 719 | L103: 704.1 | M103: 38.5451
A104: 95 | B104: HAVELLS | C104: 1268.45 | D104: 1270.23 | E104: 1252.77 | F104: 1237.08 | G104: 1219.62 | H104: 1285.92 | I104: 1303.38 | J104: 1319.07 | K104: 1287.7 | L104: 1254.55 | M104: 48.63922
A105: 96 | B105: HEROMOTOCO | C105: 2741.85 | D105: 2729.65 | E105: 2713.30 | F105: 2684.75 | G105: 2668.40 | H105: 2758.20 | I105: 2774.55 | J105: 2803.10 | K105: 2746 | L105: 2701.1 | M105: 7.08031
A106: 97 | B106: HINDALCO | C106: 468.3 | D106: 461.42 | E106: 451.68 | F106: 435.07 | G106: 425.33 | H106: 478.03 | I106: 487.77 | J106: 504.38 | K106: 471.15 | L106: 444.8 | M106: 208.47646
A107: 98 | B107: HAL | C107: 1375.8 | D107: 1386.35 | E107: 1355.45 | F107: 1335.10 | G107: 1304.20 | H107: 1406.70 | I107: 1437.60 | J107: 1457.95 | K107: 1417.25 | L107: 1366 | M107: 12.53854
A108: 99 | B108: HINDPETRO | C108: 266.6 | D108: 264.13 | E108: 259.97 | F108: 253.33 | G108: 249.17 | H108: 270.77 | I108: 274.93 | J108: 281.57 | K108: 268.3 | L108: 257.5 | M108: 58.62402
A109: 100 | B109: HINDUNILVR | C109: 2724.1 | D109: 2712.40 | E109: 2687.35 | F109: 2650.60 | G109: 2625.55 | H109: 2749.15 | I109: 2774.20 | J109: 2810.95 | K109: 2737.45 | L109: 2675.65 | M109: 25.35891
A110: 101 | B110: HINDZINC | C110: 321.75 | D110: 322.23 | E110: 318.57 | F110: 315.38 | G110: 311.72 | H110: 325.42 | I110: 329.08 | J110: 332.27 | K110: 325.9 | L110: 319.05 | M110: 8.45627
A111: 102 | B111: HDFC | C111: 2798.5 | D111: 2783.28 | E111: 2754.57 | F111: 2710.63 | G111: 2681.92 | H111: 2827.22 | I111: 2855.93 | J111: 2899.87 | K111: 2812 | L111: 2739.35 | M111: 49.33523
A112: 103 | B112: ICICIBANK | C112: 719.05 | D112: 716.10 | E112: 712.30 | F112: 705.55 | G112: 701.75 | H112: 722.85 | I112: 726.65 | J112: 733.40 | K112: 719.9 | L112: 709.35 | M112: 197.60246
A113: 104 | B113: ICICIGI | C113: 1594.6 | D113: 1588.30 | E113: 1574.95 | F113: 1555.30 | G113: 1541.95 | H113: 1607.95 | I113: 1621.30 | J113: 1640.95 | K113: 1601.65 | L113: 1568.65 | M113: 7.14442
A114: 105 | B114: ICICIPRULI | C114: 659.1 | D114: 657.93 | E114: 649.87 | F114: 640.63 | G114: 632.57 | H114: 667.17 | I114: 675.23 | J114: 684.47 | K114: 666 | L114: 648.7 | M114: 75.83164
A115: 106 | B115: ISEC | C115: 721.6 | D115: 724.30 | E115: 714.40 | F115: 707.20 | G115: 697.30 | H115: 731.50 | I115: 741.40 | J115: 748.60 | K115: 734.2 | L115: 717.1 | M115: 2.5936
A116: 107 | B116: IDFCFIRSTB | C116: 42.95 | D116: 43.03 | E116: 42.37 | F116: 41.78 | G116: 41.12 | H116: 43.62 | I116: 44.28 | J116: 44.87 | K116: 43.7 | L116: 42.45 | M116: 414.96912
A117: 108 | B117: ITC | C117: 211.3 | D117: 210.05 | E117: 208.50 | F117: 205.70 | G117: 204.15 | H117: 212.85 | I117: 214.40 | J117: 217.20 | K117: 211.6 | L117: 207.25 | M117: 258.0843
A118: 109 | B118: IBULHSGFIN | C118: 224 | D118: 224.82 | E118: 220.73 | F118: 217.47 | G118: 213.38 | H118: 228.08 | I118: 232.17 | J118: 235.43 | K118: 228.9 | L118: 221.55 | M118: 114.80181
A119: 110 | B119: INDIAMART | C119: 7848.2 | D119: 7865.73 | E119: 7732.47 | F119: 7616.73 | G119: 7483.47 | H119: 7981.47 | I119: 8114.73 | J119: 8230.47 | K119: 7999 | L119: 7750 | M119: 3.18931
A120: 111 | B120: INDHOTEL | C120: 140.4 | D120: 140.70 | E120: 139.40 | F120: 138.40 | G120: 137.10 | H120: 141.70 | I120: 143.00 | J120: 144.00 | K120: 142 | L120: 139.7 | M120: 8.2992
A121: 112 | B121: IOC | C121: 110.85 | D121: 109.85 | E121: 108.40 | F121: 105.95 | G121: 104.50 | H121: 112.30 | I121: 113.75 | J121: 116.20 | K121: 111.3 | L121: 107.4 | M121: 223.23605
A122: 113 | B122: IRCTC | C122: 2752 | D122: 2737.50 | E122: 2715.50 | F122: 2679.00 | G122: 2657.00 | H122: 2774.00 | I122: 2796.00 | J122: 2832.50 | K122: 2759.5 | L122: 2701 | M122: 20.50223
A123: 114 | B123: IGL | C123: 545.85 | D123: 542.63 | E123: 533.42 | F123: 520.98 | G123: 511.77 | H123: 555.07 | I123: 564.28 | J123: 576.72 | K123: 551.85 | L123: 530.2 | M123: 42.55913
A124: 115 | B124: INDUSTOWER | C124: 215.35 | D124: 215.82 | E124: 213.63 | F124: 211.92 | G124: 209.73 | H124: 217.53 | I124: 219.72 | J124: 221.43 | K124: 218 | L124: 214.1 | M124: 64.5462
A125: 116 | B125: INDUSINDBK | C125: 992.4 | D125: 997.40 | E125: 985.00 | F125: 977.60 | G125: 965.20 | H125: 1004.80 | I125: 1017.20 | J125: 1024.60 | K125: 1009.8 | L125: 990 | M125: 31.38652
A126: 117 | B126: NAUKRI | C126: 6182.35 | D126: 6130.67 | E126: 6044.13 | F126: 5905.92 | G126: 5819.38 | H126: 6268.88 | I126: 6355.42 | J126: 6493.63 | K126: 6217.2 | L126: 5992.45 | M126: 6.06196
A127: 118 | B127: INFY | C127: 1706.45 | D127: 1702.43 | E127: 1689.87 | F127: 1673.28 | G127: 1660.72 | H127: 1719.02 | I127: 1731.58 | J127: 1748.17 | K127: 1715 | L127: 1685.85 | M127: 122.55438
A128: 119 | B128: INDIGO | C128: 1904.15 | D128: 1878.42 | E128: 1832.78 | F128: 1761.42 | G128: 1715.78 | H128: 1949.78 | I128: 1995.42 | J128: 2066.78 | K128: 1924.05 | L128: 1807.05 | M128: 16.84036
A129: 120 | B129: IPCALAB | C129: 2575.3 | D129: 2556.87 | E129: 2449.43 | F129: 2323.57 | G129: 2216.13 | H129: 2682.73 | I129: 2790.17 | J129: 2916.03 | K129: 2664.3 | L129: 2431 | M129: 8.97311
A130: 121 | B130: JSWENERGY | C130: 264.65 | D130: 259.28 | E130: 253.77 | F130: 242.88 | G130: 237.37 | H130: 270.17 | I130: 275.68 | J130: 286.57 | K130: 264.8 | L130: 248.4 | M130: 22.62055
A131: 122 | B131: JSWSTEEL | C131: 687.6 | D131: 686.83 | E131: 681.22 | F131: 674.83 | G131: 669.22 | H131: 693.22 | I131: 698.83 | J131: 705.22 | K131: 692.45 | L131: 680.45 | M131: 53.99215
A132: 123 | B132: JINDALSTEL | C132: 376.95 | D132: 378.63 | E132: 374.27 | F132: 371.58 | G132: 367.22 | H132: 381.32 | I132: 385.68 | J132: 388.37 | K132: 383 | L132: 375.95 | M132: 104.14277
A133: 124 | B133: JUBLFOOD | C133: 3995 | D133: 3965.95 | E133: 3915.75 | F133: 3836.50 | G133: 3786.30 | H133: 4045.20 | I133: 4095.40 | J133: 4174.65 | K133: 4016.15 | L133: 3886.7 | M133: 7.22322
A134: 125 | B134: KOTAKBANK | C134: 1753.7 | D134: 1750.78 | E134: 1741.97 | F134: 1730.23 | G134: 1721.42 | H134: 1762.52 | I134: 1771.33 | J134: 1783.07 | K134: 1759.6 | L134: 1739.05 | M134: 44.92609
A135: 126 | B135: L&TFH | C135: 83.3 | D135: 83.43 | E135: 82.22 | F135: 81.13 | G135: 79.92 | H135: 84.52 | I135: 85.73 | J135: 86.82 | K135: 84.65 | L135: 82.35 | M135: 67.05841
A136: 127 | B136: LTTS | C136: 3919.55 | D136: 3927.53 | E136: 3891.12 | F136: 3862.68 | G136: 3826.27 | H136: 3955.97 | I136: 3992.38 | J136: 4020.82 | K136: 3963.95 | L136: 3899.1 | M136: 1.99497
A137: 128 | B137: LICHSGFIN | C137: 402.25 | D137: 401.15 | E137: 395.80 | F137: 389.35 | G137: 384.00 | H137: 407.60 | I137: 412.95 | J137: 419.40 | K137: 406.5 | L137: 394.7 | M137: 51.54473
A138: 129 | B138: LTI | C138: 5312.45 | D138: 5310.82 | E138: 5246.63 | F138: 5180.82 | G138: 5116.63 | H138: 5376.63 | I138: 5440.82 | J138: 5506.63 | K138: 5375 | L138: 5245 | M138: 2.82387
A139: 130 | B139: LT | C139: 1672.2 | D139: 1664.40 | E139: 1652.80 | F139: 1633.40 | G139: 1621.80 | H139: 1683.80 | I139: 1695.40 | J139: 1714.80 | K139: 1676 | L139: 1645 | M139: 32.64644
A140: 131 | B140: LAURUSLABS | C140: 666.6 | D140: 662.72 | E140: 654.93 | F140: 643.27 | G140: 635.48 | H140: 674.38 | I140: 682.17 | J140: 693.83 | K140: 670.5 | L140: 651.05 | M140: 28.36964
A141: 132 | B141: LUPIN | C141: 957.85 | D141: 955.03 | E141: 950.17 | F141: 942.48 | G141: 937.62 | H141: 962.72 | I141: 967.58 | J141: 975.27 | K141: 959.9 | L141: 947.35 | M141: 12.86167
A142: 133 | B142: MRF | C142: 79742.75 | D142: 79285.20 | E142: 78715.35 | F142: 77687.95 | G142: 77118.10 | H142: 80312.60 | I142: 80882.45 | J142: 81909.85 | K142: 79855.05 | L142: 78257.8 | M142: 0.14859
A143: 134 | B143: MGL | C143: 1146.65 | D143: 1144.30 | E143: 1136.90 | F143: 1127.15 | G143: 1119.75 | H143: 1154.05 | I143: 1161.45 | J143: 1171.20 | K143: 1151.7 | L143: 1134.55 | M143: 2.44169
A144: 135 | B144: M&MFIN | C144: 160.15 | D144: 159.85 | E144: 158.50 | F144: 156.85 | G144: 155.50 | H144: 161.50 | I144: 162.85 | J144: 164.50 | K144: 161.2 | L144: 158.2 | M144: 80.68293
A145: 136 | B145: M&M | C145: 793.3 | D145: 790.13 | E145: 784.47 | F145: 775.63 | G145: 769.97 | H145: 798.97 | I145: 804.63 | J145: 813.47 | K145: 795.8 | L145: 781.3 | M145: 33.24467
A146: 137 | B146: MANAPPURAM | C146: 160.4 | D146: 160.75 | E146: 159.05 | F146: 157.70 | G146: 156.00 | H146: 162.10 | I146: 163.80 | J146: 165.15 | K146: 162.45 | L146: 159.4 | M146: 54.65973
A147: 138 | B147: MARICO | C147: 544.45 | D147: 538.82 | E147: 530.68 | F147: 516.92 | G147: 508.78 | H147: 552.58 | I147: 560.72 | J147: 574.48 | K147: 546.95 | L147: 525.05 | M147: 50.14916
A148: 139 | B148: MARUTI | C148: 6846.1 | D148: 6827.22 | E148: 6782.43 | F148: 6718.77 | G148: 6673.98 | H148: 6890.88 | I148: 6935.67 | J148: 6999.33 | K148: 6872 | L148: 6763.55 | M148: 9.38326
A149: 140 | B149: MFSL | C149: 1088.15 | D149: 1080.48 | E149: 1066.97 | F149: 1045.78 | G149: 1032.27 | H149: 1101.67 | I149: 1115.18 | J149: 1136.37 | K149: 1094 | L149: 1059.3 | M149: 9.13776
A150: 141 | B150: MINDTREE | C150: 3627.25 | D150: 3630.78 | E150: 3583.57 | F150: 3539.88 | G150: 3492.67 | H150: 3674.47 | I150: 3721.68 | J150: 3765.37 | K150: 3678 | L150: 3587.1 | M150: 10.26256
A151: 142 | B151: MPHASIS | C151: 2898.1 | D151: 2897.35 | E151: 2871.00 | F151: 2843.90 | G151: 2817.55 | H151: 2924.45 | I151: 2950.80 | J151: 2977.90 | K151: 2923.7 | L151: 2870.25 | M151: 9.91789
A152: 143 | B152: MUTHOOTFIN | C152: 1514 | D152: 1508.53 | E152: 1495.47 | F152: 1476.93 | G152: 1463.87 | H152: 1527.07 | I152: 1540.13 | J152: 1558.67 | K152: 1521.6 | L152: 1490 | M152: 7.7206
A153: 144 | B153: NATCOPHARM | C153: 945.3 | D153: 948.37 | E153: 936.98 | F153: 928.67 | G153: 917.28 | H153: 956.68 | I153: 968.07 | J153: 976.38 | K153: 959.75 | L153: 940.05 | M153: 1.89887
A154: 145 | B154: NMDC | C154: 154.05 | D154: 154.60 | E154: 152.45 | F154: 150.85 | G154: 148.70 | H154: 156.20 | I154: 158.35 | J154: 159.95 | K154: 156.75 | L154: 153 | M154: 127.14721
A155: 146 | B155: NTPC | C155: 115.95 | D155: 115.67 | E155: 114.98 | F155: 114.02 | G155: 113.33 | H155: 116.63 | I155: 117.32 | J155: 118.28 | K155: 116.35 | L155: 114.7 | M155: 113.86659
A156: 147 | B156: NAVINFLUOR | C156: 4027.6 | D156: 4003.83 | E156: 3929.07 | F156: 3830.53 | G156: 3755.77 | H156: 4102.37 | I156: 4177.13 | J156: 4275.67 | K156: 4078.6 | L156: 3905.3 | M156: 5.66577
A157: 148 | B157: NESTLEIND | C157: 19467.75 | D157: 19552.57 | E157: 19265.18 | F157: 19062.62 | G157: 18775.23 | H157: 19755.13 | I157: 20042.52 | J157: 20245.08 | K157: 19839.95 | L157: 19350 | M157: 2.2737
A158: 149 | B158: NAM-INDIA | C158: 424.1 | D158: 423.18 | E158: 418.42 | F158: 412.73 | G158: 407.97 | H158: 428.87 | I158: 433.63 | J158: 439.32 | K158: 427.95 | L158: 417.5 | M158: 13.67796
A159: 150 | B159: OBEROIRLTY | C159: 703.6 | D159: 701.07 | E159: 691.13 | F159: 678.67 | G159: 668.73 | H159: 713.53 | I159: 723.47 | J159: 735.93 | K159: 711 | L159: 688.6 | M159: 2.51207
A160: 151 | B160: ONGC | C160: 120.55 | D160: 120.20 | E160: 119.40 | F160: 118.25 | G160: 117.45 | H160: 121.35 | I160: 122.15 | J160: 123.30 | K160: 121 | L160: 119.05 | M160: 133.7629
A161: 152 | B161: OIL | C161: 182 | D161: 180.73 | E161: 174.47 | F161: 166.93 | G161: 160.67 | H161: 188.27 | I161: 194.53 | J161: 202.07 | K161: 187 | L161: 173.2 | M161: 20.25284
A162: 153 | B162: PIIND | C162: 3394 | D162: 3364.13 | E162: 3301.87 | F162: 3209.73 | G162: 3147.47 | H162: 3456.27 | I162: 3518.53 | J162: 3610.67 | K162: 3426.4 | L162: 3272 | M162: 5.49536
A163: 154 | B163: PAGEIND | C163: 31499.1 | D163: 31409.37 | E163: 31189.73 | F163: 30880.37 | G163: 30660.73 | H163: 31718.73 | I163: 31938.37 | J163: 32247.73 | K163: 31629 | L163: 31100 | M163: 0.23477
A164: 155 | B164: PETRONET | C164: 227.6 | D164: 228.30 | E164: 226.10 | F164: 224.60 | G164: 222.40 | H164: 229.80 | I164: 232.00 | J164: 233.50 | K164: 230.5 | L164: 226.8 | M164: 71.68834
A165: 156 | B165: PFIZER | C165: 5725.05 | D165: 5731.52 | E165: 5688.53 | F165: 5652.02 | G165: 5609.03 | H165: 5768.03 | I165: 5811.02 | J165: 5847.53 | K165: 5774.5 | L165: 5695 | M165: 0.32942
A166: 157 | B166: PIDILITIND | C166: 2280.35 | D166: 2273.12 | E166: 2256.23 | F166: 2232.12 | G166: 2215.23 | H166: 2297.23 | I166: 2314.12 | J166: 2338.23 | K166: 2290 | L166: 2249 | M166: 6.44194
A167: 158 | B167: PEL | C167: 2606.65 | D167: 2604.23 | E167: 2564.42 | F167: 2522.18 | G167: 2482.37 | H167: 2646.47 | I167: 2686.28 | J167: 2728.52 | K167: 2644.05 | L167: 2562 | M167: 10.19155
A168: 159 | B168: POLYCAB | C168: 2067.5 | D168: 2076.93 | E168: 2029.57 | F168: 1991.63 | G168: 1944.27 | H168: 2114.87 | I168: 2162.23 | J168: 2200.17 | K168: 2124.3 | L168: 2039 | M168: 14.44108
A169: 160 | B169: PFC | C169: 129.05 | D169: 128.70 | E169: 127.65 | F169: 126.25 | G169: 125.20 | H169: 130.10 | I169: 131.15 | J169: 132.55 | K169: 129.75 | L169: 127.3 | M169: 46.97193
A170: 161 | B170: POWERGRID | C170: 175.35 | D170: 175.78 | E170: 174.52 | F170: 173.68 | G170: 172.42 | H170: 176.62 | I170: 177.88 | J170: 178.72 | K170: 177.05 | L170: 174.95 | M170: 324.3625
A171: 162 | B171: PRESTIGE | C171: 352.65 | D171: 352.13 | E171: 349.92 | F171: 347.18 | G171: 344.97 | H171: 354.87 | I171: 357.08 | J171: 359.82 | K171: 354.35 | L171: 349.4 | M171: 8.61054
A172: 163 | B172: PGHH | C172: 13873.6 | D172: 13832.93 | E172: 13740.87 | F172: 13608.13 | G172: 13516.07 | H172: 13965.67 | I172: 14057.73 | J172: 14190.47 | K172: 13925 | L172: 13700.2 | M172: 0.05588
A173: 164 | B173: PNB | C173: 36.65 | D173: 36.77 | E173: 36.23 | F173: 35.82 | G173: 35.28 | H173: 37.18 | I173: 37.72 | J173: 38.13 | K173: 37.3 | L173: 36.35 | M173: 566.41931
A174: 165 | B174: RBLBANK | C174: 165.5 | D174: 166.65 | E174: 163.30 | F174: 161.10 | G174: 157.75 | H174: 168.85 | I174: 172.20 | J174: 174.40 | K174: 170 | L174: 164.45 | M174: 72.27276
A175: 166 | B175: RECLTD | C175: 151.7 | D175: 151.02 | E175: 149.93 | F175: 148.17 | G175: 147.08 | H175: 152.78 | I175: 153.87 | J175: 155.63 | K175: 152.1 | L175: 149.25 | M175: 43.78579
A176: 167 | B176: RELIANCE | C176: 2258.15 | D176: 2261.38 | E176: 2239.02 | F176: 2219.88 | G176: 2197.52 | H176: 2280.52 | I176: 2302.88 | J176: 2322.02 | K176: 2283.75 | L176: 2242.25 | M176: 122.23037
A177: 168 | B177: SBICARD | C177: 1140.55 | D177: 1127.28 | E177: 1093.62 | F177: 1046.68 | G177: 1013.02 | H177: 1174.22 | I177: 1207.88 | J177: 1254.82 | K177: 1160.95 | L177: 1080.35 | M177: 33.48741
A178: 169 | B178: SBILIFE | C178: 1192.05 | D178: 1186.07 | E178: 1177.63 | F178: 1163.22 | G178: 1154.78 | H178: 1200.48 | I178: 1208.92 | J178: 1223.33 | K178: 1194.5 | L178: 1171.65 | M178: 17.19768
A179: 170 | B179: SRF | C179: 10139.75 | D179: 10086.58 | E179: 9828.17 | F179: 9516.58 | G179: 9258.17 | H179: 10398.17 | I179: 10656.58 | J179: 10968.17 | K179: 10345 | L179: 9775 | M179: 9.72455
A180: 171 | B180: SANOFI | C180: 9013.8 | D180: 8974.40 | E180: 8858.80 | F180: 8703.80 | G180: 8588.20 | H180: 9129.40 | I180: 9245.00 | J180: 9400.00 | K180: 9090 | L180: 8819.4 | M180: 0.27381
A181: 172 | B181: SHREECEM | C181: 28287.9 | D181: 27935.22 | E181: 27401.43 | F181: 26514.97 | G181: 25981.18 | H181: 28821.68 | I181: 29355.47 | J181: 30241.93 | K181: 28469 | L181: 27048.75 | M181: 1.02061
A182: 173 | B182: SRTRANSFIN | C182: 1352.7 | D182: 1343.40 | E182: 1329.80 | F182: 1306.90 | G182: 1293.30 | H182: 1366.30 | I182: 1379.90 | J182: 1402.80 | K182: 1357 | L182: 1320.5 | M182: 15.76383
A183: 174 | B183: SIEMENS | C183: 2272.4 | D183: 2272.27 | E183: 2256.13 | F183: 2239.87 | G183: 2223.73 | H183: 2288.53 | I183: 2304.67 | J183: 2320.93 | K183: 2288.4 | L183: 2256 | M183: 3.39959
A184: 175 | B184: SBIN | C184: 426.05 | D184: 423.92 | E184: 420.83 | F184: 415.62 | G184: 412.53 | H184: 429.13 | I184: 432.22 | J184: 437.43 | K184: 427 | L184: 418.7 | M184: 262.62421
A185: 176 | B185: SAIL | C185: 121.6 | D185: 121.52 | E185: 120.13 | F185: 118.67 | G185: 117.28 | H185: 122.98 | I185: 124.37 | J185: 125.83 | K185: 122.9 | L185: 120.05 | M185: 319.84469
A186: 177 | B186: SUNPHARMA | C186: 794.05 | D186: 792.92 | E186: 784.83 | F186: 775.62 | G186: 767.53 | H186: 802.13 | I186: 810.22 | J186: 819.43 | K186: 801 | L186: 783.7 | M186: 74.35465
A187: 178 | B187: SUNTV | C187: 482.55 | D187: 483.60 | E187: 478.00 | F187: 473.45 | G187: 467.85 | H187: 488.15 | I187: 493.75 | J187: 498.30 | K187: 489.2 | L187: 479.05 | M187: 11.34382
A188: 179 | B188: SYNGENE | C188: 641.35 | D188: 642.97 | E188: 626.93 | F188: 612.52 | G188: 596.48 | H188: 657.38 | I188: 673.42 | J188: 687.83 | K188: 659 | L188: 628.55 | M188: 18.6515
A189: 180 | B189: TVSMOTOR | C189: 525.15 | D189: 526.78 | E189: 516.57 | F189: 507.98 | G189: 497.77 | H189: 535.37 | I189: 545.58 | J189: 554.17 | K189: 537 | L189: 518.2 | M189: 43.09112
A190: 181 | B190: TATACHEM | C190: 844.65 | D190: 847.37 | E190: 833.93 | F190: 823.22 | G190: 809.78 | H190: 858.08 | I190: 871.52 | J190: 882.23 | K190: 860.8 | L190: 836.65 | M190: 45.38227
A191: 182 | B191: TCS | C191: 3786.45 | D191: 3764.67 | E191: 3725.23 | F191: 3664.02 | G191: 3624.58 | H191: 3825.88 | I191: 3865.32 | J191: 3926.53 | K191: 3804.1 | L191: 3703.45 | M191: 32.0748
A192: 183 | B192: TATACONSUM | C192: 864.95 | D192: 863.03 | E192: 858.37 | F192: 851.78 | G192: 847.12 | H192: 869.62 | I192: 874.28 | J192: 880.87 | K192: 867.7 | L192: 856.45 | M192: 21.32008
A193: 184 | B193: TATAELXSI | C193: 4770.95 | D193: 4793.65 | E193: 4727.30 | F193: 4683.65 | G193: 4617.30 | H193: 4837.30 | I193: 4903.65 | J193: 4947.30 | K193: 4860 | L193: 4750 | M193: 1.37157
A194: 185 | B194: TATAMOTORS | C194: 287.3 | D194: 288.45 | E194: 284.95 | F194: 282.60 | G194: 279.10 | H194: 290.80 | I194: 294.30 | J194: 296.65 | K194: 291.95 | L194: 286.1 | M194: 369.51003
A195: 186 | B195: TATAPOWER | C195: 129.05 | D195: 129.33 | E195: 127.97 | F195: 126.88 | G195: 125.52 | H195: 130.42 | I195: 131.78 | J195: 132.87 | K195: 130.7 | L195: 128.25 | M195: 243.01446
A196: 187 | B196: TATASTEEL | C196: 1450.25 | D196: 1447.08 | E196: 1435.17 | F196: 1420.08 | G196: 1408.17 | H196: 1462.17 | I196: 1474.08 | J196: 1489.17 | K196: 1459 | L196: 1432 | M196: 247.52108
A197: 188 | B197: TECHM | C197: 1447.65 | D197: 1436.20 | E197: 1418.40 | F197: 1389.15 | G197: 1371.35 | H197: 1465.45 | I197: 1483.25 | J197: 1512.50 | K197: 1454 | L197: 1406.95 | M197: 63.92991
A198: 189 | B198: RAMCOCEM | C198: 1008.8 | D198: 1003.88 | E198: 995.87 | F198: 982.93 | G198: 974.92 | H198: 1016.82 | I198: 1024.83 | J198: 1037.77 | K198: 1011.9 | L198: 990.95 | M198: 3.25284
A199: 190 | B199: TITAN | C199: 1921.6 | D199: 1907.38 | E199: 1889.77 | F199: 1857.93 | G199: 1840.32 | H199: 1939.22 | I199: 1956.83 | J199: 1988.67 | K199: 1925 | L199: 1875.55 | M199: 18.16071
A200: 191 | B200: TORNTPHARM | C200: 3105.9 | D200: 3111.40 | E200: 3064.90 | F200: 3023.90 | G200: 2977.40 | H200: 3152.40 | I200: 3198.90 | J200: 3239.90 | K200: 3157.9 | L200: 3070.4 | M200: 3.03454
A201: 192 | B201: TORNTPOWER | C201: 481.5 | D201: 484.97 | E201: 475.03 | F201: 468.57 | G201: 458.63 | H201: 491.43 | I201: 501.37 | J201: 507.83 | K201: 494.9 | L201: 478.5 | M201: 9.34369
A202: 193 | B202: TRENT | C202: 1006.9 | D202: 999.28 | E202: 983.62 | F202: 960.33 | G202: 944.67 | H202: 1022.57 | I202: 1038.23 | J202: 1061.52 | K202: 1014.95 | L202: 976 | M202: 9.6866
A203: 194 | B203: UPL | C203: 741.25 | D203: 741.35 | E203: 735.35 | F203: 729.45 | G203: 723.45 | H203: 747.25 | I203: 753.25 | J203: 759.15 | K203: 747.35 | L203: 735.45 | M203: 30.74791
A204: 195 | B204: ULTRACEMCO | C204: 7832.45 | D204: 7786.37 | E204: 7712.73 | F204: 7593.02 | G204: 7519.38 | H204: 7906.08 | I204: 7979.72 | J204: 8099.43 | K204: 7860 | L204: 7666.65 | M204: 4.75968
A205: 196 | B205: UNIONBANK | C205: 35.4 | D205: 35.45 | E205: 34.55 | F205: 33.70 | G205: 32.80 | H205: 36.30 | I205: 37.20 | J205: 38.05 | K205: 36.35 | L205: 34.6 | M205: 84.84467
... 29 more rows

Sheet MidCap Intra
L5: Back To Main Page
A6: FOR INTRA DAY TRADING | K6: =Main!B10 -> 2021-09-01
A9: Sr.no | B9: Scrip | C9: CLOSE RATE | D9: Pivot Point | E9: Supports | H9: Resistances
E10: S1 | F10: S2 | G10: S3 | H10: R1 | I10: R2 | J10: R3 | K10: HIGH | L10: LOW | M10: Total Trade Quanity in Lakhs
A11: 1 | B11: 3MINDIA | C11: 24391.45 | D11: 24109.92 | E11: 23381.53 | F11: 22371.62 | G11: 21643.23 | H11: 25119.83 | I11: 25848.22 | J11: 26858.13 | K11: 24838.3 | L11: 23100 | M11: 0.16209
A12: 2 | B12: ABB | C12: 1895.75 | D12: 1902.25 | E12: 1879.50 | F12: 1863.25 | G12: 1840.50 | H12: 1918.50 | I12: 1941.25 | J12: 1957.50 | K12: 1925 | L12: 1886 | M12: 1.49686
A13: 3 | B13: POWERINDIA | C13: 2136.65 | D13: 2151.85 | E13: 2105.80 | F13: 2074.95 | G13: 2028.90 | H13: 2182.70 | I13: 2228.75 | J13: 2259.60 | K13: 2197.9 | L13: 2121 | M13: 0.41082
A14: 4 | B14: ACC | C14: 2413.2 | D14: 2399.47 | E14: 2379.23 | F14: 2345.27 | G14: 2325.03 | H14: 2433.43 | I14: 2453.67 | J14: 2487.63 | K14: 2419.7 | L14: 2365.5 | M14: 5.80467
A15: 5 | B15: AIAENG | C15: 2021.5 | D15: 2015.47 | E15: 1974.03 | F15: 1926.57 | G15: 1885.13 | H15: 2062.93 | I15: 2104.37 | J15: 2151.83 | K15: 2056.9 | L15: 1968 | M15: 1.19019
A16: 6 | B16: APLAPOLLO | C16: 1660.1 | D16: 1653.35 | E16: 1634.50 | F16: 1608.90 | G16: 1590.05 | H16: 1678.95 | I16: 1697.80 | J16: 1723.40 | K16: 1672.2 | L16: 1627.75 | M16: 1.68735
A17: 7 | B17: AUBANK | C17: 1130.75 | D17: 1163.03 | E17: 1018.87 | F17: 906.98 | G17: 762.82 | H17: 1274.92 | I17: 1419.08 | J17: 1530.97 | K17: 1307.2 | L17: 1051.15 | M17: 130.40293
A18: 8 | B18: AARTIDRUGS | C18: 616.15 | D18: 616.62 | E18: 608.43 | F18: 600.72 | G18: 592.53 | H18: 624.33 | I18: 632.52 | J18: 640.23 | K18: 624.8 | L18: 608.9 | M18: 1.92117
A19: 9 | B19: AARTIIND | C19: 938.1 | D19: 936.97 | E19: 930.13 | F19: 922.17 | G19: 915.33 | H19: 944.93 | I19: 951.77 | J19: 959.73 | K19: 943.8 | L19: 929 | M19: 5.24749
A20: 10 | B20: AAVAS | C20: 2409.75 | D20: 2417.92 | E20: 2366.83 | F20: 2323.92 | G20: 2272.83 | H20: 2460.83 | I20: 2511.92 | J20: 2554.83 | K20: 2469 | L20: 2375 | M20: 1.22598
A21: 11 | B21: ABBOTINDIA | C21: 19272.1 | D21: 19247.23 | E21: 19096.47 | F21: 18920.83 | G21: 18770.07 | H21: 19422.87 | I21: 19573.63 | J21: 19749.27 | K21: 19398 | L21: 19071.6 | M21: 0.07133
A22: 12 | B22: ADANIENT | C22: 1587.6 | D22: 1565.75 | E22: 1534.65 | F22: 1481.70 | G22: 1450.60 | H22: 1618.70 | I22: 1649.80 | J22: 1702.75 | K22: 1596.85 | L22: 1512.8 | M22: 72.34384
A23: 13 | B23: ADANIGREEN | C23: 1068.35 | D23: 1069.45 | E23: 1038.90 | F23: 1009.45 | G23: 978.90 | H23: 1098.90 | I23: 1129.45 | J23: 1158.90 | K23: 1100 | L23: 1040 | M23: 27.37522
A24: 14 | B24: ADANIPORTS | C24: 748.3 | D24: 743.47 | E24: 732.93 | F24: 717.57 | G24: 707.03 | H24: 758.83 | I24: 769.37 | J24: 784.73 | K24: 754 | L24: 728.1 | M24: 154.19587
A25: 15 | B25: ATGL | C25: 1452.5 | D25: 1419.35 | E25: 1386.15 | F25: 1319.80 | G25: 1286.60 | H25: 1485.70 | I25: 1518.90 | J25: 1585.25 | K25: 1452.55 | L25: 1353 | M25: 11.60761
A26: 16 | B26: ADANITRANS | C26: 1580.6 | D26: 1560.50 | E26: 1540.40 | F26: 1500.20 | G26: 1480.10 | H26: 1600.70 | I26: 1620.80 | J26: 1661.00 | K26: 1580.6 | L26: 1520.3 | M26: 5.45234
A27: 17 | B27: ABCAPITAL | C27: 107.85 | D27: 108.35 | E27: 106.70 | F27: 105.55 | G27: 103.90 | H27: 109.50 | I27: 111.15 | J27: 112.30 | K27: 110 | L27: 107.2 | M27: 16.55331
A28: 18 | B28: ABFRL | C28: 208.1 | D28: 208.77 | E28: 206.73 | F28: 205.37 | G28: 203.33 | H28: 210.13 | I28: 212.17 | J28: 213.53 | K28: 210.8 | L28: 207.4 | M28: 14.72771
A29: 19 | B29: ADVENZYMES | C29: 381.35 | D29: 380.75 | E29: 376.60 | F29: 371.85 | G29: 367.70 | H29: 385.50 | I29: 389.65 | J29: 394.40 | K29: 384.9 | L29: 376 | M29: 2.58595
A30: 20 | B30: AEGISCHEM | C30: 266.25 | D30: 268.58 | E30: 263.17 | F30: 260.08 | G30: 254.67 | H30: 271.67 | I30: 277.08 | J30: 280.17 | K30: 274 | L30: 265.5 | M30: 4.48466
A31: 21 | B31: AFFLE | C31: 4759.4 | D31: 4724.98 | E31: 4639.97 | F31: 4520.53 | G31: 4435.52 | H31: 4844.42 | I31: 4929.43 | J31: 5048.87 | K31: 4810 | L31: 4605.55 | M31: 1.14903
A32: 22 | B32: AJANTPHARM | C32: 2227.8 | D32: 2233.15 | E32: 2211.85 | F32: 2195.90 | G32: 2174.60 | H32: 2249.10 | I32: 2270.40 | J32: 2286.35 | K32: 2254.45 | L32: 2217.2 | M32: 1.06173
A33: 23 | B33: AKZOINDIA | C33: 2211.45 | D33: 2208.98 | E33: 2198.57 | F33: 2185.68 | G33: 2175.27 | H33: 2221.87 | I33: 2232.28 | J33: 2245.17 | K33: 2219.4 | L33: 2196.1 | M33: 0.60639
A34: 24 | B34: ALEMBICLTD | C34: 104.55 | D34: 104.78 | E34: 103.77 | F34: 102.98 | G34: 101.97 | H34: 105.57 | I34: 106.58 | J34: 107.37 | K34: 105.8 | L34: 104 | M34: 1.66194
A35: 25 | B35: APLLTD | C35: 751.35 | D35: 750.93 | E35: 747.07 | F35: 742.78 | G35: 738.92 | H35: 755.22 | I35: 759.08 | J35: 763.37 | K35: 754.8 | L35: 746.65 | M35: 1.68262
A36: 26 | B36: ALKEM | C36: 3878.6 | D36: 3891.20 | E36: 3857.40 | F36: 3836.20 | G36: 3802.40 | H36: 3912.40 | I36: 3946.20 | J36: 3967.40 | K36: 3925 | L36: 3870 | M36: 0.90295
A37: 27 | B37: ALKYLAMINE | C37: 4277.15 | D37: 4295.35 | E37: 4211.70 | F37: 4146.25 | G37: 4062.60 | H37: 4360.80 | I37: 4444.45 | J37: 4509.90 | K37: 4379 | L37: 4229.9 | M37: 1.46119
A38: 28 | B38: ALOKINDS | C38: 22.15 | D38: 22.23 | E38: 21.87 | F38: 21.58 | G38: 21.22 | H38: 22.52 | I38: 22.88 | J38: 23.17 | K38: 22.6 | L38: 21.95 | M38: 35.02513
A39: 29 | B39: AMARAJABAT | C39: 699.25 | D39: 698.15 | E39: 694.30 | F39: 689.35 | G39: 685.50 | H39: 703.10 | I39: 706.95 | J39: 711.90 | K39: 702 | L39: 693.2 | M39: 11.22577
A40: 30 | B40: AMBER | C40: 2894.9 | D40: 2893.38 | E40: 2872.92 | F40: 2850.93 | G40: 2830.47 | H40: 2915.37 | I40: 2935.83 | J40: 2957.82 | K40: 2913.85 | L40: 2871.4 | M40: 0.20587
A41: 31 | B41: AMBUJACEM | C41: 421.05 | D41: 418.98 | E41: 415.52 | F41: 409.98 | G41: 406.52 | H41: 424.52 | I41: 427.98 | J41: 433.52 | K41: 422.45 | L41: 413.45 | M41: 63.42929
A42: 32 | B42: ANGELBRKG | C42: 1207.4 | D42: 1211.12 | E42: 1173.58 | F42: 1139.77 | G42: 1102.23 | H42: 1244.93 | I42: 1282.47 | J42: 1316.28 | K42: 1248.65 | L42: 1177.3 | M42: 4.34719
A43: 33 | B43: APOLLOHOSP | C43: 4969.55 | D43: 4927.22 | E43: 4808.43 | F43: 4647.32 | G43: 4528.53 | H43: 5088.33 | I43: 5207.12 | J43: 5368.23 | K43: 5046 | L43: 4766.1 | M43: 28.83159
A44: 34 | B44: APOLLOTYRE | C44: 212.95 | D44: 213.40 | E44: 210.85 | F44: 208.75 | G44: 206.20 | H44: 215.50 | I44: 218.05 | J44: 220.15 | K44: 215.95 | L44: 211.3 | M44: 32.04602
A45: 35 | B45: ASAHIINDIA | C45: 357.95 | D45: 361.88 | E45: 352.57 | F45: 347.18 | G45: 337.87 | H45: 367.27 | I45: 376.58 | J45: 381.97 | K45: 371.2 | L45: 356.5 | M45: 1.0642
A46: 36 | B46: ASHOKLEY | C46: 122.75 | D46: 121.85 | E46: 120.55 | F46: 118.35 | G46: 117.05 | H46: 124.05 | I46: 125.35 | J46: 127.55 | K46: 123.15 | L46: 119.65 | M46: 200.46747
A47: 37 | B47: ASHOKA | C47: 99.95 | D47: 100.37 | E47: 99.28 | F47: 98.62 | G47: 97.53 | H47: 101.03 | I47: 102.12 | J47: 102.78 | K47: 101.45 | L47: 99.7 | M47: 8.17273
A48: 38 | B48: ASIANPAINT | C48: 3201.35 | D48: 3171.47 | E48: 3132.93 | F48: 3064.52 | G48: 3025.98 | H48: 3239.88 | I48: 3278.42 | J48: 3346.83 | K48: 3210 | L48: 3103.05 | M48: 22.8329
A49: 39 | B49: ASTERDM | C49: 214.2 | D49: 217.65 | E49: 207.90 | F49: 201.60 | G49: 191.85 | H49: 223.95 | I49: 233.70 | J49: 240.00 | K49: 227.4 | L49: 211.35 | M49: 92.39178
A50: 40 | B50: ASTRAZEN | C50: 3106.45 | D50: 3113.25 | E50: 3093.25 | F50: 3080.05 | G50: 3060.05 | H50: 3126.45 | I50: 3146.45 | J50: 3159.65 | K50: 3133.25 | L50: 3100.05 | M50: 0.08569
A51: 41 | B51: ASTRAL | C51: 2041.1 | D51: 2033.70 | E51: 2017.40 | F51: 1993.70 | G51: 1977.40 | H51: 2057.40 | I51: 2073.70 | J51: 2097.40 | K51: 2050 | L51: 2010 | M51: 3.68007
A52: 42 | B52: ATUL | C52: 9128.15 | D52: 9130.33 | E52: 9048.67 | F52: 8969.18 | G52: 8887.52 | H52: 9209.82 | I52: 9291.48 | J52: 9370.97 | K52: 9212 | L52: 9050.85 | M52: 0.33149
A53: 43 | B53: AUROPHARMA | C53: 727.3 | D53: 723.17 | E53: 717.33 | F53: 707.37 | G53: 701.53 | H53: 733.13 | I53: 738.97 | J53: 748.93 | K53: 729 | L53: 713.2 | M53: 38.77654
A54: 44 | B54: AVANTIFEED | C54: 562.6 | D54: 563.13 | E54: 555.07 | F54: 547.53 | G54: 539.47 | H54: 570.67 | I54: 578.73 | J54: 586.27 | K54: 571.2 | L54: 555.6 | M54: 1.65137
A55: 45 | B55: DMART | C55: 3954.8 | D55: 3935.23 | E55: 3890.72 | F55: 3826.63 | G55: 3782.12 | H55: 3999.32 | I55: 4043.83 | J55: 4107.92 | K55: 3979.75 | L55: 3871.15 | M55: 3.78858
A56: 46 | B56: AXISBANK | C56: 786.5 | D56: 784.63 | E56: 780.27 | F56: 774.03 | G56: 769.67 | H56: 790.87 | I56: 795.23 | J56: 801.47 | K56: 789 | L56: 778.4 | M56: 121.1487
A57: 47 | B57: BASF | C57: 3586.9 | D57: 3614.47 | E57: 3538.93 | F57: 3490.97 | G57: 3415.43 | H57: 3662.43 | I57: 3737.97 | J57: 3785.93 | K57: 3690 | L57: 3566.5 | M57: 1.3825
A58: 48 | B58: BEML | C58: 1322.45 | D58: 1319.82 | E58: 1306.63 | F58: 1290.82 | G58: 1277.63 | H58: 1335.63 | I58: 1348.82 | J58: 1364.63 | K58: 1333 | L58: 1304 | M58: 0.99077
A59: 49 | B59: BSE | C59: 1198.4 | D59: 1199.75 | E59: 1181.00 | F59: 1163.60 | G59: 1144.85 | H59: 1217.15 | I59: 1235.90 | J59: 1253.30 | K59: 1218.5 | L59: 1182.35 | M59: 7.01395
A60: 50 | B60: BAJAJ-AUTO | C60: 3727.85 | D60: 3724.15 | E60: 3709.30 | F60: 3690.75 | G60: 3675.90 | H60: 3742.70 | I60: 3757.55 | J60: 3776.10 | K60: 3739 | L60: 3705.6 | M60: 6.93952
A61: 51 | B61: BAJAJCON | C61: 245.85 | D61: 248.78 | E61: 242.57 | F61: 239.28 | G61: 233.07 | H61: 252.07 | I61: 258.28 | J61: 261.57 | K61: 255 | L61: 245.5 | M61: 6.67741
A62: 52 | B62: BAJAJELEC | C62: 1214.35 | D62: 1212.45 | E62: 1192.90 | F62: 1171.45 | G62: 1151.90 | H62: 1233.90 | I62: 1253.45 | J62: 1274.90 | K62: 1232 | L62: 1191 | M62: 1.94934
A63: 53 | B63: BAJFINANCE | C63: 7524.5 | D63: 7417.77 | E63: 7236.73 | F63: 6948.97 | G63: 6767.93 | H63: 7705.53 | I63: 7886.57 | J63: 8174.33 | K63: 7598.8 | L63: 7130 | M63: 29.46438
A64: 54 | B64: BAJAJFINSV | C64: 17148.75 | D64: 16925.67 | E64: 16651.33 | F64: 16153.92 | G64: 15879.58 | H64: 17423.08 | I64: 17697.42 | J64: 18194.83 | K64: 17200 | L64: 16428.25 | M64: 6.52127
A65: 55 | B65: BAJAJHLDNG | C65: 4356.75 | D65: 4323.45 | E65: 4249.90 | F65: 4143.05 | G65: 4069.50 | H65: 4430.30 | I65: 4503.85 | J65: 4610.70 | K65: 4397 | L65: 4216.6 | M65: 0.4745
A66: 56 | B66: BALAMINES | C66: 4040.15 | D66: 4001.63 | E66: 3908.47 | F66: 3776.78 | G66: 3683.62 | H66: 4133.32 | I66: 4226.48 | J66: 4358.17 | K66: 4094.8 | L66: 3869.95 | M66: 1.06898
A67: 57 | B67: BALKRISIND | C67: 2294.9 | D67: 2283.28 | E67: 2262.62 | F67: 2230.33 | G67: 2209.67 | H67: 2315.57 | I67: 2336.23 | J67: 2368.52 | K67: 2303.95 | L67: 2251 | M67: 4.79245
A68: 58 | B68: BALMLAWRIE | C68: 129.6 | D68: 129.85 | E68: 127.35 | F68: 125.10 | G68: 122.60 | H68: 132.10 | I68: 134.60 | J68: 136.85 | K68: 132.35 | L68: 127.6 | M68: 4.75636
A69: 59 | B69: BALRAMCHIN | C69: 369.05 | D69: 370.15 | E69: 365.90 | F69: 362.75 | G69: 358.50 | H69: 373.30 | I69: 377.55 | J69: 380.70 | K69: 374.4 | L69: 367 | M69: 7.08813
A70: 60 | B70: BANDHANBNK | C70: 285 | D70: 285.82 | E70: 282.63 | F70: 280.27 | G70: 277.08 | H70: 288.18 | I70: 291.37 | J70: 293.73 | K70: 289 | L70: 283.45 | M70: 67.56768
A71: 61 | B71: BANKBARODA | C71: 77.35 | D71: 77.27 | E71: 76.08 | F71: 74.82 | G71: 73.63 | H71: 78.53 | I71: 79.72 | J71: 80.98 | K71: 78.45 | L71: 76 | M71: 265.01208
A72: 62 | B72: BANKINDIA | C72: 66.35 | D72: 66.93 | E72: 65.42 | F72: 64.48 | G72: 62.97 | H72: 67.87 | I72: 69.38 | J72: 70.32 | K72: 68.45 | L72: 66 | M72: 37.40761
A73: 63 | B73: MAHABANK | C73: 18.05 | D73: 18.18 | E73: 17.87 | F73: 17.68 | G73: 17.37 | H73: 18.37 | I73: 18.68 | J73: 18.87 | K73: 18.5 | L73: 18 | M73: 53.47877
A74: 64 | B74: BATAINDIA | C74: 1771.8 | D74: 1716.30 | E74: 1647.60 | F74: 1523.40 | G74: 1454.70 | H74: 1840.50 | I74: 1909.20 | J74: 2033.40 | K74: 1785 | L74: 1592.1 | M74: 6.38971
A75: 65 | B75: BAYERCROP | C75: 5542.4 | D75: 5499.50 | E75: 5430.30 | F75: 5318.20 | G75: 5249.00 | H75: 5611.60 | I75: 5680.80 | J75: 5792.90 | K75: 5568.7 | L75: 5387.4 | M75: 0.38347
A76: 66 | B76: BERGEPAINT | C76: 820.8 | D76: 817.30 | E76: 811.40 | F76: 802.00 | G76: 796.10 | H76: 826.70 | I76: 832.60 | J76: 842.00 | K76: 823.2 | L76: 807.9 | M76: 12.19916
A77: 67 | B77: BDL | C77: 393.1 | D77: 393.18 | E77: 390.02 | F77: 386.93 | G77: 383.77 | H77: 396.27 | I77: 399.43 | J77: 402.52 | K77: 396.35 | L77: 390.1 | M77: 2.1126
A78: 68 | B78: BEL | C78: 186.65 | D78: 185.90 | E78: 184.40 | F78: 182.15 | G78: 180.65 | H78: 188.15 | I78: 189.65 | J78: 191.90 | K78: 187.4 | L78: 183.65 | M78: 72.01234
A79: 69 | B79: BHARATFORG | C79: 767.2 | D79: 760.88 | E79: 752.37 | F79: 737.53 | G79: 729.02 | H79: 775.72 | I79: 784.23 | J79: 799.07 | K79: 769.4 | L79: 746.05 | M79: 34.04792
A80: 70 | B80: BHEL | C80: 52.55 | D80: 52.97 | E80: 51.73 | F80: 50.92 | G80: 49.68 | H80: 53.78 | I80: 55.02 | J80: 55.83 | K80: 54.2 | L80: 52.15 | M80: 302.51959
A81: 71 | B81: BPCL | C81: 471.65 | D81: 471.95 | E81: 468.05 | F81: 464.45 | G81: 460.55 | H81: 475.55 | I81: 479.45 | J81: 483.05 | K81: 475.85 | L81: 468.35 | M81: 90.01236
A82: 72 | B82: BHARATRAS | C82: 12834.25 | D82: 12908.12 | E82: 12637.23 | F82: 12440.22 | G82: 12169.33 | H82: 13105.13 | I82: 13376.02 | J82: 13573.03 | K82: 13179 | L82: 12711.1 | M82: 0.02145
A83: 73 | B83: BHARTIARTL | C83: 664.05 | D83: 652.38 | E83: 636.67 | F83: 609.28 | G83: 593.57 | H83: 679.77 | I83: 695.48 | J83: 722.87 | K83: 668.1 | L83: 625 | M83: 596.6182
A84: 74 | B84: BIOCON | C84: 358.85 | D84: 356.98 | E84: 353.87 | F84: 348.88 | G84: 345.77 | H84: 361.97 | I84: 365.08 | J84: 370.07 | K84: 360.1 | L84: 352 | M84: 21.0552
A85: 75 | B85: BIRLACORPN | C85: 1354.1 | D85: 1341.70 | E85: 1323.40 | F85: 1292.70 | G85: 1274.40 | H85: 1372.40 | I85: 1390.70 | J85: 1421.40 | K85: 1360 | L85: 1311 | M85: 1.69401
A86: 76 | B86: BSOFT | C86: 417.1 | D86: 418.93 | E86: 411.17 | F86: 405.23 | G86: 397.47 | H86: 424.87 | I86: 432.63 | J86: 438.57 | K86: 426.7 | L86: 413 | M86: 26.21887
A87: 77 | B87: BLISSGVS | C87: 111.35 | D87: 112.78 | E87: 108.57 | F87: 105.78 | G87: 101.57 | H87: 115.57 | I87: 119.78 | J87: 122.57 | K87: 117 | L87: 110 | M87: 16.4266
A88: 78 | B88: BLUEDART | C88: 5863.1 | D88: 5872.05 | E88: 5805.10 | F88: 5747.10 | G88: 5680.15 | H88: 5930.05 | I88: 5997.00 | J88: 6055.00 | K88: 5939 | L88: 5814.05 | M88: 0.28055
A89: 79 | B89: BLUESTARCO | C89: 774.95 | D89: 775.93 | E89: 768.87 | F89: 762.78 | G89: 755.72 | H89: 782.02 | I89: 789.08 | J89: 795.17 | K89: 783 | L89: 769.85 | M89: 0.89296
A90: 80 | B90: BBTC | C90: 1189.3 | D90: 1204.57 | E90: 1167.13 | F90: 1144.97 | G90: 1107.53 | H90: 1226.73 | I90: 1264.17 | J90: 1286.33 | K90: 1242 | L90: 1182.4 | M90: 2.59919
A91: 81 | B91: BOSCHLTD | C91: 13859.2 | D91: 13865.68 | E91: 13808.42 | F91: 13757.63 | G91: 13700.37 | H91: 13916.47 | I91: 13973.73 | J91: 14024.52 | K91: 13922.95 | L91: 13814.9 | M91: 0.21977
A92: 82 | B92: BRIGADE | C92: 334.45 | D92: 327.20 | E92: 318.50 | F92: 302.55 | G92: 293.85 | H92: 343.15 | I92: 351.85 | J92: 367.80 | K92: 335.9 | L92: 311.25 | M92: 11.26726
A93: 83 | B93: BRITANNIA | C93: 3997.5 | D93: 3994.93 | E93: 3962.57 | F93: 3927.63 | G93: 3895.27 | H93: 4029.87 | I93: 4062.23 | J93: 4097.17 | K93: 4027.3 | L93: 3960 | M93: 6.88613
A94: 84 | B94: BURGERKING | C94: 161.25 | D94: 162.33 | E94: 158.92 | F94: 156.58 | G94: 153.17 | H94: 164.67 | I94: 168.08 | J94: 170.42 | K94: 165.75 | L94: 160 | M94: 28.54548
A95: 85 | B95: CCL | C95: 402.85 | D95: 404.08 | E95: 394.37 | F95: 385.88 | G95: 376.17 | H95: 412.57 | I95: 422.28 | J95: 430.77 | K95: 413.8 | L95: 395.6 | M95: 30.98163
A96: 86 | B96: CESC | C96: 803.85 | D96: 800.57 | E96: 788.38 | F96: 772.92 | G96: 760.73 | H96: 816.03 | I96: 828.22 | J96: 843.68 | K96: 812.75 | L96: 785.1 | M96: 10.07718
A97: 87 | B97: CRISIL | C97: 2729.9 | D97: 2749.18 | E97: 2683.37 | F97: 2636.83 | G97: 2571.02 | H97: 2795.72 | I97: 2861.53 | J97: 2908.07 | K97: 2815 | L97: 2702.65 | M97: 0.43117
A98: 88 | B98: CSBBANK | C98: 297.4 | D98: 300.87 | E98: 292.73 | F98: 288.07 | G98: 279.93 | H98: 305.53 | I98: 313.67 | J98: 318.33 | K98: 309 | L98: 296.2 | M98: 2.03634
A99: 89 | B99: CADILAHC | C99: 554.15 | D99: 553.83 | E99: 549.82 | F99: 545.48 | G99: 541.47 | H99: 558.17 | I99: 562.18 | J99: 566.52 | K99: 557.85 | L99: 549.5 | M99: 20.15528
A100: 90 | B100: CANFINHOME | C100: 570.95 | D100: 577.32 | E100: 554.63 | F100: 538.32 | G100: 515.63 | H100: 593.63 | I100: 616.32 | J100: 632.63 | K100: 600 | L100: 561 | M100: 44.17283
A101: 91 | B101: CANBK | C101: 159.1 | D101: 158.43 | E101: 154.37 | F101: 149.63 | G101: 145.57 | H101: 163.17 | I101: 167.23 | J101: 171.97 | K101: 162.5 | L101: 153.7 | M101: 326.68471
A102: 92 | B102: CAPLIPOINT | C102: 730.4 | D102: 734.80 | E102: 722.60 | F102: 714.80 | G102: 702.60 | H102: 742.60 | I102: 754.80 | J102: 762.60 | K102: 747 | L102: 727 | M102: 1.13484
A103: 93 | B103: CGCL | C103: 508.15 | D103: 511.45 | E103: 501.75 | F103: 495.35 | G103: 485.65 | H103: 517.85 | I103: 527.55 | J103: 533.95 | K103: 521.15 | L103: 505.05 | M103: 0.49192
A104: 94 | B104: CARBORUNIV | C104: 829.95 | D104: 823.77 | E104: 804.53 | F104: 779.12 | G104: 759.88 | H104: 849.18 | I104: 868.42 | J104: 893.83 | K104: 843 | L104: 798.35 | M104: 5.09312
A105: 95 | B105: CASTROLIND | C105: 134 | D105: 133.95 | E105: 133.10 | F105: 132.20 | G105: 131.35 | H105: 134.85 | I105: 135.70 | J105: 136.60 | K105: 134.8 | L105: 133.05 | M105: 4.47418
A106: 96 | B106: CEATLTD | C106: 1278.15 | D106: 1281.12 | E106: 1272.23 | F106: 1266.32 | G106: 1257.43 | H106: 1287.03 | I106: 1295.92 | J106: 1301.83 | K106: 1290 | L106: 1275.2 | M106: 0.84434
A107: 97 | B107: CENTRALBK | C107: 20.75 | D107: 20.90 | E107: 20.15 | F107: 19.55 | G107: 18.80 | H107: 21.50 | I107: 22.25 | J107: 22.85 | K107: 21.65 | L107: 20.3 | M107: 57.38336
A108: 98 | B108: CDSL | C108: 1188.15 | D108: 1197.72 | E108: 1170.43 | F108: 1152.72 | G108: 1125.43 | H108: 1215.43 | I108: 1242.72 | J108: 1260.43 | K108: 1225 | L108: 1180 | M108: 4.52552
A109: 99 | B109: CENTURYPLY | C109: 402.55 | D109: 398.18 | E109: 388.17 | F109: 373.78 | G109: 363.77 | H109: 412.57 | I109: 422.58 | J109: 436.97 | K109: 408.2 | L109: 383.8 | M109: 5.42048
A110: 100 | B110: CENTURYTEX | C110: 777.5 | D110: 775.05 | E110: 768.45 | F110: 759.40 | G110: 752.80 | H110: 784.10 | I110: 790.70 | J110: 799.75 | K110: 781.65 | L110: 766 | M110: 4.58003
A111: 101 | B111: CERA | C111: 4441.35 | D111: 4473.27 | E111: 4348.08 | F111: 4254.82 | G111: 4129.63 | H111: 4566.53 | I111: 4691.72 | J111: 4784.98 | K111: 4598.45 | L111: 4380 | M111: 0.36296
A112: 102 | B112: CHALET | C112: 170.9 | D112: 170.83 | E112: 165.77 | F112: 160.63 | G112: 155.57 | H112: 175.97 | I112: 181.03 | J112: 186.17 | K112: 175.9 | L112: 165.7 | M112: 4.55881
A113: 103 | B113: CHAMBLFERT | C113: 321 | D113: 322.10 | E113: 315.95 | F113: 310.90 | G113: 304.75 | H113: 327.15 | I113: 333.30 | J113: 338.35 | K113: 328.25 | L113: 317.05 | M113: 6.07819
A114: 104 | B114: CHOLAHLDNG | C114: 684.3 | D114: 683.32 | E114: 676.63 | F114: 668.97 | G114: 662.28 | H114: 690.98 | I114: 697.67 | J114: 705.33 | K114: 690 | L114: 675.65 | M114: 1.15151
A115: 105 | B115: CHOLAFIN | C115: 554.05 | D115: 549.83 | E115: 542.22 | F115: 530.38 | G115: 522.77 | H115: 561.67 | I115: 569.28 | J115: 581.12 | K115: 557.45 | L115: 538 | M115: 52.52586
A116: 106 | B116: CIPLA | C116: 947.8 | D116: 942.60 | E116: 935.50 | F116: 923.20 | G116: 916.10 | H116: 954.90 | I116: 962.00 | J116: 974.30 | K116: 949.7 | L116: 930.3 | M116: 24.63088
A117: 107 | B117: CUB | C117: 151.75 | D117: 151.72 | E117: 149.88 | F117: 148.02 | G117: 146.18 | H117: 153.58 | I117: 155.42 | J117: 157.28 | K117: 153.55 | L117: 149.85 | M117: 18.32677
A118: 108 | B118: COALINDIA | C118: 145.85 | D118: 145.08 | E118: 144.02 | F118: 142.18 | G118: 141.12 | H118: 146.92 | I118: 147.98 | J118: 149.82 | K118: 146.15 | L118: 143.25 | M118: 143.01855
A119: 109 | B119: COCHINSHIP | C119: 355.8 | D119: 356.22 | E119: 353.73 | F119: 351.67 | G119: 349.18 | H119: 358.28 | I119: 360.77 | J119: 362.83 | K119: 358.7 | L119: 354.15 | M119: 1.23284
A120: 110 | B120: COFORGE | C120: 5208.75 | D120: 5222.28 | E120: 5107.97 | F120: 5007.18 | G120: 4892.87 | H120: 5323.07 | I120: 5437.38 | J120: 5538.17 | K120: 5336.6 | L120: 5121.5 | M120: 6.50782
A121: 111 | B121: COLPAL | C121: 1693.3 | D121: 1694.45 | E121: 1678.85 | F121: 1664.40 | G121: 1648.80 | H121: 1708.90 | I121: 1724.50 | J121: 1738.95 | K121: 1710.05 | L121: 1680 | M121: 15.86467
A122: 112 | B122: CAMS | C122: 3816.75 | D122: 3757.22 | E122: 3574.53 | F122: 3332.32 | G122: 3149.63 | H122: 3999.43 | I122: 4182.12 | J122: 4424.33 | K122: 3939.9 | L122: 3515 | M122: 8.39485
A123: 113 | B123: CONCOR | C123: 679.55 | D123: 682.22 | E123: 670.43 | F123: 661.32 | G123: 649.53 | H123: 691.33 | I123: 703.12 | J123: 712.23 | K123: 694 | L123: 673.1 | M123: 22.01566
A124: 114 | B124: COROMANDEL | C124: 792.9 | D124: 789.65 | E124: 782.35 | F124: 771.80 | G124: 764.50 | H124: 800.20 | I124: 807.50 | J124: 818.05 | K124: 796.95 | L124: 779.1 | M124: 6.31601
A125: 115 | B125: CREDITACC | C125: 702.15 | D125: 693.90 | E125: 677.80 | F125: 653.45 | G125: 637.35 | H125: 718.25 | I125: 734.35 | J125: 758.70 | K125: 710 | L125: 669.55 | M125: 2.24822
A126: 116 | B126: CROMPTON | C126: 473.45 | D126: 473.70 | E126: 469.80 | F126: 466.15 | G126: 462.25 | H126: 477.35 | I126: 481.25 | J126: 484.90 | K126: 477.6 | L126: 470.05 | M126: 5.87128
A127: 117 | B127: CUMMINSIND | C127: 999.15 | D127: 1000.72 | E127: 992.93 | F127: 986.72 | G127: 978.93 | H127: 1006.93 | I127: 1014.72 | J127: 1020.93 | K127: 1008.5 | L127: 994.5 | M127: 4.13161
A128: 118 | B128: CYIENT | C128: 977.45 | D128: 967.80 | E128: 950.15 | F128: 922.85 | G128: 905.20 | H128: 995.10 | I128: 1012.75 | J128: 1040.05 | K128: 985.45 | L128: 940.5 | M128: 10.75766
A129: 119 | B129: DCBBANK | C129: 92.15 | D129: 91.72 | E129: 90.43 | F129: 88.72 | G129: 87.43 | H129: 93.43 | I129: 94.72 | J129: 96.43 | K129: 93 | L129: 90 | M129: 7.58053
A130: 120 | B130: DCMSHRIRAM | C130: 890.5 | D130: 894.83 | E130: 879.67 | F130: 868.83 | G130: 853.67 | H130: 905.67 | I130: 920.83 | J130: 931.67 | K130: 910 | L130: 884 | M130: 0.65376
A131: 121 | B131: DLF | C131: 320.55 | D131: 320.68 | E131: 317.47 | F131: 314.38 | G131: 311.17 | H131: 323.77 | I131: 326.98 | J131: 330.07 | K131: 323.9 | L131: 317.6 | M131: 97.26975
A132: 122 | B132: DABUR | C132: 621.5 | D132: 618.45 | E132: 613.05 | F132: 604.60 | G132: 599.20 | H132: 626.90 | I132: 632.30 | J132: 640.75 | K132: 623.85 | L132: 610 | M132: 30.26655
A133: 123 | B133: DALBHARAT | C133: 2199.8 | D133: 2188.68 | E133: 2162.97 | F133: 2126.13 | G133: 2100.42 | H133: 2225.52 | I133: 2251.23 | J133: 2288.07 | K133: 2214.4 | L133: 2151.85 | M133: 2.44376
A134: 124 | B134: DEEPAKNTR | C134: 2283.6 | D134: 2282.32 | E134: 2252.38 | F134: 2221.17 | G134: 2191.23 | H134: 2313.53 | I134: 2343.47 | J134: 2374.68 | K134: 2312.25 | L134: 2251.1 | M134: 17.21286
A135: 125 | B135: DELTACORP | C135: 181.25 | D135: 181.33 | E135: 178.17 | F135: 175.08 | G135: 171.92 | H135: 184.42 | I135: 187.58 | J135: 190.67 | K135: 184.5 | L135: 178.25 | M135: 37.24478
A136: 126 | B136: DHANI | C136: 199.4 | D136: 198.68 | E136: 192.42 | F136: 185.43 | G136: 179.17 | H136: 205.67 | I136: 211.93 | J136: 218.92 | K136: 204.95 | L136: 191.7 | M136: 9.96707
A137: 127 | B137: DHANUKA | C137: 841.55 | D137: 846.12 | E137: 825.48 | F137: 809.42 | G137: 788.78 | H137: 862.18 | I137: 882.82 | J137: 898.88 | K137: 866.75 | L137: 830.05 | M137: 0.48583
A138: 128 | B138: DBL | C138: 508.5 | D138: 510.60 | E138: 502.20 | F138: 495.90 | G138: 487.50 | H138: 516.90 | I138: 525.30 | J138: 531.60 | K138: 519 | L138: 504.3 | M138: 1.615
A139: 129 | B139: DISHTV | C139: 12.6 | D139: 12.63 | E139: 12.42 | F139: 12.23 | G139: 12.02 | H139: 12.82 | I139: 13.03 | J139: 13.22 | K139: 12.85 | L139: 12.45 | M139: 37.52425
A140: 130 | B140: DCAL | C140: 185.45 | D140: 186.62 | E140: 183.48 | F140: 181.52 | G140: 178.38 | H140: 188.58 | I140: 191.72 | J140: 193.68 | K140: 189.75 | L140: 184.65 | M140: 2.36607
A141: 131 | B141: DIVISLAB | C141: 5173.6 | D141: 5167.55 | E141: 5116.10 | F141: 5058.60 | G141: 5007.15 | H141: 5225.05 | I141: 5276.50 | J141: 5334.00 | K141: 5219 | L141: 5110.05 | M141: 8.96587
A142: 132 | B142: DIXON | C142: 4160.4 | D142: 4162.78 | E142: 4102.67 | F142: 4044.93 | G142: 3984.82 | H142: 4220.52 | I142: 4280.63 | J142: 4338.37 | K142: 4222.9 | L142: 4105.05 | M142: 2.41465
A143: 133 | B143: LALPATHLAB | C143: 4051.55 | D143: 4022.55 | E143: 3962.10 | F143: 3872.65 | G143: 3812.20 | H143: 4112.00 | I143: 4172.45 | J143: 4261.90 | K143: 4083 | L143: 3933.1 | M143: 3.35279
A144: 134 | B144: DRREDDY | C144: 4704.05 | D144: 4692.10 | E144: 4662.45 | F144: 4620.85 | G144: 4591.20 | H144: 4733.70 | I144: 4763.35 | J144: 4804.95 | K144: 4721.75 | L144: 4650.5 | M144: 6.45527
A145: 135 | B145: EIDPARRY | C145: 403.75 | D145: 405.45 | E145: 398.50 | F145: 393.25 | G145: 386.30 | H145: 410.70 | I145: 417.65 | J145: 422.90 | K145: 412.4 | L145: 400.2 | M145: 1.53222
A146: 136 | B146: EIHOTEL | C146: 102.4 | D146: 103.50 | E146: 101.00 | F146: 99.60 | G146: 97.10 | H146: 104.90 | I146: 107.40 | J146: 108.80 | K146: 106 | L146: 102.1 | M146: 2.65369
A147: 137 | B147: EPL | C147: 232.85 | D147: 232.20 | E147: 228.40 | F147: 223.95 | G147: 220.15 | H147: 236.65 | I147: 240.45 | J147: 244.90 | K147: 236 | L147: 227.75 | M147: 3.03317
A148: 138 | B148: EDELWEISS | C148: 81.3 | D148: 82.12 | E148: 79.83 | F148: 78.37 | G148: 76.08 | H148: 83.58 | I148: 85.87 | J148: 87.33 | K148: 84.4 | L148: 80.65 | M148: 16.97286
A149: 139 | B149: EICHERMOT | C149: 2679.25 | D149: 2640.72 | E149: 2583.53 | F149: 2487.82 | G149: 2430.63 | H149: 2736.43 | I149: 2793.62 | J149: 2889.33 | K149: 2697.9 | L149: 2545 | M149: 23.81821
A150: 140 | B150: ELGIEQUIP | C150: 197.5 | D150: 198.27 | E150: 193.78 | F150: 190.07 | G150: 185.58 | H150: 201.98 | I150: 206.47 | J150: 210.18 | K150: 202.75 | L150: 194.55 | M150: 2.55316
A151: 141 | B151: EMAMILTD | C151: 597.2 | D151: 600.23 | E151: 589.47 | F151: 581.73 | G151: 570.97 | H151: 607.97 | I151: 618.73 | J151: 626.47 | K151: 611 | L151: 592.5 | M151: 7.63439
A152: 142 | B152: ENDURANCE | C152: 1662.85 | D152: 1671.62 | E152: 1640.28 | F152: 1617.72 | G152: 1586.38 | H152: 1694.18 | I152: 1725.52 | J152: 1748.08 | K152: 1702.95 | L152: 1649.05 | M152: 0.53829
A153: 143 | B153: ENGINERSIN | C153: 73.1 | D153: 72.77 | E153: 72.13 | F153: 71.17 | G153: 70.53 | H153: 73.73 | I153: 74.37 | J153: 75.33 | K153: 73.4 | L153: 71.8 | M153: 16.63542
A154: 144 | B154: EQUITAS | C154: 117.9 | D154: 117.83 | E154: 115.67 | F154: 113.43 | G154: 111.27 | H154: 120.07 | I154: 122.23 | J154: 124.47 | K154: 120 | L154: 115.6 | M154: 4.2112
A155: 145 | B155: ERIS | C155: 731 | D155: 730.22 | E155: 722.93 | F155: 714.87 | G155: 707.58 | H155: 738.28 | I155: 745.57 | J155: 753.63 | K155: 737.5 | L155: 722.15 | M155: 0.33398
A156: 146 | B156: ESCORTS | C156: 1346.35 | D156: 1354.60 | E156: 1332.75 | F156: 1319.15 | G156: 1297.30 | H156: 1368.20 | I156: 1390.05 | J156: 1403.65 | K156: 1376.45 | L156: 1341 | M156: 8.27925
A157: 147 | B157: EXIDEIND | C157: 161.15 | D157: 161.53 | E157: 159.67 | F157: 158.18 | G157: 156.32 | H157: 163.02 | I157: 164.88 | J157: 166.37 | K157: 163.4 | L157: 160.05 | M157: 52.77497
A158: 148 | B158: FDC | C158: 345.65 | D158: 345.85 | E158: 341.80 | F158: 337.95 | G158: 333.90 | H158: 349.70 | I158: 353.75 | J158: 357.60 | K158: 349.9 | L158: 342 | M158: 0.76447
A159: 149 | B159: FEDERALBNK | C159: 81.25 | D159: 81.03 | E159: 80.32 | F159: 79.38 | G159: 78.67 | H159: 81.97 | I159: 82.68 | J159: 83.62 | K159: 81.75 | L159: 80.1 | M159: 133.56776
A160: 150 | B160: FINEORG | C160: 2843.5 | D160: 2839.30 | E160: 2813.60 | F160: 2783.70 | G160: 2758.00 | H160: 2869.20 | I160: 2894.90 | J160: 2924.80 | K160: 2865 | L160: 2809.4 | M160: 0.39373
A161: 151 | B161: FINCABLES | C161: 465.55 | D161: 462.72 | E161: 453.38 | F161: 441.22 | G161: 431.88 | H161: 474.88 | I161: 484.22 | J161: 496.38 | K161: 472.05 | L161: 450.55 | M161: 4.52894
A162: 152 | B162: FINPIPE | C162: 167.95 | D162: 168.40 | E162: 166.80 | F162: 165.65 | G162: 164.05 | H162: 169.55 | I162: 171.15 | J162: 172.30 | K162: 170 | L162: 167.25 | M162: 8.87073
A163: 153 | B163: FSL | C163: 181.35 | D163: 181.08 | E163: 178.87 | F163: 176.38 | G163: 174.17 | H163: 183.57 | I163: 185.78 | J163: 188.27 | K163: 183.3 | L163: 178.6 | M163: 29.16753
A164: 154 | B164: FORTIS | C164: 290.5 | D164: 290.93 | E164: 285.12 | F164: 279.73 | G164: 273.92 | H164: 296.32 | I164: 302.13 | J164: 307.52 | K164: 296.75 | L164: 285.55 | M164: 57.12361
A165: 155 | B165: FCONSUMER | C165: 6.75 | D165: 6.72 | E165: 6.63 | F165: 6.52 | G165: 6.43 | H165: 6.83 | I165: 6.92 | J165: 7.03 | K165: 6.8 | L165: 6.6 | M165: 35.19722
A166: 156 | B166: FRETAIL | C166: 44.3 | D166: 44.55 | E166: 43.35 | F166: 42.40 | G166: 41.20 | H166: 45.50 | I166: 46.70 | J166: 47.65 | K166: 45.75 | L166: 43.6 | M166: 12.14955
A167: 157 | B167: GAIL | C167: 146.15 | D167: 145.87 | E167: 144.08 | F167: 142.02 | G167: 140.23 | H167: 147.93 | I167: 149.72 | J167: 151.78 | K167: 147.65 | L167: 143.8 | M167: 140.09836
A168: 158 | B168: GEPIL | C168: 327.2 | D168: 327.70 | E168: 324.15 | F168: 321.10 | G168: 317.55 | H168: 330.75 | I168: 334.30 | J168: 337.35 | K168: 331.25 | L168: 324.65 | M168: 0.8431
A169: 159 | B169: GMMPFAUDLR | C169: 4233.9 | D169: 4266.22 | E169: 4192.68 | F169: 4151.47 | G169: 4077.93 | H169: 4307.43 | I169: 4380.97 | J169: 4422.18 | K169: 4339.75 | L169: 4225 | M169: 0.24607
A170: 160 | B170: GMRINFRA | C170: 29.05 | D170: 29.17 | E170: 28.78 | F170: 28.52 | G170: 28.13 | H170: 29.43 | I170: 29.82 | J170: 30.08 | K170: 29.55 | L170: 28.9 | M170: 49.17548
A171: 161 | B171: GALAXYSURF | C171: 3151.95 | D171: 3166.63 | E171: 3100.32 | F171: 3048.68 | G171: 2982.37 | H171: 3218.27 | I171: 3284.58 | J171: 3336.22 | K171: 3232.95 | L171: 3115 | M171: 0.59707
A172: 162 | B172: GRSE | C172: 189.05 | D172: 188.53 | E172: 185.27 | F172: 181.48 | G172: 178.22 | H172: 192.32 | I172: 195.58 | J172: 199.37 | K172: 191.8 | L172: 184.75 | M172: 2.23749
A173: 163 | B173: GARFIBRES | C173: 3137.05 | D173: 3137.33 | E173: 3100.67 | F173: 3064.28 | G173: 3027.62 | H173: 3173.72 | I173: 3210.38 | J173: 3246.77 | K173: 3174 | L173: 3100.95 | M173: 0.41389
A174: 164 | B174: GICRE | C174: 148.25 | D174: 149.27 | E174: 143.98 | F174: 139.72 | G174: 134.43 | H174: 153.53 | I174: 158.82 | J174: 163.08 | K174: 154.55 | L174: 145 | M174: 24.44608
A175: 165 | B175: GILLETTE | C175: 5819.75 | D175: 5835.25 | E175: 5782.50 | F175: 5745.25 | G175: 5692.50 | H175: 5872.50 | I175: 5925.25 | J175: 5962.50 | K175: 5888 | L175: 5798 | M175: 0.04752
A176: 166 | B176: GLAND | C176: 3893.9 | D176: 3907.97 | E176: 3865.93 | F176: 3837.97 | G176: 3795.93 | H176: 3935.93 | I176: 3977.97 | J176: 4005.93 | K176: 3950 | L176: 3880 | M176: 0.886
A177: 167 | B177: GLAXO | C177: 1527.7 | D177: 1534.10 | E177: 1513.70 | F177: 1499.70 | G177: 1479.30 | H177: 1548.10 | I177: 1568.50 | J177: 1582.50 | K177: 1554.5 | L177: 1520.1 | M177: 0.32832
A178: 168 | B178: GLENMARK | C178: 530.3 | D178: 528.78 | E178: 524.77 | F178: 519.23 | G178: 515.22 | H178: 534.32 | I178: 538.33 | J178: 543.87 | K178: 532.8 | L178: 523.25 | M178: 17.21956
A179: 169 | B179: GODFRYPHLP | C179: 984.6 | D179: 988.15 | E179: 979.40 | F179: 974.20 | G179: 965.45 | H179: 993.35 | I179: 1002.10 | J179: 1007.30 | K179: 996.9 | L179: 982.95 | M179: 0.16335
A180: 170 | B180: GODREJAGRO | C180: 632 | D180: 635.43 | E180: 626.57 | F180: 621.13 | G180: 612.27 | H180: 640.87 | I180: 649.73 | J180: 655.17 | K180: 644.3 | L180: 630 | M180: 1.15172
A181: 171 | B181: GODREJCP | C181: 1099.3 | D181: 1089.50 | E181: 1079.00 | F181: 1058.70 | G181: 1048.20 | H181: 1109.80 | I181: 1120.30 | J181: 1140.60 | K181: 1100 | L181: 1069.2 | M181: 19.93712
A182: 172 | B182: GODREJIND | C182: 558.8 | D182: 561.27 | E182: 553.53 | F182: 548.27 | G182: 540.53 | H182: 566.53 | I182: 574.27 | J182: 579.53 | K182: 569 | L182: 556 | M182: 3.52459
A183: 173 | B183: GODREJPROP | C183: 1489 | D183: 1486.75 | E183: 1458.00 | F183: 1427.00 | G183: 1398.25 | H183: 1517.75 | I183: 1546.50 | J183: 1577.50 | K183: 1515.5 | L183: 1455.75 | M183: 5.54834
A184: 174 | B184: GRANULES | C184: 331.3 | D184: 331.72 | E184: 329.08 | F184: 326.87 | G184: 324.23 | H184: 333.93 | I184: 336.57 | J184: 338.78 | K184: 334.35 | L184: 329.5 | M184: 14.49735
A185: 175 | B185: GRAPHITE | C185: 639.6 | D185: 641.60 | E185: 631.00 | F185: 622.40 | G185: 611.80 | H185: 650.20 | I185: 660.80 | J185: 669.40 | K185: 652.2 | L185: 633 | M185: 2.66428
A186: 176 | B186: GRASIM | C186: 1500.4 | D186: 1490.82 | E186: 1477.23 | F186: 1454.07 | G186: 1440.48 | H186: 1513.98 | I186: 1527.57 | J186: 1550.73 | K186: 1504.4 | L186: 1467.65 | M186: 16.56264
A187: 177 | B187: GESHIP | C187: 359.85 | D187: 360.43 | E187: 350.87 | F187: 341.88 | G187: 332.32 | H187: 369.42 | I187: 378.98 | J187: 387.97 | K187: 370 | L187: 351.45 | M187: 11.47395
A188: 178 | B188: GREAVESCOT | C188: 136 | D188: 137.40 | E188: 134.15 | F188: 132.30 | G188: 129.05 | H188: 139.25 | I188: 142.50 | J188: 144.35 | K188: 140.65 | L188: 135.55 | M188: 15.73345
A189: 179 | B189: GRINDWELL | C189: 1290.95 | D189: 1290.33 | E189: 1270.72 | F189: 1250.48 | G189: 1230.87 | H189: 1310.57 | I189: 1330.18 | J189: 1350.42 | K189: 1309.95 | L189: 1270.1 | M189: 0.6855
A190: 180 | B190: GUJALKALI | C190: 454.5 | D190: 458.20 | E190: 447.65 | F190: 440.80 | G190: 430.25 | H190: 465.05 | I190: 475.60 | J190: 482.45 | K190: 468.75 | L190: 451.35 | M190: 3.33814
A191: 181 | B191: GAEL | C191: 182.85 | D191: 179.65 | E191: 171.50 | F191: 160.15 | G191: 152.00 | H191: 191.00 | I191: 199.15 | J191: 210.50 | K191: 187.8 | L191: 168.3 | M191: 16.11904
A192: 182 | B192: FLUOROCHEM | C192: 1759.5 | D192: 1761.22 | E192: 1697.43 | F192: 1635.37 | G192: 1571.58 | H192: 1823.28 | I192: 1887.07 | J192: 1949.13 | K192: 1825 | L192: 1699.15 | M192: 4.49916
A193: 183 | B193: GUJGASLTD | C193: 722.8 | D193: 721.92 | E193: 710.08 | F193: 697.37 | G193: 685.53 | H193: 734.63 | I193: 746.47 | J193: 759.18 | K193: 733.75 | L193: 709.2 | M193: 17.27498
A194: 184 | B194: GNFC | C194: 332.6 | D194: 331.53 | E194: 327.07 | F194: 321.53 | G194: 317.07 | H194: 337.07 | I194: 341.53 | J194: 347.07 | K194: 336 | L194: 326 | M194: 4.36044
A195: 185 | B195: GPPL | C195: 101.75 | D195: 101.65 | E195: 100.30 | F195: 98.85 | G195: 97.50 | H195: 103.10 | I195: 104.45 | J195: 105.90 | K195: 103 | L195: 100.2 | M195: 19.20163
A196: 186 | B196: GSFC | C196: 102.05 | D196: 101.73 | E196: 100.22 | F196: 98.38 | G196: 96.87 | H196: 103.57 | I196: 105.08 | J196: 106.92 | K196: 103.25 | L196: 99.9 | M196: 17.01375
A197: 187 | B197: GSPL | C197: 350.65 | D197: 350.08 | E197: 344.17 | F197: 337.68 | G197: 331.77 | H197: 356.57 | I197: 362.48 | J197: 368.97 | K197: 356 | L197: 343.6 | M197: 6.64818
A198: 188 | B198: GULFOILLUB | C198: 609.35 | D198: 607.78 | E198: 602.07 | F198: 594.78 | G198: 589.07 | H198: 615.07 | I198: 620.78 | J198: 628.07 | K198: 613.5 | L198: 600.5 | M198: 0.50457
A199: 189 | B199: HEG | C199: 2250.35 | D199: 2251.53 | E199: 2239.07 | F199: 2227.78 | G199: 2215.32 | H199: 2262.82 | I199: 2275.28 | J199: 2286.57 | K199: 2264 | L199: 2240.25 | M199: 0.8021
A200: 190 | B200: HCLTECH | C200: 1182.3 | D200: 1179.25 | E200: 1165.10 | F200: 1147.90 | G200: 1133.75 | H200: 1196.45 | I200: 1210.60 | J200: 1227.80 | K200: 1193.4 | L200: 1162.05 | M200: 71.99002
A201: 191 | B201: HDFCAMC | C201: 3074.3 | D201: 3067.10 | E201: 3050.20 | F201: 3026.10 | G201: 3009.20 | H201: 3091.20 | I201: 3108.10 | J201: 3132.20 | K201: 3084 | L201: 3043 | M201: 3.98418
A202: 192 | B202: HDFCBANK | C202: 1581.4 | D202: 1575.65 | E202: 1567.95 | F202: 1554.50 | G202: 1546.80 | H202: 1589.10 | I202: 1596.80 | J202: 1610.25 | K202: 1583.35 | L202: 1562.2 | M202: 60.31288
A203: 193 | B203: HDFCLIFE | C203: 717.75 | D203: 713.62 | E203: 708.23 | F203: 698.72 | G203: 693.33 | H203: 723.13 | I203: 728.52 | J203: 738.03 | K203: 719 | L203: 704.1 | M203: 38.5451
A204: 194 | B204: HFCL | C204: 68.1 | D204: 69.20 | E204: 66.70 | F204: 65.30 | G204: 62.80 | H204: 70.60 | I204: 73.10 | J204: 74.50 | K204: 71.7 | L204: 67.8 | M204: 30.51283
A205: 195 | B205: HAPPSTMNDS | C205: 1427.7 | D205: 1427.58 | E205: 1415.17 | F205: 1402.63 | G205: 1390.22 | H205: 1440.12 | I205: 1452.53 | J205: 1465.07 | K205: 1440 | L205: 1415.05 | M205: 5.99405
A206: 196 | B206: HATSUN | C206: 1089.7 | D206: 1096.92 | E206: 1061.73 | F206: 1033.77 | G206: 998.58 | H206: 1124.88 | I206: 1160.07 | J206: 1188.03 | K206: 1132.1 | L206: 1068.95 | M206: 1.88145
... 321 more rows

Sheet Bulk Deals
E6: Back To Main Page
A7: Subject : | B7: BULK DEAL | D7: =Main!B10 -> 2021-09-01
A9: Date | B9: Scrip code | C9: Scrip Name | D9: Client Name | E9: Buy / Sell | F9: Quantity Traded | G9: Trade Price / Wt.Avg.trade price | H9: Exchange
A10: 2021-08-31 | B10: 539773 | C10: ADVIKCA | D10: KAMAL KUMAR JALAN SEC. PVT. LTD | E10: BUY | F10: 38 | G10: 2.31 | H10: BSE
A11: 2021-08-31 | B11: 539773 | C11: ADVIKCA | D11: KAMAL KUMAR JALAN SEC. PVT. LTD | E11: SELL | F11: 234,421 | G11: 2.3 | H11: BSE
A12: 2021-08-31 | B12: 539773 | C12: ADVIKCA | D12: RUCHI KAUSHIK | E12: SELL | F12: 363,000 | G12: 2.27 | H12: BSE
A13: 2021-08-31 | B13: 539773 | C13: ADVIKCA | D13: JASKARAN SINGH DHALIWAL | E13: BUY | F13: 345,000 | G13: 2.29 | H13: BSE
A14: 2021-08-31 | B14: 542865 | C14: ANUROOP | D14: VIVEK KUMAR SINGH | E14: BUY | F14: 40,000 | G14: 14.87 | H14: BSE
A15: 2021-08-31 | B15: 536965 | C15: BPCAP | D15: MOHAN LAKSHMI | E15: SELL | F15: 39,999 | G15: 6.84 | H15: BSE
A16: 2021-08-31 | B16: 536965 | C16: BPCAP | D16: GAYATHRIRADHAKRISHNAN | E16: BUY | F16: 16,500 | G16: 6.84 | H16: BSE
A17: 2021-08-31 | B17: 536965 | C17: BPCAP | D17: ANANDMOHAN | E17: BUY | F17: 23,499 | G17: 6.84 | H17: BSE
A18: 2021-08-31 | B18: 538965 | C18: CONCORD | D18: MANISH RATILAL GALA | E18: SELL | F18: 40,000 | G18: 26.11 | H18: BSE
A19: 2021-08-31 | B19: 540361 | C19: DANUBE | D19: S N SHAH (HUF) | E19: SELL | F19: 30,000 | G19: 35 | H19: BSE
A20: 2021-08-31 | B20: 540361 | C20: DANUBE | D20: SUNIL HUKUMAT RAJDEV | E20: BUY | F20: 69,870 | G20: 35.45 | H20: BSE
A21: 2021-08-31 | B21: 542155 | C21: DGL | D21: ROHIT MEHRA | E21: SELL | F21: 50,000 | G21: 2.6 | H21: BSE
A22: 2021-08-31 | B22: 539814 | C22: LELAVOIR | D22: MARUTI BABAN CHIKANE | E22: BUY | F22: 20,000 | G22: 67.32 | H22: BSE
A23: 2021-08-31 | B23: 539814 | C23: LELAVOIR | D23: HARIKRISHNA AGARWAL | E23: SELL | F23: 47,000 | G23: 66.91 | H23: BSE
A24: 2021-08-31 | B24: 538401 | C24: METSL | D24: DHEERAJ KUMAR LOHIA | E24: BUY | F24: 43,540 | G24: 56.82 | H24: BSE
A25: 2021-08-31 | B25: 526622 | C25: MFLINDIA | D25: TOPGAIN FINANCE PRIVATE LIMITED | E25: BUY | F25: 1 | G25: 0.32 | H25: BSE
A26: 2021-08-31 | B26: 526622 | C26: MFLINDIA | D26: TOPGAIN FINANCE PRIVATE LIMITED | E26: SELL | F26: 1,841,820 | G26: 0.32 | H26: BSE
A27: 2021-08-31 | B27: 539767 | C27: MNIL | D27: KABIR SHRAN DAGAR | E27: BUY | F27: 17,667 | G27: 13.22 | H27: BSE
A28: 2021-08-31 | B28: 539767 | C28: MNIL | D28: KABIR SHRAN DAGAR | E28: SELL | F28: 21,097 | G28: 13 | H28: BSE
A29: 2021-08-31 | B29: 540198 | C29: OSIAJEE | D29: RAVINDER KUMAR | E29: BUY | F29: 85 | G29: 39 | H29: BSE
A30: 2021-08-31 | B30: 540198 | C30: OSIAJEE | D30: RAVINDER KUMAR | E30: SELL | F30: 29,591 | G30: 39.11 | H30: BSE
A31: 2021-08-31 | B31: 539291 | C31: OZONEWORLD | D31: DISHANT BHARATBHAI SHAH | E31: SELL | F31: 25,000 | G31: 8.59 | H31: BSE
A32: 2021-08-31 | B32: 540253 | C32: SNTCL | D32: MONOHAR TATWA | E32: SELL | F32: 90,000 | G32: 1.3 | H32: BSE
A33: 2021-08-31 | B33: 540253 | C33: SNTCL | D33: PRIMARY IRON TRADERS PVT LTD | E33: BUY | F33: 105,598 | G33: 1.3 | H33: BSE
A34: 2021-08-31 | B34: 532035 | C34: UNISTRMU | D34: TIRTH AMRISHBHAI PATEL . | E34: BUY | F34: 88,888 | G34: 11.25 | H34: BSE
A35: 2021-08-31 | B35: 540145 | C35: VALIANTORG | D35: GOLDMAN SACHS FUNDS GOLDMAN SACHS INDIA EQUITY PORTFOLIO | E35: BUY | F35: 213,004 | G35: 1299.05 | H35: BSE
A36: 2021-08-31 | B36: 540145 | C36: VALIANTORG | D36: GOLDMAN SACHS INDIA FUND LIMITED | E36: SELL | F36: 213,004 | G36: 1299.05 | H36: BSE
A37: 2021-08-31 | B37: APTECHT | C37: Aptech Limited | D37: XTX MARKETS LLP | E37: BUY | F37: 300,079 | G37: 303.18 | H37: NSE
A38: 2021-08-31 | B38: APTECHT | C38: Aptech Limited | D38: GRAVITON RESEARCH CAPITAL LLP | E38: BUY | F38: 206,309 | G38: 303.7 | H38: NSE
A39: 2021-08-31 | B39: BCONCEPTS | C39: Brand Concepts Limited | D39: GAURAV KUMAR | E39: BUY | F39: 54,000 | G39: 28.08 | H39: NSE
A40: 2021-08-31 | B40: BCONCEPTS | C40: Brand Concepts Limited | D40: AMANDEEP SINGH | E40: BUY | F40: 54,000 | G40: 28.08 | H40: NSE
A41: 2021-08-31 | B41: DSML | C41: Debock Sale Marketing Ltd | D41: UMESH BHAT | E41: BUY | F41: 60,000 | G41: 21.9 | H41: NSE
A42: 2021-08-31 | B42: GSS | C42: GSS Infotech Limited | D42: VIKRAMKUMAR KARANRAJ SAKARIA HUF DAKSH CORPORATION | E42: BUY | F42: 68,207 | G42: 71.97 | H42: NSE
A43: 2021-08-31 | B43: LIBAS | C43: Libas Consu Products Ltd | D43: VISA CAPITAL PARTNERS | E43: BUY | F43: 133,574 | G43: 62.56 | H43: NSE
A44: 2021-08-31 | B44: NATHBIOGEN | C44: Nath Bio-Genes (I) Ltd | D44: BIRLA SUN LIFE TRUSTEE COMPANY PVT LTD A/C BIRLA SUN LIFE PURE VALUE FUND | E44: BUY | F44: 728,000 | G44: 308.9 | H44: NSE
A45: 2021-08-31 | B45: PALREDTEC | C45: Palred Technologies Ltd | D45: B M TRADERS | E45: BUY | F45: 81,205 | G45: 112.76 | H45: NSE
A46: 2021-08-31 | B46: SEAMECLTD | C46: SEAMEC Limited | D46: RASHI FINCORP LTD | E46: BUY | F46: 148,663 | G46: 749.18 | H46: NSE
A47: 2021-08-31 | B47: SHRADHA | C47: Shradha Infraprojects Ltd | D47: SGR HOLDINGS PRIVATE LIMITED . | E47: BUY | F47: 300,000 | G47: 66.5 | H47: NSE
A48: 2021-08-31 | B48: TARMAT | C48: Tarmat Limited | D48: DEEPA AGARWAL | E48: BUY | F48: 66,790 | G48: 66.87 | H48: NSE
A49: 2021-08-31 | B49: TATACOFFEE | C49: Tata Coffee Limited | D49: XTX MARKETS LLP | E49: BUY | F49: 1,140,107 | G49: 211.32 | H49: NSE
A50: 2021-08-31 | B50: TATACOFFEE | C50: Tata Coffee Limited | D50: GRAVITON RESEARCH CAPITAL LLP | E50: BUY | F50: 1,062,308 | G50: 211.47 | H50: NSE
A51: 2021-08-31 | B51: APTECHT | C51: Aptech Limited | D51: XTX MARKETS LLP | E51: SELL | F51: 299,779 | G51: 303.64 | H51: NSE
A52: 2021-08-31 | B52: APTECHT | C52: Aptech Limited | D52: GRAVITON RESEARCH CAPITAL LLP | E52: SELL | F52: 206,309 | G52: 303.24 | H52: NSE
A53: 2021-08-31 | B53: BCONCEPTS | C53: Brand Concepts Limited | D53: INDERJEET KAUR WADHWA | E53: SELL | F53: 54,000 | G53: 28.08 | H53: NSE
A54: 2021-08-31 | B54: BCONCEPTS | C54: Brand Concepts Limited | D54: AMANDEEP SINGH | E54: SELL | F54: 54,000 | G54: 28.08 | H54: NSE
A55: 2021-08-31 | B55: DSML | C55: Debock Sale Marketing Ltd | D55: HEMAL ARUNBHAI MEHTA | E55: SELL | F55: 102,000 | G55: 21.9 | H55: NSE
A56: 2021-08-31 | B56: GSS | C56: GSS Infotech Limited | D56: VIKRAMKUMAR KARANRAJ SAKARIA HUF DAKSH CORPORATION | E56: SELL | F56: 101,057 | G56: 72.57 | H56: NSE
A57: 2021-08-31 | B57: LIBAS | C57: Libas Consu Products Ltd | D57: VISA CAPITAL PARTNERS | E57: SELL | F57: 116,718 | G57: 62.61 | H57: NSE
A58: 2021-08-31 | B58: LIBAS | C58: Libas Consu Products Ltd | D58: RKS FAMILY TRUST | E58: SELL | F58: 147,552 | G58: 61.59 | H58: NSE
A59: 2021-08-31 | B59: MOKSH | C59: Moksh Ornaments Limited | D59: JAWANMAL MOOLCHAND SHAH | E59: SELL | F59: 550,000 | G59: 34 | H59: NSE
A60: 2021-08-31 | B60: NATHBIOGEN | C60: Nath Bio-Genes (I) Ltd | D60: ADITYA BIRLA SUN LIFE MUTUAL FUND | E60: SELL | F60: 728,413 | G60: 308.9 | H60: NSE
A61: 2021-08-31 | B61: PALREDTEC | C61: Palred Technologies Ltd | D61: B M TRADERS | E61: SELL | F61: 81,205 | G61: 116.29 | H61: NSE
A62: 2021-08-31 | B62: SHRADHA | C62: Shradha Infraprojects Ltd | D62: RIAAN DIAGONISTIC PRIVATE LIMITED . | E62: SELL | F62: 297,560 | G62: 66.5 | H62: NSE
A63: 2021-08-31 | B63: TARMAT | C63: Tarmat Limited | D63: DEEPA AGARWAL | E63: SELL | F63: 69,233 | G63: 65.61 | H63: NSE
A64: 2021-08-31 | B64: TATACOFFEE | C64: Tata Coffee Limited | D64: XTX MARKETS LLP | E64: SELL | F64: 1,119,163 | G64: 211.66 | H64: NSE
A65: 2021-08-31 | B65: TATACOFFEE | C65: Tata Coffee Limited | D65: GRAVITON RESEARCH CAPITAL LLP | E65: SELL | F65: 1,062,308 | G65: 211.46 | H65: NSE
A66: 2021-08-31 | B66: UJJIVAN | C66: Ujjivan Fin. Servc. Ltd. | D66: ALENA PRIVATE LIMITED | E66: SELL | F66: 1,474,554 | G66: 156 | H66: NSE

Sheet Call Tracker (Equity & F&O)
M5: Back To Main Page
A6: Retail Research Technical Calls & Fundamental Performance Report for the month of Aug-2021
M7: =Main!B10 -> 2021-09-01
B8: Positional Call
A9: Sr.no | B9: Date | D9: Company | E9: Rec | F9: Rec Price | G9: Stop Loss*** | H9: Call Closed At | I9: Target | J9: Remark | K9: Profit / Loss per Share | L9: All charges | M9: Net Gain / Loss % | N9: Status | O9: Closed Date
A10: 1 | B10: 2021-06-10 | D10: BRITANNIA | E10: Buy | F10: 3585 | G10: 3345 | H10: 3,730.00 | I10: 3900-4000 | J10: Profit of Rs.145/- | K10: =H10-F10 -> 145 | L10: =(F10*-0.8)/100 -> -28.68 | M10: =(K10+L10)/F10 -> 3.24% | N10: Successful | O10: 2021-08-18 | R10: H
A11: 2 | B11: 2021-06-16 | D11: ESCORTS | E11: Buy<> | F11: 1189.75 | G11: 1111.5 | H11: 1,252.00 | I11: 1300-1350 | J11: Profit of Rs.62.25/- | K11: =H11-F11 -> 62.25 | L11: =(F11*-0.8)/100 -> -9.52 | M11: =(K11+L11)/F11 -> 4.43% | N11: Successful | O11: 2021-08-10 | R11: H
A12: 3 | B12: 2021-07-08 | D12: ZYDUSWELL | E12: Buy | F12: 2200 | G12: 2060 | H12: 2,380.00 | I12: 2500 | J12: Profit of Rs.180/- | K12: 180 | L12: =(F12*-0.8)/100 -> -17.60 | M12: 7.38% | N12: Successful | O12: 2021-08-26 | R12: N
A13: 4 | B13: 2021-07-08 | D13: MARUTI | E13: Buy<> | F13: 7335 | G13: 6905 | H13: 6,905.00 | I13: 8000-8200 | J13: Loss of Rs.430/- | K13: =H13-F13 -> -430 | L13: =(F13*-0.8)/100 -> -58.68 | M13: =(K13+L13)/F13 -> -6.66% | N13: Unsuccessful | O13: 2021-08-16 | R13: H
A14: 5 | B14: 2021-07-19 | D14: IGL | E14: Buy | F14: 545-550 | G14: 510 | I14: 620-640 | J14: Open | R14: H
A15: 6 | B15: 2021-07-20 | D15: IOC | E15: Buy | F15: 104.5 | G15: 96.5 | H15: 110.00 | I15: 120-122 | J15: Part profit of Rs.5.5/- | K15: =H15-F15 -> 5.5 | L15: =(F15*-0.8)/100 -> -0.84 | M15: =(K15+L15)/F15 -> 4.46% | N15: Successful | O15: 2021-08-31 | R15: H
A16: 7 | B16: 2021-07-22 | D16: LT | E16: Buy<> | F16: 1577 | G16: 1447 | H16: 1,673.00 | I16: 1800-1850 | J16: Profit of Rs.96/- | K16: =H16-F16 -> 96 | L16: =(F16*-0.8)/100 -> -12.62 | M16: =(K16+L16)/F16 -> 5.29% | N16: Successful | O16: 2021-08-13 | R16: H
A17: 8 | B17: 2021-07-30 | D17: AMARAJABAT | E17: Buy | F17: 715 | G17: 675 | H17: 740.00 | I17: 780-800 | J17: Part profit of Rs.25/- | K17: 25 | L17: =(F17*-0.7)/100 -> -5.01 | M17: 2.80% | N17: Successful | O17: 2021-08-16 | R17: H
A18: 9 | B18: 2021-08-02 | D18: MIRZAINT | E18: Buy | F18: 63.3 | G18: 59 | H18: 59.00 | I18: 70-72 | J18: Loss of Rs.4.3/- | K18: =H18-F18 -> -4.3 | L18: =(F18*-0.8)/100 -> -0.51 | M18: =(K18+L18)/F18 -> -7.59% | N18: Unsuccessful | O18: 2021-08-10 | R18: H
A19: 10 | B19: 2021-08-09 | D19: ENGINERSIN | E19: Buy | F19: 74 | G19: 69 | H19: 68.50 | I19: 80-83 | J19: Loss of Rs.5.5/- | K19: =H19-F19 -> -5.5 | L19: =(F19*-0.8)/100 -> -0.59 | M19: =(K19+L19)/F19 -> -8.23% | N19: Unsuccessful | O19: 2021-08-23 | R19: H
A20: 11 | B20: 2021-08-13 | D20: MCX | E20: Buy | F20: 1490-1510 | G20: 1415 | I20: 1650-1680 | J20: Open | R20: H
A21: 12 | B21: 2021-08-20 | D21: POLYCAB | E21: Buy | F21: 1865 | G21: 1740 | H21: 1,975.00 | I21: 2000-2050 | J21: Profit of Rs.110/- | K21: =H21-F21 -> 110 | L21: =(F21*-0.8)/100 -> -14.92 | M21: =(K21+L21)/F21 -> 5.10% | N21: Successful | O21: 2021-08-30 | R21: H
A27: CLBS = Closing Basis ***
A28: Dividend adjusted <> | F28: Reinitiated $
A29: Part book {} | F29: Revised stoploss #
B31: Momentum Call
A32: Sr.no | B32: Date | D32: Company | E32: Rec | F32: Rec Price | G32: Stop Loss | H32: Call Closed At | I32: Target | J32: Remark | K32: Profit / Loss per Share/Lot | L32: All charges | M32: Net Gain / Loss % | N32: Status | O32: Closed Date
A33: 1 | B33: 2021-07-20 | D33: BLUESTARCO | E33: Buy | F33: 846 | G33: 821 | H33: 832.5 | I33: 895 | J33: Loss of Rs.13.5/- | K33: =H33-F33 -> -13.5 | L33: =(F33*-0.7)/100 -> -5.92 | M33: =(K33+L33)/F33 -> -2.30% | N33: Unsuccessful | O33: 2021-08-04 | R33: H
A34: 2 | B34: 2021-07-22 | D34: SUPREMEIND | E34: Buy | F34: 2097 | G34: 2040 | H34: 2147.5 | I34: 2180-2200 | J34: Profit of Rs.50.5/- | K34: =H34-F34 -> 50.5 | L34: =(F34*-0.7)/100 -> -14.68 | M34: =(K34+L34)/F34 -> 1.71% | N34: Successful | O34: 2021-08-02 | R34: H
A35: 2 | B35: 2021-07-29 | D35: BAJAJELEC | E35: Buy | F35: 1147.5 | G35: 1115 | H35: 1182.5 | I35: 1200-1210 | J35: Profit of Rs.35/- | K35: =H35-F35 -> 35 | L35: =(F35*-0.7)/100 -> -8.03 | M35: =(K35+L35)/F35 -> 2.35% | N35: Successful | O35: 2021-08-02 | R35: N
A36: 4 | B36: 2021-07-30 | D36: DELTACORP | E36: Buy | F36: 184.5 | G36: 179 | H36: 179 | I36: 195-197 | J36: Loss of Rs.5.5/- | K36: -5.5 | L36: =(F36*-0.7)/100 -> -1.29 | M36: -3.68% | N36: Unsuccessful | O36: 2021-08-03 | R36: N
A37: 5 | B37: 2021-08-02 | D37: MARICO | E37: Buy | F37: 551 | G37: 534 | H37: 534.5 | I37: 580 | J37: Loss of Rs.16.5/- | K37: =H37-F37 -> -16.5 | L37: =(F37*-0.07)/100 -> -0.39 | M37: =(K37+L37)/F37 -> -3.06% | N37: Unsuccessful | O37: 2021-08-02 | R37: N
A38: 6 | B38: 2021-08-02 | D38: SUNTV | E38: Buy | F38: 569.5 | G38: 554 | H38: 554 | I38: 595-605 | J38: Loss of Rs.16.5/- | K38: =H38-F38 -> -15.5 | L38: =(F38*-0.7)/100 -> -3.99 | M38: =(K38+L38)/F38 -> -3.42% | N38: Unsuccessful | O38: 2021-08-05 | R38: H
A39: 7 | B39: 2021-08-02 | D39: AEGISCHEM | E39: Buy | F39: 305.5 | G39: 297 | H39: 297 | I39: 320-322 | J39: Loss of Rs.8.5/- | K39: =H39-F39 -> -8.5 | L39: =(F39*-0.7)/100 -> -2.14 | M39: =(K39+L39)/F39 -> -3.48% | N39: Unsuccessful | O39: 2021-08-04 | R39: H
A40: 8 | B40: 2021-08-03 | D40: NMDC | E40: Buy | F40: 178.25 | G40: 173 | H40: 182.5 | I40: 188-190 | J40: Profit of Rs.4.25/- | K40: =H40-F40 -> 4.25 | L40: =(F40*-0.07)/100 -> -0.12 | M40: =(K40+L40)/F40 -> 2.31% | N40: Successful | O40: 2021-08-03 | R40: H
A41: 9 | B41: 2021-08-04 | D41: RATNAMANI | E41: Buy | F41: 2159 | G41: 2085 | H41: 2085 | I41: 2220-2250 | J41: Loss of Rs.74/- | K41: -74 | L41: =(F41*-0.7)/100 -> -15.11 | M41: -4.13% | N41: Unsuccessful | O41: 2021-08-05 | R41: H
A42: 10 | B42: 2021-08-04 | D42: MAXHEALTH | E42: Buy | F42: 284 | G42: 274 | H42: 275 | I42: 295-300 | J42: Loss of Rs.9/- | K42: -9 | L42: =(F42*-0.7)/100 -> -1.99 | M42: -3.87% | N42: Unsuccessful | O42: 2021-08-05 | R42: H
A43: 11 | B43: 2021-08-05 | D43: SAIL | E43: Buy | F43: 135.5 | G43: 131.8 | H43: 138.5 | I43: 140-142 | J43: Profit of Rs.3/- | K43: =H43-F43 -> 3 | L43: =(F43*-0.07)/100 -> -0.09 | M43: =(K43+L43)/F43 -> 2.14% | N43: Successful | O43: 2021-08-05 | R43: H
A44: 12 | B44: 2021-08-06 | D44: MUTHOOTFIN | E44: Buy | F44: 1515 | G44: 1470 | H44: 1550 | I44: 1600-1620 | J44: Profit of Rs.35/- | K44: =H44-F44 -> 35 | L44: =(F44*-0.07)/100 -> -1.06 | M44: =(K44+L44)/F44 -> 2.24% | N44: Successful | O44: 2021-08-06 | R44: H
A45: 13 | B45: 2021-08-09 | D45: INDUSINDBK | E45: Buy | F45: 1035 | G45: 1005 | H45: 1005 | I45: 1100 | J45: Loss of Rs.30/- | K45: -30 | L45: =(F45*-0.7)/100 -> -7.25 | M45: -3.60% | N45: Unsuccessful | O45: 2021-08-17 | R45: N
A46: 14 | B46: 2021-08-09 | D46: NMDC | E46: Buy | F46: 178 | G46: 173 | H46: 172.5 | I46: 187-190 | J46: Loss of Rs.5.5/- | K46: =H46-F46 -> -5.5 | L46: =(F46*-0.7)/100 -> -1.25 | M46: =(K46+L46)/F46 -> -3.79% | N46: Unsuccessful | O46: 2021-08-10 | R46: H
A47: 15 | B47: 2021-08-09 | D47: LAURUSLABS | E47: Buy | F47: 701 | G47: 685 | H47: 715 | I47: 720-730 | J47: Profit of Rs.14/- | K47: 14 | L47: =(F47*-0.7)/100 -> -4.91 | M47: 1.30% | N47: Successful | O47: 2021-08-10 | R47: H
A48: 16 | B48: 2021-08-10 | D48: TATACHEM | E48: Buy | F48: 854.5 | G48: 832 | H48: 876 | I48: 880-890 | J48: Profit of Rs.21.5/- | K48: =H48-F48 -> 21.5 | L48: =(F48*-0.7)/100 -> -5.98 | M48: =(K48+L48)/F48 -> 1.82% | N48: Successful | O48: 2021-08-12 | R48: N
A49: 17 | B49: 2021-08-11 | D49: IEX | E49: Buy | F49: 401 | G49: 388 | H49: 388 | I49: 415-425 | J49: Loss of Rs.13/- | K49: =H49-F49 -> -13 | L49: =(F49*-0.07)/100 -> -0.28 | M49: =(K49+L49)/F49 -> -3.31% | N49: Unsuccessful | O49: 2021-08-11 | R49: H
A50: 18 | B50: 2021-08-11 | D50: JBCHEPHARM | E50: Buy | F50: 1695 | G50: 1645 | H50: 1730 | I50: 1770-1800 | J50: Profit of Rs.35/- | K50: 35 | L50: =(F50*-0.07)/100 -> -1.19 | M50: 1.99% | N50: Successful | O50: 2021-08-11 | R50: H
A51: 19 | B51: 2021-08-13 | D51: INDIGO | E51: Buy | F51: 1672 | G51: 1615 | H51: 1717.5 | I51: 1740-1760 | J51: Profit of Rs.45.5/- | K51: 45.5 | L51: =(F51*-0.7)/100 -> -11.70 | M51: 2.02% | N51: Successful | O51: 2021-08-17 | R51: H
A52: 20 | B52: 2021-08-13 | D52: ICICIGI | E52: Buy | F52: 1446 | G52: 1395 | H52: 1486.5 | I52: 1550 | J52: Profit of Rs.40.5/- | K52: =H52-F52 -> 40.5 | L52: =(F52*-0.7)/100 -> -10.12 | M52: =(K52+L52)/F52 -> 2.10% | N52: Successful | O52: 2021-08-20 | R52: H
A53: 21 | B53: 2021-08-16 | D53: JYOTHYLAB | E53: Buy | F53: 168.5 | G53: 163 | H53: 163 | I53: 180 | J53: Loss of Rs.5.5/- | K53: -5.5 | L53: -1.18 | M53: -3.96% | N53: Unsuccessful | O53: 2021-08-20 | R53: H
A54: 22 | B54: 2021-08-17 | D54: ZYDUSWELL | E54: Buy | F54: 2215 | G54: 2170 | H54: 2170 | I54: 2280-2300 | J54: Loss of Rs.45/- | K54: -45 | L54: -15.51 | M54: -2.73% | N54: Unsuccessful | O54: 2021-08-20 | R54: N
A55: 23 | B55: 2021-08-18 | D55: GRANULES | E55: Buy | F55: 347.5 | G55: 337 | H55: 337 | I55: 360-365 | J55: Loss of Rs.10.5/- | K55: -10.5 | L55: -2.43 | M55: -3.72% | N55: Unsuccessful | O55: 2021-08-20 | R55: H
A56: 24 | B56: 2021-08-20 | D56: AARTIIND | E56: Buy | F56: 930-938 | G56: 899 | I56: 980-1000 | J56: Open | R56: H
A57: 25 | B57: 2021-08-23 | D57: BANKBARODA | E57: Sell | F57: 75.25 | G57: 77.5 | H57: 73.9 | I57: 72-70 | J57: Profit of Rs.1.35/- | K57: =F57-H57 -> 1.35 | L57: =(F57*-0.07)/100 -> -0.05 | M57: =(K57+L57)/F57 -> 1.72% | N57: Successful | O57: 2021-08-23 | R57: H
A58: 26 | B58: 2021-08-23 | D58: MCDOWELL-N | E58: Buy | F58: 701.5 | G58: 680 | H58: 720 | I58: 735-745 | J58: Profit of Rs.17/- | K58: =H58-F58 -> 18.5 | L58: =(F58*-0.7)/100 -> -4.91 | M58: 1.94% | N58: Successful | O58: 2021-08-31 | R58: H
A59: 27 | B59: 2021-08-24 | D59: TATAMOTORS | E59: Sell | F59: 278 | G59: 285.5 | H59: 273 | I59: 268-265 | J59: Profit of Rs.5/- | K59: =F59-H59 -> 5 | L59: =(F59*-0.07)/100 -> -0.19 | M59: =(K59+L59)/F59 -> 1.73% | N59: Successful | O59: 2021-08-24 | R59: H
A60: 28 | B60: 2021-08-24 | D60: SYNGENE | E60: Buy | F60: 598 | G60: 580 | H60: 615 | I60: 625-635 | J60: Profit of Rs.17/- | K60: =H60-F60 -> 17 | L60: =(F60*-0.7)/100 -> -4.19 | M60: 2.14% | N60: Successful | O60: 2021-08-20 | R60: H
A61: 29 | B61: 2021-08-25 | D61: BANKBARODA | E61: Sell | F61: 75.5 | G61: 77.5 | H61: 75 | I61: 72-70 | J61: Profit of Rs.0.5/- | K61: =F61-H61 -> 0.5 | L61: =(F61*-0.07)/100 -> -0.05 | M61: =(K61+L61)/F61 -> 0.59% | N61: Successful | O61: 2021-08-25 | R61: H
A62: 30 | B62: 2021-08-26 | D62: BANKBARODA | E62: Sell | F62: 75.65 | G62: 78 | H62: 74.6 | I62: 72-70 | J62: Profit of Rs.1.05/- | K62: =F62-H62 -> 1.05 | L62: =(F62*-0.07)/100 -> -0.05 | M62: =(K62+L62)/F62 -> 1.32% | N62: Successful | O62: 2021-08-26 | R62: H
A63: 31 | B63: 2021-08-26 | D63: INDIAMART | E63: Buy | F63: 7055 | G63: 6900 | H63: 7235 | I63: 7300-7400 | J63: Profit of Rs.180/- | K63: =H63-F63 -> 180 | L63: =(F63*-0.7)/100 -> -49.39 | M63: 1.85% | N63: Successful | O63: 2021-08-30 | R63: H
A64: 32 | B64: 2021-08-26 | D64: IPCALAB | E64: Buy | F64: 2505 | G64: 2430 | H64: 2542.5 | I64: 2600-2620 | J64: Profit of Rs.37.5/- | K64: =H64-F64 -> 37.5 | L64: =(F64*-0.07)/100 -> -1.75 | M64: =(K64+L64)/F64 -> 1.43% | N64: Successful | O64: 2021-08-26 | R64: H
A65: 33 | B65: 2021-08-26 | D65: OFSS | E65: Buy | F65: 4720 | G65: 4610 | H65: 4840 | I65: 4900 | J65: Profit of Rs.120/- | K65: 120 | L65: =(F65*-0.7)/100 -> -33.04 | M65: 1.84% | N65: Successful | O65: 2021-08-30 | R65: N
A66: 34 | B66: 2021-08-27 | D66: BERGERPAINT | E66: Buy | F66: 779.5 | G66: 759 | H66: 797.5 | I66: 810-820 | J66: Profit of Rs.18/- | K66: =H66-F66 -> 18 | L66: =(F66*-0.7)/100 -> -5.46 | M66: =(K66+L66)/F66 -> 1.61% | N66: Successful | O66: 2021-08-30 | R66: H
A67: 35 | B67: 2021-08-27 | D67: ZYDUSWELL | E67: Buy | F67: 2300-2310 | G67: 2240 | I67: 2400-2420 | J67: Open | R67: N
A68: 36 | B68: 2021-08-30 | D68: PEL | E68: Buy | F68: 2625-2635 | G68: 2550 | I68: 2700-2750 | J68: Open | R68: N
A69: 37 | B69: 2021-08-30 | D69: BANKBARODA | E69: Sell | F69: 75.7 | G69: 78 | H69: 78 | I69: 72-71 | J69: Loss of Rs.1.05/- | K69: =F69-H69 -> -2.3 | L69: =(F69*-0.07)/100 -> -0.05 | M69: =(K69+L69)/F69 -> -3.11% | N69: Successful | O69: 2021-08-31 | R69: H
A75: CLBS = Closing Basis *** | H75: *
A76: Dividend adjusted <> | F76: Reinitiated $
F77: Revised stoploss #
A79: Master Trade High Risk
A80: Sr.no | B80: Date | D80: Company | E80: Rec | F80: Rec Price | G80: Stop Loss | H80: Call Closed At | I80: Target | J80: Remark | K80: Profit / Loss per share | L80: All charges | M80: Gain / Loss per Lot | N80: Lot | O80: Status | P80: Closed Date
A81: 1 | B81: 2021-07-28 | D81: ICICIGI AUG FUT | E81: Buy | F81: 1501 | G81: 1470 | H81: 1470 | I81: 1550-1560 | J81: Loss of Rs.31/- | K81: =H81-F81 -> -31 | L81: =(H81*N81)*0.07% -> 437.33 | M81: =(K81*N81)-L81 -> -13612.3 | N81: 425 | O81: Unsuccessful | P81: 2021-08-02 | R81: N
A82: 2 | B82: 2021-07-29 | D82: HINDUNILVR AUG FUT | E82: Buy | F82: 2340 | G82: 2295 | H82: 2366.5 | I82: 2430-2450 | J82: Profit of Rs.26.5/- | K82: 26.5 | L82: 496.97 | M82: 7453.0 | N82: 300 | O82: Successful | P82: 2021-08-03 | R82: H
A83: 3 | B83: 2021-07-30 | D83: SBIN AUG FUT | E83: Buy | F83: 433 | G83: 425 | H83: 438.5 | I83: 445 | J83: Profit of Rs.5.5/- | K83: =H83-F83 -> 5.5 | L83: =(H83*N83)*0.07% -> 460.43 | M83: =(K83*N83)-L83 -> 7789.6 | N83: 1500 | O83: Successful | P83: 2021-08-02 | R83: H
A84: 4 | B84: 2021-07-30 | D84: LT AUG FUT | E84: Buy | F84: 1616.5 | G84: 1595 | H84: 1639 | I84: 1650-1660 | J84: Profit of Rs.22.5/- | K84: 22.5 | L84: 659.70 | M84: 12277.8 | N84: 575 | O84: Successful | P84: 2021-08-03 | R84: N
A85: 5 | B85: 2021-07-30 | D85: BERGEPAINT AUG FUT | E85: Buy | F85: 849 | G85: 836 | H85: 856 | I85: 870 | J85: Profit of Rs.7/- | K85: =H85-F85 -> 7 | L85: =(H85*N85)*0.07% -> 659.12 | M85: =(K85*N85)-L85 -> 7040.9 | N85: 1100 | O85: Successful | P85: 2021-08-03 | R85: N
A86: 6 | B86: 2021-08-03 | D86: COLPAL AUG FUT | E86: Buy | F86: 1692 | G86: 1655 | H86: 1655 | I86: 1750-1770 | J86: Loss of Rs.37/- | K86: -37 | L86: 405.48 | M86: -13355.5 | N86: 350 | O86: Unsuccessful | P86: 2021-08-06 | R86: N
A87: 7 | B87: 2021-08-03 | D87: TVSMOTOR AUG FUT | E87: Buy | F87: 571 | G87: 560 | H87: 577 | I87: 590 | J87: Profit of Rs.6/- | K87: =H87-F87 -> 6 | L87: =(H87*N87)*0.07% -> 565.46 | M87: =(K87*N87)-L87 -> 7834.5 | N87: 1400 | O87: Successful | P87: 2021-08-04 | R87: N
A88: 8 | B88: 2021-08-03 | D88: PEL AUG FUT | E88: Buy | F88: 2534 | G88: 2490 | H88: 2567.5 | I88: 2600-2630 | J88: Profit of Rs.33.5/- | K88: 33.5 | L88: 494.24 | M88: 8718.3 | N88: 275 | O88: Successful | P88: 2021-08-04 | R88: N
A89: 9 | B89: 2021-08-03 | D89: HDFCBANK AUG FUT | E89: Buy | F89: 1438 | G89: 1414 | H89: 1454 | I89: 1470-1480 | J89: Profit of Rs.16/- | K89: =H89-F89 -> 16 | L89: =(H89*N89)*0.07% -> 559.79 | M89: =(K89*N89)-L89 -> 8240.2 | N89: 550 | O89: Successful | P89: 2021-08-04 | R89: H
A90: 10 | B90: 2021-08-04 | D90: ACC AUG FUT | E90: Buy | F90: 2441 | G90: 2416 | H90: 2416 | I90: 2480-2490 | J90: Loss of Rs.25/- | K90: -25 | L90: 845.60 | M90: -13345.6 | N90: 500 | O90: Unsuccessful | P90: 2021-08-04 | R90: N
A91: 11 | B91: 2021-08-05 | D91: NAM-INDIA AUG FUT | E91: Buy | F91: 407 | G91: 397 | H91: 397 | I91: 425-430 | J91: Loss of Rs.10/- | K91: =H91-F91 -> -10 | L91: =(H91*N91)*0.07% -> 444.64 | M91: =(K91*N91)-L91 -> -16444.6 | N91: 1600 | O91: Unsuccessful | P91: 2021-08-09 | R91: N
A92: 12 | B92: 2021-08-05 | D92: HDFCLIFE AUG FUT | E92: Buy | F92: 671.5 | G92: 660 | H92: 679 | I92: 688-692 | J92: Profit of Rs.7.5/- | K92: 7.5 | L92: 522.83 | M92: 7727.2 | N92: 1100 | O92: Successful | P92: 2021-08-09 | R92: H
A93: 13 | B93: 2021-08-06 | D93: TVSMOTOR AUG FUT | E93: Buy | F93: 569.5 | G93: 560 | H93: 575.5 | I93: 590 | J93: Profit of Rs.6/- | K93: =H93-F93 -> 6 | L93: =(H93*N93)*0.07% -> 563.99 | M93: =(K93*N93)-L93 -> 7836.0 | N93: 1400 | O93: Successful | P93: 2021-08-06 | R93: N
A94: 14 | B94: 2021-08-06 | D94: ITC AUG FUT | E94: Buy | F94: 214.5 | G94: 210 | H94: 217.75 | I94: 222 | J94: Profit of Rs.3.25/- | K94: 3.25 | L94: 487.76 | M94: 9912.2 | N94: 3200 | O94: Successful | P94: 2021-08-09 | R94: H
A95: 15 | B95: 2021-08-06 | D95: CHOLAFIN AUG FUT | E95: Buy | F95: 538.5 | G95: 528 | H95: 528 | I95: 560 | J95: Loss of Rs.10.5/- | K95: =H95-F95 -> -10.5 | L95: =(H95*N95)*0.07% -> 462.00 | M95: =(K95*N95)-L95 -> -13587.0 | N95: 1250 | O95: Unsuccessful | P95: 2021-08-06 | R95: N
A96: 16 | B96: 2021-08-09 | D96: LUPIN AUG FUT | E96: Buy | F96: 1143 | G96: 1127 | H96: 1127 | I96: 1175 | J96: Loss of Rs.16/- | K96: =H96-F96 -> -16 | L96: =(H96*N96)*0.07% -> 670.57 | M96: =(K96*N96)-L96 -> -14270.6 | N96: 850 | O96: Unsuccessful | P96: 2021-08-09 | R96: N
A97: 17 | B97: 2021-08-09 | D97: HDFC AUG FUT | E97: Buy | F97: 2632 | G97: 2595 | H97: 2664 | I97: 2680-2700 | J97: Profit of Rs.13/- | K97: 32 | L97: 559.44 | M97: 9040.6 | N97: 300 | O97: Successful | P97: 2021-08-10 | R97: H
A98: 18 | B98: 2021-08-09 | D98: HDFCLIFE AUG FUT | E98: Buy | F98: 669 | G98: 658 | H98: 676 | I98: 685-690 | J98: Profit of Rs.8/- | K98: 7 | L98: 520.52 | M98: 7179.5 | N98: 1100 | O98: Successful | P98: 2021-08-12 | R98: H
A99: 19 | B99: 2021-08-09 | D99: AARTIIND AUG FUT | E99: Buy | F99: 941 | G99: 926 | H99: 952 | I99: 975 | J99: Profit of Rs.11/- | K99: =H99-F99 -> 11 | L99: =(H99*N99)*0.07% -> 566.44 | M99: =(K99*N99)-L99 -> 8783.6 | N99: 850 | O99: Successful | P99: 2021-08-09 | R99: N
A100: 20 | B100: 2021-08-10 | D100: AARTIIND AUG FUT | E100: Buy | F100: 941 | G100: 926 | H100: 954 | I100: 975 | J100: Profit of Rs.13/- | K100: =H100-F100 -> 13 | L100: =(H100*N100)*0.07% -> 567.63 | M100: =(K100*N100)-L100 -> 10482.4 | N100: 850 | O100: Successful | P100: 2021-08-10 | R100: N
A101: 21 | B101: 2021-08-10 | D101: ITC AUG FUT | E101: Buy | F101: 212.75 | G101: 208.5 | H101: 209.25 | I101: 220 | J101: Loss of Rs.3.5/- | K101: -3.5 | L101: 468.72 | M101: -11668.7 | N101: 3200 | O101: Unsuccessful | P101: 2021-08-10 | R101: H
A102: 22 | B102: 2021-08-11 | D102: IGL AUG FUT | E102: Buy | F102: 519 | G102: 509.5 | H102: 527 | I102: 535 | J102: Profit of Rs.8/- | K102: =H102-F102 -> 8 | L102: =(H102*N102)*0.07% -> 516.46 | M102: =(K102*N102)-L102 -> 10683.5 | N102: 1400 | O102: Successful | P102: 2021-08-12 | R102: H
A103: 23 | B103: 2021-08-11 | D103: AARTIIND AUG FUT | E103: Buy | F103: 911 | G103: 896 | H103: 921 | I103: 930-935 | J103: Profit of Rs.10/- | K103: =H103-F103 -> 10 | L103: =(H103*N103)*0.07% -> 548.00 | M103: =(K103*N103)-L103 -> 7952.0 | N103: 850 | O103: Successful | P103: 2021-08-11 | R103: N
A104: 24 | B104: 2021-08-12 | D104: TATASTEEL AUG FUT | E104: Buy | F104: 1440 | G104: 1424 | H104: 1424 | I104: 1465-1475 | J104: Loss of Rs.16/- | K104: -16 | L104: 847.28 | M104: -14447.3 | N104: 850 | O104: Unsuccessful | P104: 2021-08-13 | R104: H
A105: 25 | B105: 2021-08-13 | D105: HDFCLIFE AUG FUT | E105: Buy | F105: 672.5 | G105: 657 | H105: 657 | I105: 690 | J105: Loss of Rs.11.9/- | K105: -15.50 | L105: 505.89 | M105: =(-1100*11.9)-606 -> -13696 | N105: 1100 | O105: Unsuccessful | P105: 2021-08-20 | R105: H
D106: HDFCLIFE AUG 690 CE | E106: Sell | F106: 4.5 | H106: 0.9 | K106: 3.60 | R106: H
A107: 26 | B107: 2021-08-16 | D107: HCLTECH AUG FUT | E107: Buy | F107: 1115.5 | G107: 1100 | H107: 1128 | I107: 1150 | J107: Profit of Rs.12.5/- | K107: =H107-F107 -> 12.5 | L107: =(H107*N107)*0.07% -> 552.72 | M107: =(K107*N107)-L107 -> 8197.3 | N107: 700 | O107: Successful | P107: 2021-08-16 | R107: N
A108: 27 | B108: 2021-08-16 | D108: HDFCAMC AUG FUT | E108: Buy | F108: 2925 | G108: 2885 | H108: 2960 | I108: 3000 | J108: Profit of Rs.35/- | K108: =H108-F108 -> 35 | L108: =(H108*N108)*0.07% -> 414.40 | M108: =(K108*N108)-L108 -> 6585.6 | N108: 200 | O108: Successful | P108: 2021-08-16 | R108: N
A109: 28 | B109: 2021-08-16 | D109: SBIN AUG FUT | E109: Buy | F109: 429 | G109: 419.5 | H109: 421 | I109: 445-450 | J109: Loss of Rs.8/- | K109: -8 | L109: 442.05 | M109: -12442.1 | N109: 1500 | O109: Unsuccessful | P109: 2021-08-17 | R109: H
A110: 29 | B110: 2021-08-17 | D110: PEL AUG FUT | E110: Buy | F110: 2775 | G110: 2730 | H110: 2730 | I110: 2850-2875 | J110: Loss of Rs.45/- | K110: =H110-F110 -> -45 | L110: =(H110*N110)*0.07% -> 525.53 | M110: =(K110*N110)-L110 -> -12900.5 | N110: 275 | O110: Unsuccessful | P110: 2021-08-17 | R110: N
A111: 30 | B111: 2021-08-17 | D111: LT AUG FUT | E111: Buy | F111: 1642 | G111: 1618 | H111: 1659 | I111: 1680-1700 | J111: Profit of Rs.17/- | K111: 17 | L111: 667.75 | M111: 9107.3 | N111: 575 | O111: Successful | P111: 2021-08-17 | R111: H
A112: 31 | B112: 2021-08-17 | D112: M&M AUG FUT | E112: Buy | F112: 789 | G112: 770 | H112: 789.5 | I112: 820-830 | J112: Profit of Rs.0.5/- | K112: =H112-F112 -> 0.5 | L112: =(H112*N112)*0.07% -> 386.86 | M112: =(K112*N112)-L112 -> -36.9 | N112: 700 | O112: Neutral | P112: 2021-08-23 | R112: H
A113: 32 | B113: 2021-08-18 | D113: ESCORTS AUG FUT | E113: Buy | F113: 1236 | G113: 1214 | H113: 1216 | I113: 1270-1275 | J113: Loss of Rs.20/- | K113: -20 | L113: 468.16 | M113: -11468.2 | N113: 550 | O113: Unsuccessful | P113: 2021-08-23 | R113: H
A114: 33 | B114: 2021-08-20 | D114: GODREJCP AUG FUT | E114: Buy | F114: 1037 | G114: 1025 | H114: 1045.5 | I114: 1065-1070 | J114: Profit of Rs.8.5/- | K114: =H114-F114 -> 8.5 | L114: =(H114*N114)*0.07% -> 731.85 | M114: =(K114*N114)-L114 -> 7768.2 | N114: 1000 | O114: Successful | P114: 2021-08-20 | R114: N
A115: 34 | B115: 2021-08-20 | D115: IRCTC AUG FUT | E115: Buy | F115: 2652 | G115: 2610 | H115: 2680 | I115: 2700-2730 | J115: Profit of Rs.28/- | K115: 28 | L115: 609.70 | M115: 8490.3 | N115: 325 | O115: Successful | P115: 2021-08-23 | R115: N
A116: 35 | B116: 2021-08-23 | D116: HDFCAMC AUG FUT | E116: Buy | F116: 2895 | G116: 2835 | H116: 2937.5 | I116: 3000-3010 | J116: Profit of Rs.42.5/- | K116: =H116-F116 -> 42.5 | L116: =(H116*N116)*0.07% -> 411.25 | M116: =(K116*N116)-L116 -> 8088.8 | N116: 200 | O116: Successful | P116: 2021-08-25 | R116: N
A117: 36 | B117: 2021-08-23 | D117: COLPAL SEP FUT | E117: Buy | F117: 1682 | G117: 1645 | H117: 1704 | I117: 1750-1760 | J117: Profit of Rs.22/- | K117: 22 | L117: 417.48 | M117: 7282.5 | N117: 350 | O117: Successful | P117: 2021-08-30 | R117: N
A118: 37 | B118: 2021-08-24 | D118: INFY SEP FUT | E118: Sell | F118: 1736.5 | G118: 1770 | H118: 1712 | I118: 1690 | J118: Profit of 34.5/- | K118: =F118-H118 -> 24.50 | L118: =(H118*N118)*0.07% -> 719.04 | M118: =(34.5*600)-819 -> 19881 | N118: 600 | O118: Successful | P118: 2021-08-27 | R118: H
D119: INFY 1720 PE AUG | E119: Sell | F119: 10 | H119: 0 | K119: =F119-H119 -> 10.00 | L119: 100.00 | R119: H
A120: 38 | B120: 2021-08-24 | D120: LICHSGFIN SEP FUT | E120: Buy | F120: 369.5 | G120: 359.75 | H120: 374.5 | I120: 385 | J120: Profit of Rs.4.70/- | K120: =H120-F120 -> 5.00 | L120: =(H120*N120)*0.07% -> 524.30 | M120: =(2000*4.7)-625 -> 8775 | N120: 2000 | O120: Successful | P120: 2021-08-25 | R120: H
D121: LICHSGFIN 380 CE AUG | E121: Sell | F121: 3.5 | H121: 3.8 | K121: =F121-H121 -> -0.30 | L121: 100.00 | R121: H
A122: 39 | B122: 2021-08-25 | D122: IRCTC SEP FUT | E122: Buy | F122: 2595 | G122: 2555 | H122: 2627.5 | I122: 2680 | J122: Profit of Rs.32.5/- | K122: =H122-F122 -> 32.5 | L122: =(H122*N122)*0.07% -> 597.76 | M122: =(K122*N122)-L122 -> 9964.7 | N122: 325 | O122: Successful | P122: 2021-08-25 | R122: N
A123: 40 | B123: 2021-08-25 | D123: HDFCBANK SEP FUT | E123: Buy | F123: 1551.5 | G123: 1525 | H123: 1569 | I123: 1600 | J123: Profit of Rs.31/- | K123: 17.5 | L123: 604.07 | M123: 9020.9 | N123: 550 | O123: Successful | P123: 2021-08-26 | R123: H
A124: 41 | B124: 2021-08-25 | D124: RELIANCE SEP FUT | E124: Buy | F124: 2217.5 | G124: 2175 | H124: 2248.5 | I124: 2270-2280 | J124: Profit of Rs.31/- | K124: =H124-F124 -> 31 | L124: =(H124*N124)*0.07% -> 393.49 | M124: =(K124*N124)-L124 -> 7356.5 | N124: 250 | O124: Successful | P124: 2021-08-26 | R124: H
A125: 42 | B125: 2021-08-26 | D125: GODREJCP SEP FUT | E125: Buy | F125: 1054 | G125: 1041 | H125: 1065 | I125: 1080 | J125: Profit of Rs.11/- | K125: =H125-F125 -> 11 | L125: =(H125*N125)*0.07% -> 745.50 | M125: =(K125*N125)-L125 -> 10254.5 | N125: 1000 | O125: Successful | P125: 2021-08-26 | R125: N
A126: 43 | B126: 2021-08-26 | D126: ASIANPAINT SEP FUT | E126: Buy | F126: 3060 | G126: 3020 | H126: 3087.5 | I126: 3120-3140 | J126: Profit of Rs.27.5/- | K126: 27.5 | L126: 648.38 | M126: 7601.6 | N126: 300 | O126: Successful | P126: 2021-08-30 | R126: N
A127: 44 | B127: 2021-08-27 | D127: IEX SEP FUT | E127: Buy | F127: 438.5 | G127: 428 | H127: 442 | I127: 460 | J127: Profit of Rs.3.5/- | K127: =H127-F127 -> 3.5 | L127: =(H127*N127)*0.07% -> 464.10 | M127: =(K127*N127)-L127 -> 4785.9 | N127: 1500 | O127: Successful | P127: 2021-08-30 | R127: H
A128: 45 | B128: 2021-08-27 | D128: SIEMENS SEP FUT | E128: Buy | F128: 2222 | G128: 2180 | H128: 2252.5 | I128: 2300-2310 | J128: Profit of Rs.30.5/- | K128: =H128-F128 -> 30.5 | L128: =(H128*N128)*0.07% -> 433.61 | M128: =(K128*N128)-L128 -> 7953.9 | N128: 275 | O128: Successful | P128: 2021-08-30 | R128: N
A129: 46 | B129: 2021-08-30 | D129: CONCOR SEP FUT | E129: Buy | F129: 667 | G129: 658 | H129: 673.5 | I129: 680-685 | J129: Profit of Rs.6.5/- | K129: =H129-F129 -> 6.5 | L129: =(H129*N129)*0.07% -> 736.88 | M129: =(K129*N129)-L129 -> 9422.6 | N129: 1563 | O129: Successful | P129: 2021-08-30 | R129: N
A130: 47 | B130: 2021-08-30 | D130: INDUSINDBK SEP FUT | E130: Buy | F130: 1014 | G130: 999 | H130: 999 | I130: 1045-1050 | J130: Loss of Rs.15/- | K130: -15 | L130: 629.37 | M130: -14129.4 | N130: 900 | O130: Unsuccessful | P130: 2021-08-31 | R130: N
A131: 48 | B131: 2021-08-30 | D131: SBIN SEP FUT | E131: Buy | F131: 422 | G131: 413 | H131: 427 | I131: 435 | J131: Profit of Rs.5/- | K131: =H131-F131 -> 5 | L131: =(H131*N131)*0.07% -> 448.35 | M131: =(K131*N131)-L131 -> 7051.7 | N131: 1500 | O131: Successful | P131: 2021-08-31 | R131: H
A132: 49 | B132: 2021-08-31 | D132: TATACHEM SEP FUT | E132: Buy | F132: 848 | G132: 835 | H132: 858 | I132: 870 | J132: Profit of Rs.10/- | K132: =H132-F132 -> 10 | L132: =(H132*N132)*0.07% -> 600.60 | M132: =(K132*N132)-L132 -> 9399.4 | N132: 1000 | O132: Successful | P132: 2021-08-31 | R132: N
A133: 50 | B133: 2021-08-31 | D133: TATACHEM SEP FUT | E133: Buy | F133: 846-848 | G133: 834 | I133: 870 | J133: Open | R133: N
A140: Master Trade Medium Risk
A141: Sr.no | B141: Date | D141: Company | E141: Rec | F141: Rec Price | G141: Stop Loss | H141: Call Closed At | I141: Target | J141: Remark | K141: Profit/ Loss per lot | L141: All charges | M141: Gain / Loss per Lot | N141: Lot | O141: Status | P141: Closed Date
A142: 1 | B142: 2021-07-26 | D142: ITC 225 CE AUG | E142: Buy | F142: 2.1 | G142: 0.75 | H142: 0.75 | I142: 4-4.50 | J142: Loss of Rs.1.35/- | K142: =H142-F142 -> -1.35 | L142: 100.00 | M142: =(K142*N142)-100 -> -4420 | N142: 3200 | O142: Unsuccessful | P142: 2021-08-13 | R142: H
A143: 2 | B143: 2021-08-03 | D143: NIFTY 15900 PE 5-AUG | E143: Buy | F143: 66.5 | G143: 19 | H143: 26 | I143: 110-120 | J143: Loss of Rs.40.5/- | K143: =H143-F143 -> -40.50 | L143: 100.00 | M143: =(K143*N143)-100 -> -2125 | N143: 50 | O143: Unsuccessful | P143: 2021-08-03 | R143: H
A144: 3 | B144: 2021-08-03 | D144: BANKNIFTY 34700 PE 5-AUG | E144: Buy | F144: 150 | G144: 35 | H144: 35 | I144: 250-300 | J144: Loss of Rs.115/- | K144: =H144-F144 -> -115.00 | L144: 100.00 | M144: =(K144*N144)-100 -> -2975 | N144: 25 | O144: Unsuccessful | P144: 2021-08-04 | R144: N
A145: 4 | B145: 2021-08-04 | D145: COLPAL 1700 CE AUG | E145: Buy | F145: 26.5 | G145: 14 | H145: 14 | I145: 45-50 | J145: Loss of Rs.12.5/- | K145: -12.50 | L145: 100.00 | M145: -4475 | N145: 350 | O145: Unsuccessful | P145: 2021-08-13 | R145: H
A146: 5 | B146: 2021-08-04 | D146: NIFTY 16250 PE 5-AUG | E146: Buy | F146: 51 | G146: 8 | H146: 8 | I146: 100-120 | J146: Loss of Rs.43/- | K146: =H146-F146 -> -43.00 | L146: 100.00 | M146: =(K146*N146)-100 -> -2250 | N146: 50 | O146: Unsuccessful | P146: 2021-08-05 | R146: N
A147: 6 | B147: 2021-08-10 | D147: EXIDEIND 175 CE AUG | E147: Buy | F147: 2.75 | G147: 1.3 | H147: 1.3 | I147: 4.5-5 | J147: Loss of Rs.1.45/- | K147: -1.45 | L147: 100.00 | M147: -3870 | N147: 2600 | O147: Unsuccessful | P147: 2021-08-13 | R147: H
A148: 7 | B148: 2021-08-10 | D148: NIFTY 16500 CE AUG | E148: Sell | F148: 80 | G148: 140 | H148: 62 | I148: 0.1 | J148: Profit of Rs.18/- | K148: =F148-H148 -> 18.00 | L148: 100.00 | M148: =(K148*N148)-100 -> 800 | N148: 50 | O148: Successful | P148: 2021-08-10 | R148: H
A149: 8 | B149: 2021-08-11 | D149: HDFC 2700 CE AUG | E149: Buy | F149: 23 | G149: 10 | H149: 33.5 | I149: 45-50 | J149: Profit of Rs.10.5/- | K149: =H149-F149 -> 10.50 | L149: 100.00 | M149: 3050 | N149: 300 | O149: Successful | P149: 2021-08-13 | R149: N
A150: 9 | B150: 2021-08-11 | D150: ASIANPAINT 3000 CE AUG | E150: Buy | F150: 47 | G150: 34 | H150: 53.5 | I150: 80 | J150: Profit of Rs.6.5/- | K150: =H150-F150 -> 6.50 | L150: 100.00 | M150: =(K150*N150)-100 -> 1850 | N150: 300 | O150: Successful | P150: 2021-08-13 | R150: N
A151: 10 | B151: 2021-08-12 | D151: IGL 500 PE AUG | E151: Sell | F151: 5.75 | G151: 9 | H151: 3.75 | I151: 0.1 | J151: Profit of Rs.2/- | K151: =F151-H151 -> 2.00 | L151: 100.00 | M151: =(K151*N151)-100 -> 2700 | N151: 1400 | O151: Successful | P151: 2021-08-12 | R151: H
A152: 11 | B152: 2021-08-12 | D152: BANKNIFTY 35900 CE 12-AUG | E152: Buy | F152: 62 | H152: 22.5 | I152: 120-150 | J152: Loss of Rs.39.5/- | K152: =H152-F152 -> -39.50 | L152: 100.00 | M152: -1087.5 | N152: 25 | O152: Unsuccessful | P152: 2021-08-12 | R152: N
A153: 12 | B153: 2021-08-12 | D153: NIFTY 16500 CE 26-AUG | E153: Sell | F153: 72 | G153: 130 | H153: 125 | I153: 0.1 | J153: Loss of Rs.53/- | K153: =F153-H153 -> -53.00 | L153: 100.00 | M153: -2750 | N153: 50 | O153: Unsuccessful | P153: 2021-08-13 | R153: H
A154: 13 | B154: 2021-08-12 | D154: HINDUNILVR 2400 CE AUG | E154: Buy | F154: 31 | G154: 15 | H154: 38 | I154: 50-60 | J154: Profit of Rs.7/- | K154: =H154-F154 -> 7.00 | L154: 100.00 | M154: =(K154*N154)-100 -> 2000 | N154: 300 | O154: Successful | P154: 2021-08-13 | R154: N
A155: 14 | B155: 2021-08-13 | D155: LT 1640 CE AUG | E155: Buy | F155: 26.5 | G155: 18 | H155: 31.5 | I155: 45-50 | J155: Profit of Rs.5/- | K155: 5.00 | L155: 100.00 | M155: 2775 | N155: 575 | O155: Successful | P155: 2021-08-13 | R155: N
A156: 15 | B156: 2021-08-13 | D156: TATASTEEL 1600 CE AUG | E156: Sell | F156: 6.1 | G156: 10.1 | H156: 10.1 | I156: 0.1 | J156: Loss of Rs.4/- | K156: =F156-H156 -> -4.00 | L156: 100.00 | M156: -3300 | N156: 800 | O156: Unsuccessful | P156: 2021-08-13 | R156: N
A157: 16 | B157: 2021-08-13 | D157: ASIANPAINT 3000 CE AUG | E157: Buy | F157: 44.5 | G157: 30 | H157: 53.5 | I157: 70-75 | J157: Profit of Rs.9/- | K157: =H157-F157 -> 9.00 | L157: 100.00 | M157: 2600 | N157: 300 | O157: Successful | P157: 2021-08-17 | R157: N
A158: 17 | B158: 2021-08-16 | D158: PFC 135 CE AUG | E158: Sell | F158: 1.2 | G158: 2.05 | H158: 1.2 | I158: 0.1 | J158: Nuetral | K158: =H158-F158 -> 0.00 | L158: 100.00 | M158: =(K158*N158)-100 -> -100 | N158: 6200 | O158: Neutral | P158: 2021-08-17 | R158: H
A159: 18 | B159: 2021-08-16 | D159: LT 1660 CE AUG | E159: Buy | F159: 25.5 | G159: 17 | H159: 17 | I159: 45 | J159: Loss of Rs.8.5/- | K159: =H159-F159 -> -8.50 | L159: 100.00 | M159: =(K159*N159)-100 -> -4987.5 | N159: 575 | O159: Unsuccessful | P159: 2021-08-17 | R159: N
A160: 19 | B160: 2021-08-17 | D160: LT 1640 CE AUG | E160: Buy | F160: 21.5 | G160: 14 | H160: 25.5 | I160: 30-35 | J160: Profit of Rs.4/- | K160: 4.00 | L160: 100.00 | M160: 2200 | N160: 575 | O160: Successful | P160: 2021-08-18 | R160: H
A161: 20 | B161: 2021-08-18 | D161: RELIANCE 2180 CE AUG | E161: Buy | F161: 25 | G161: 7 | H161: 26 | I161: 45-50 | J161: Profit of Rs.1/- | K161: 1.00 | L161: 100.00 | M161: 150 | N161: 250 | O161: Neutral | P161: 2021-08-25 | R161: H
A162: 21 | B162: 2021-08-18 | D162: ASIANPAINT 3020 CE AUG | E162: Buy | F162: 41 | G162: 28 | H162: 48 | I162: 70-75 | J162: Profit of Rs.7/- | K162: =H162-F162 -> 7.00 | L162: 100.00 | M162: =(K162*N162)-100 -> 2000 | N162: 300 | O162: Successful | P162: 2021-08-20 | R162: N
A163: 22 | B163: 2021-08-20 | D163: NIFTY 16600 CE AUG | E163: Sell | F163: 52 | G163: 85 | H163: 31 | I163: 0.1 | J163: Profit of Rs.21/- | K163: =F163-H163 -> 21.00 | L163: 100.00 | M163: =(K163*N163)-100 -> 950 | N163: 50 | O163: Successful | P163: 2021-08-20 | R163: H
A164: 23 | B164: 2021-08-20 | D164: M&M 790 CE AUG | E164: Buy | F164: 9.5 | G164: 4 | H164: 4 | I164: 20-22 | J164: Loss of Rs.5.5/- | K164: =H164-F164 -> -5.50 | L164: 100.00 | M164: -3950 | N164: 700 | O164: Unsuccessful | P164: 2021-08-20 | R164: H
A165: 24 | B165: 2021-08-20 | D165: BATAINDIA 1760 CE AUG | E165: Buy | F165: 27.5 | G165: 17 | H165: 32.5 | I165: 45 | J165: Profit of Rs.5/- | K165: =H165-F165 -> 5.00 | L165: 100.00 | M165: =(K165*N165)-100 -> 2650 | N165: 550 | O165: Successful | P165: 2021-08-20 | R165: N
A166: 25 | B166: 2021-08-20 | D166: HDFC 2700 PE AUG | E166: Buy | F166: 17 | H166: 21.5 | I166: 40-45 | J166: Profit of Rs.4.5/- | K166: 4.50 | L166: 100.00 | M166: 1250 | N166: 300 | O166: Successful | P166: 2021-08-20 | R166: H
A167: 26 | B167: 2021-08-20 | D167: HINDUNILVR 2620 CE AUG | E167: Sell | F167: 15 | G167: 26 | H167: 26 | I167: 0.1 | J167: Loss of Rs.11/- | K167: 11.00 | L167: 100.00 | M167: 3200 | N167: 300 | O167: Unsuccessful | P167: 2021-08-20 | R167: H
A168: 27 | B168: 2021-08-20 | D168: HDFC 2700 PE AUG | E168: Buy | F168: 15.5 | H168: 15.5 | I168: 40-45 | J168: Nuetral | K168: =H168-F168 -> 0.00 | L168: 100.00 | M168: =(K168*N168)-100 -> -100 | N168: 300 | O168: Neutral | P168: 2021-08-20 | R168: H
A169: 28 | B169: 2021-08-20 | D169: LT 1600 CE AUG | E169: Buy | F169: 19 | G169: 10 | H169: 24.5 | I169: 30-35 | J169: Profit of Rs.5.5/- | K169: 5.50 | L169: 100.00 | M169: 2925 | N169: 550 | O169: Successful | P169: 2021-08-23 | R169: N
A170: 29 | B170: 2021-08-20 | D170: NIFTY 16400 PE AUG | E170: Buy | F170: 62 | G170: 14 | H170: 77.5 | I170: 120 | J170: Profit of Rs.15.5/- | K170: =H170-F170 -> 15.50 | L170: 100.00 | M170: =(K170*N170)-100 -> 675 | N170: 50 | O170: Successful | P170: 2021-08-20 | R170: H
A171: 30 | B171: 2021-08-20 | D171: HDFC 2700 PE AUG | E171: Buy | F171: 13.5 | H171: 16.5 | I171: 40 | J171: Profit of Rs.3/- | K171: 3.00 | L171: 100.00 | M171: 800 | N171: 300 | O171: Successful | P171: 2021-08-24 | R171: H
A172: 31 | B172: 2021-08-23 | D172: NIFTY 16500 PE AUG | E172: Buy | F172: 62 | G172: 14 | H172: 80 | I172: 120 | J172: Profit of Rs.18/- | K172: =H172-F172 -> 18.00 | L172: 100.00 | M172: =(K172*N172)-100 -> 800 | N172: 50 | O172: Successful | P172: 2021-08-23 | R172: H
A173: 32 | B173: 2021-08-23 | D173: TVSMOTOR 510 CE AUG | E173: Buy | F173: 5.75 | G173: 2.5 | H173: 7.75 | I173: 14 | J173: Profit of Rs.2/- | K173: =H173-F173 -> 2.00 | L173: 100.00 | M173: =(K173*N173)-100 -> 2700 | N173: 1400 | O173: Successful | P173: 2021-08-23 | R173: N
A174: 33 | B174: 2021-08-23 | D174: LT 1600 CE AUG | E174: Buy | F174: 14 | G174: 5 | H174: 18 | I174: 25 | J174: Profit of Rs.4/- | K174: =H174-F174 -> 4.00 | L174: 100.00 | M174: =(K174*N174)-100 -> 2100 | N174: 550 | O174: Successful | P174: 2021-08-23 | R174: N
A175: 34 | B175: 2021-08-23 | D175: BATAINDIA 1760 CE AUG | E175: Buy | F175: 17 | G175: 8.5 | H175: 8.5 | I175: 30-35 | J175: Loss of Rs.8.5/- | K175: -8.50 | L175: 100.00 | M175: -4775 | N175: 550 | O175: Unsuccessful | P175: 2021-08-24 | R175: N
A176: 35 | B176: 2021-08-23 | D176: PIDILITIND 2200 PE AUG | E176: Sell | F176: 12 | G176: 20 | H176: 20 | I176: 0.1 | J176: Loss of Rs.8/- | K176: =F176-H176 -> -8.00 | L176: 100.00 | M176: =(K176*N176)-100 -> -4100 | N176: 500 | O176: Unsuccessful | P176: 2021-08-24 | R176: H
A177: 36 | B177: 2021-08-24 | D177: LT 1600 CE AUG | E177: Buy | F177: 9.5 | G177: 1 | H177: 14 | I177: 25 | J177: Profit of Rs.4.50/- | K177: =H177-F177 -> 4.50 | L177: 100.00 | M177: 2375 | N177: 550 | O177: Successful | P177: 2021-08-24 | R177: H
A178: 37 | B178: 2021-08-24 | D178: TVSMOTOR 500 PE AUG | E178: Buy | F178: 3.5 | H178: 0.7 | I178: 8-10.0 | J178: Loss of Rs.2.80/- | K178: -2.80 | L178: 100.00 | M178: -4020 | N178: 1400 | O178: Unsuccessful | P178: 2021-08-25 | R178: N
A179: 38 | B179: 2021-08-24 | D179: LT 1600 CE AUG | E179: Buy | F179: 14 | G179: 5 | H179: 21 | I179: 25 | J179: Profit of Rs.7.0/- | K179: =H179-F179 -> 7.00 | L179: 100.00 | M179: =(K179*N179)-100 -> 3750 | N179: 550 | O179: Successful | P179: 2021-08-25 | R179: H
A180: 39 | B180: 2021-08-24 | D180: NIFTY 16600 PE AUG | E180: Buy | F180: 72 | G180: 17 | H180: 22 | I180: 120-140 | J180: Loss of Rs.50/- | K180: =H180-F180 -> -50.00 | L180: 100.00 | M180: =(K180*N180)-100 -> -2600 | N180: 50 | O180: Unsuccessful | P180: 2021-08-25 | R180: H
A181: 40 | B181: 2021-08-25 | D181: HDFCBANK 1560 CE AUG | E181: Buy | F181: 7.75 | H181: 8.75 | I181: 20 | J181: Profit of Rs.1/- | K181: 1.00 | L181: 100.00 | M181: 450 | N181: 550 | O181: Neutral | P181: 2021-08-26 | R181: N
A182: 41 | B182: 2021-08-25 | D182: ASIANPAINT 3060 CE AUG | E182: Buy | F182: 14 | H182: 16 | I182: 25 | J182: Profit of Rs.2/- | K182: 2.00 | L182: 100.00 | M182: 500 | N182: 300 | O182: Neutral | P182: 2021-08-26 | R182: N
A183: 42 | B183: 2021-08-25 | D183: LT 1600 CE AUG | E183: Buy | F183: 7 | H183: 7 | I183: 15-17 | J183: Nuetral | K183: 0.00 | L183: 100.00 | M183: -100 | N183: 550 | O183: Neutral | P183: 2021-08-26 | R183: H
A184: 43 | B184: 2021-08-26 | D184: ASIANPAINT 3150 CE SEP | E184: Buy | F184: 49 | G184: 36 | H184: 53.25 | I184: 65-70 | J184: Profit of Rs.4.25/- | K184: 4.25 | L184: 100.00 | M184: 1175 | N184: 300 | O184: Successful | P184: 2021-08-30 | R184: H
A185: 44 | B185: 2021-08-26 | D185: RELIANCE 2260 CE SEP | E185: Buy | F185: 47 | G185: 29 | H185: 55 | I185: 70-75 | J185: Profit of Rs.8.0/- | K185: =H185-F185 -> 8.00 | L185: 100.00 | M185: =(K185*N185)-100 -> 1900 | N185: 250 | O185: Successful | P185: 2021-08-27 | R185: H
A186: 45 | B186: 2021-08-26 | D186: NIFTY 16700 CE 2-SEP | E186: Buy | F186: 58 | G186: 17 | H186: 69 | I186: 120 | J186: Profit of Rs.11/- | K186: 11.00 | L186: 100.00 | M186: 450 | N186: 50 | O186: Successful | P186: 2021-08-27 | R186: H
A187: 46 | B187: 2021-08-27 | D187: NIFTY 16550 PE 2-SEP | E187: Buy | F187: 57 | G187: 17 | H187: 17 | I187: 120-130 | J187: Loss of Rs.40/- | K187: -40.00 | L187: 100.00 | M187: -2100 | N187: 50 | O187: Unsuccessful | P187: 2021-08-30 | R187: H
A188: 47 | B188: 2021-08-27 | D188: BANKNIFTY 35600 PE 2-SEP | E188: Buy | F188: 240 | G188: 95 | H188: 282.5 | I188: 500 | J188: Profit of Rs.42.5/- | K188: =H188-F188 -> 42.50 | L188: 100.00 | M188: =(K188*N188)-100 -> 962.5 | N188: 25 | O188: Successful | P188: 2021-08-27 | R188: N
A189: 48 | B189: 2021-08-30 | D189: BANKNIFTY 36000 PE 2-SEP | E189: Buy | F189: 130-140 | I189: 250-300 | J189: Open | R189: N
A190: 49 | B190: 2021-08-31 | D190: RELIANCE 2300 CE SEP | E190: Buy | F190: 37-39 | G190: 19 | I190: 65-75 | J190: Open | R190: N
A191: 50 | B191: 2021-08-31 | D191: NIFTY 17000 PE 2-SEP | E191: Buy | F191: 65-70 | G191: 20 | I191: 120-130 | J191: Open | R191: N
A196: Techno -Funda (positional)
A197: Sr.no | B197: Date | D197: Company | E197: Rec | F197: Rec Price | G197: Stop Loss*** | H197: Call Closed At | I197: Target | J197: Remark | K197: Profit / Loss per Share/Lot | L197: All charges | M197: Net Gain / Loss % | N197: Status | O197: Closed Date
A198: 1 | B198: 2021-06-16 | D198: WHIRLPOOL | E198: Buy<> | F198: 2275 | G198: 2070 | H198: 2,070.00 | I198: 2600-2700 | J198: Loss of Rs.205/- | K198: =H198-F198 -> -205 | L198: =(F198*-0.8)/100 -> -18.20 | M198: =(K198+L198)/F198 -> -9.81% | N198: Unsuccessful | O198: 2021-08-11 | R198: H
A199: 2 | B199: 2021-08-12 | D199: SHARDACROP | E199: Buy | F199: 310-318 | G199: 284 | I199: 380-390 | J199: Open | R199: H
A201: CLBS = Closing Basis *** | F201: Reinitiated $
A202: Dividend adjusted <> | F202: Revised stoploss # | H202: .................
B204: Intrday Call
A205: Sr.no | B205: Date | D205: Company | E205: Rec | F205: Rec Price | G205: Stop Loss | H205: Call Closed At | I205: Target | J205: Remark | K205: Profit / Loss per Share/Lot | L205: Gain / Loss per Lot | M205: Lot | N205: All charges | O205: Net Gain / Loss % | P205: Status | Q205: Closed Date
B218: Investment Idea
A219: Sr.no | B219: Date | D219: Company | E219: Rec | F219: Rec Price | G219: Point of Review | H219: Close Rate | I219: Target | J219: Remark | K219: Profit / Loss per Share | L219: Gain / Loss % | M219: Status | N219: Closed Date
A220: 1 | B220: 2013-11-01 | D220: L&T Finance Holding | E220: Accu | F220: 82.00 | G220: - | H220: 100 | I220: 100.00 | J220: Target Achieved | K220: =H220-F220 -> 18.00 | L220: =K220/F220 -> 21.95% | M220: Successful | N220: 2016-10-14
A221: 2 | B221: 2014-06-04 | D221: Finolex Inds | E221: Buy | F221: 257.00 | G221: - | H221: 300 | I221: 300.00 | J221: Target Achieved | K221: 43.00 | L221: 16.73% | M221: Successful | N221: 2014-07-02
A222: 3 | B222: 2014-07-08 | D222: JK Cement | E222: Buy | F222: 393.00 | G222: - | H222: 468 | I222: 468.00 | J222: Target Achieved | K222: 75.00 | L222: 19.08% | M222: Successful | N222: 2014-08-12
A223: 4 | B223: 2014-08-06 | D223: Finolex Cables | E223: Buy | F223: 205.00 | G223: - | H223: 275 | I223: 250.00 | J223: Target Achieved | K223: 70.00 | L223: 34.15% | M223: Successful | N223: 2014-11-19
A224: 5 | B224: 2014-09-04 | D224: Exide Inds | E224: Buy | F224: 162.00 | G224: - | H224: 190 | I224: 190.00 | J224: Target Achieved | K224: 28.00 | L224: 17.28% | M224: Successful | N224: 2015-01-02
A225: 6 | B225: 2014-09-04 | D225: Deepak Nitrite | E225: Buy | F225: 75.00 | G225: - | H225: 91.5 | I225: 95-100 | J225: Profit of Rs.16.50/- | K225: 16.50 | L225: 22.00% | M225: Successful | N225: 2014-11-11
A226: 7 | B226: 2014-10-01 | D226: Mercks | E226: Buy | F226: 850.00 | G226: - | H226: 982.5 | I226: 1050.00 | J226: Profit of Rs.132.50/- | K226: 132.50 | L226: 15.59% | M226: Successful | N226: 2015-02-04
A227: 8 | B227: 2014-10-01 | D227: Grindwell Norton | E227: Buy | F227: 475.00 | G227: - | H227: 515 | I227: 600.00 | J227: Profit of Rs.40/- | K227: 40.00 | L227: 8.42% | M227: Successful | N227: 2014-10-27
A228: 9 | B228: 2014-10-01 | D228: Snowman Logistics | E228: Buy | F228: 86.00 | G228: - | H228: 99 | I228: 140.00 | J228: Profit of Rs.13.00/- | K228: 13.00 | L228: 15.12% | M228: Successful | N228: 2014-10-27
A229: 10 | B229: 2014-10-14 | D229: Birla Corp | E229: Buy | F229: 496.60 | G229: - | H229: 621 | I229: 580.00 | J229: Target Achieved | K229: 124.40 | L229: 25.05% | M229: Successful | N229: 2016-08-23
A230: 11 | B230: 2014-10-14 | D230: Ultratech Cem | E230: Buy | F230: 2481.90 | G230: - | H230: 2840 | I230: 2870.00 | J230: Profit of Rs.358.10/- | K230: 358.10 | L230: 14.43% | M230: Successful | N230: 2015-01-13
A231: 12 | B231: 2014-10-16 | D231: Sintex Inds | E231: Buy | F231: 84.50 | G231: - | H231: 93 | I231: 110.00 | J231: Profit of Rs.8.50/- | K231: 8.50 | L231: 10.06% | M231: Successful | N231: 2014-10-27
A232: 13 | B232: 2014-10-16 | D232: HSIL | E232: Buy | F232: 401.00 | G232: - | H232: 428 | I232: 450.00 | J232: Profit of Rs.27.00/- | K232: 27.00 | L232: 6.73% | M232: Successful | N232: 2015-01-16
A233: 14 | B233: 2014-10-16 | D233: Eveready Inds | E233: Buy | F233: 101.00 | G233: - | H233: 112 | I233: 120.00 | J233: Profit of Rs.11.00/- | K233: 11.00 | L233: 10.89% | M233: Successful | N233: 2014-10-27
A234: 15 | B234: 2014-11-11 | D234: Pennar Inds | E234: Buy | F234: 59.00 | G234: - | H234: 76 | I234: 76.00 | J234: Target Achieved | K234: 17.00 | L234: 28.81% | M234: Successful | N234: 2017-10-24
A235: 16 | B235: 2014-11-11 | D235: Snowman Logistics | E235: Buy | F235: 99.00 | G235: - | H235: 120 | I235: 120.00 | J235: Profit of Rs.21/- | K235: 21.00 | L235: 21.21% | M235: Successful | N235: 2014-11-17
A236: 17 | B236: 2014-11-13 | D236: Dharamsi Morarji Chem | E236: Buy | F236: 22.00 | G236: - | H236: 33.55 | I236: 32.00 | J236: Profit of Rs 11.55/- | K236: 11.55 | L236: 52.50% | M236: Successful | N236: 2015-07-03
A237: 18 | B237: 2014-12-03 | D237: Tatachem | E237: Buy | F237: 440.00 | G237: - | H237: 520 | I237: 520.00 | J237: Profit of Rs 80.00/- | K237: 80.00 | L237: 18.18% | M237: Successful | N237: 2015-07-23
A238: 19 | B238: 2014-12-03 | D238: Advanta | E238: Buy | F238: 360.00 | G238: - | H238: 427 | I238: 425.00 | J238: Profit of Rs.67.00/- | K238: 67.00 | L238: 18.61% | M238: Successful | N238: 2015-02-23
A239: 20 | B239: 2015-01-08 | D239: GDL | E239: Buy | F239: 360.00 | G239: - | H239: 455 | I239: 420.00 | J239: Profit of Rs.95.00/- | K239: 95.00 | L239: 26.39% | M239: Successful | N239: 2015-01-20
A240: 21 | B240: 2015-01-08 | D240: NRB Bearing | E240: Buy | F240: 130.00 | H240: 175.5 | I240: 165.00 | J240: Profit of Rs 45.50/- | K240: 45.50 | L240: 35.00% | M240: Successful | N240: 2017-12-19
... 148 more rows
